{"text_format":"1","workbook":"xlsx","n_sheets":7,"sheets":["Форма1","Форма2","Форма3","Регион","Выгрузка","Справочник","Примечания"],"not_rendered":{"charts":0,"images":2,"macros":1,"external_links":1,"defined_names":0,"comments":0,"pivot_tables":0},"unopened":[],"bounds":{"document_bytes":16777216,"sheet_cells":100000,"rows_first":2000,"rows_last":500,"rows_between":2000,"halvings":0,"cell_chars":16384,"cell_head_chars":4096},"cells_cut":0,"cells_raw":0,"read":"whole","date_system":"1900"}

{"sheet":"Форма1","index":0,"n_rows":16,"n_cols":26,"rows_kept":16,"cut":false,"hidden":true,"merged":[[6,1,6,6]]}
[null,null,null,null,null,null,null,null,null,null,null,null,null,null,null,null,null,null,null,null,null,null,null,null,null,5]
[]
[]
[]
[]
[]
[null,"Таблица количества создаваемых ученико-мест и инфрамест по направленностям и стоимости"]
[null,"№","Количество создаваемых ученико-мест","Количество создаваемых инфраструктурных мест","Наименование направленности","Средняя стоимость ученико-места по направленности\n(руб)","Всего по направленности"]
[null,1,2,3,4,5,6]
[null,1,525,75,"Социально-гуманитарная",16288,8552000]
[null,2,846,119,"Естественнонаучная",42730,36150000]
[null,3,1477,211,"Туристско-краеведческая",9250,13663498]
[null,4,1960,280,"Физкультурно-спортивная",2053,4025000]
[null,5,840,120,"Техническая",25895,21752000]
[null,6,2016,288,"Художественная",5068,10217502]
[null,"Итого:",7664,1093,null,101284,94360000]

{"sheet":"Форма2","index":1,"n_rows":69,"n_cols":26,"rows_kept":69,"cut":false,"hidden":true,"merged":[[6,1,6,10]]}
[null,null,null,null,null,null,null,null,null,null,null,null,null,null,null,null,null,null,null,null,null,null,null,null,null,12]
[null,null,null,null,null,null,null,null,null,null,null,null,null,null,null,null,null,null,null,null,null,null,null,null,null,4]
[null,null,null,null,null,null,null,null,null,null,null,null,null,null,null,null,null,null,null,null,null,null,null,null,null,17]
[null,null,null,null,null,null,null,null,null,null,null,null,null,null,null,null,null,null,null,null,null,null,null,null,null,7]
[null,null,null,null,null,null,null,null,null,null,null,null,null,null,null,null,null,null,null,null,null,null,null,null,null,6]
[null,null,null,null,null,null,null,null,null,null,null,null,null,null,null,null,null,null,null,null,null,null,null,null,null,7]
[null,"Таблица создаваемых ученико-мест и инфрамест в разрезе направленностей и образовательных организаций "]
[null,"№","Направленность дополнительного образования детей","Количество создаваемых ученико-мест","Количество создаваемых инфраструктурных мест","Наименование организации","Адрес организации","Вид населенного пункта\n(город, ПГТ, село)","Дата получения действующей лицензии на ДОД","Стоимость создания ученико-места (руб)","Стоимость создания инфраструктурного места\n(руб)\n"]
[null,1,2,3,4,5,6,7,8,9,10]
[null,"1.","Физкультурно-спортивная",280,40,"ГБУ ДО «Республиканский детско-юношеский  центр физического воспитания, \nспорта и туризма»\n","364007, Чеченская Республика, г. Грозный, ул. Даудова, 94а.","город"," 6 декабря 2021г.\n",2675,16050]
[null,null,null,140,20,"МБОУ \"СОШ №3 с.Гехи им. А-Х. Кадырова\"","Чеченская Республика, Урус-Мартановский район,с.Гехи, улица Кавказская, 120","село","28.10.2015 г.",3259,19558]
[null,null,null,140,20,"МБОУ \"СОШ № 2 г. Урус-Мартан\"","Урус-Мартановский муниципальныйрайон, ул. им.шейха С-Х.Яндарова,76","город","30.10.2015 г.",3259,19558]
[null,null,null,140,20,"МБУ ДО    \"Ачхой-Мартановский Дом юных техников\"","366612,ЧР, с.Ачхой-Мартан, ул.Асхабова,2","село","29.01.2016 г.",3259,19558]
[null,null,null,140,20,"МБУ ДО «Наурский Центр детско-юношеского технического творчества»","366128, ЧР, Наурский район, ст. Наурская, ул.Джона Рида, дом 47а","село","25 ноября 2015г.",3259,19558]
[null,null,null,140,20,"МБУ ДО \"Веденский районный центр детско-юнощеского технического творчества\"","Веденский р-он,                          с. Ведено,ул. Исаева 7","село "," 28.12.2015г ",3259,19558]
[null,null,null,280,40,"МБУ ДО \" Курчалоевский детско-юношеский цетр\"","г.Курчалой, ул.Берса-Шейха 3","город  ","21.12.2015 г.",2675,16050]
[null,null,null,140,20,"     МБУ ДО \"Дом детского творчества  Грозненского муниципального района\"","366013 ЧР., Грозненский район, с. Толстой-Юрт, ул. Староюртовская, б/н","село","24 декабря 2020г.",3259,19558]
[null,null,null,140,20,"МБОУ  \"Шуанинская средняя школа \"","366913 ,Чеченская Республика , Гудермесский муниципальный район ,с.Шуани , ул.А.А.Кадырова ,24","Село","25.09.2017г.",3259,19558]
[null,null,null,140,20,"МБОУ \"Гимназия № 1 им. А. Кадырова\" г. Грозного","г. Грозный, ул. Кабардинская, 2","Город","09.09.2016 г.",3259,19558]
[null,null,null,140,20,"МБОУ \"Лицей № 1 им. Н.А. Назарбаева\" г. Грозного ","г. Грозный, ул. В.А.Кан-Калика, 60","Город","25.11.2015 г.",3259,19558]
[null,null,null,140,20,"МБУ ДО \"Дом детско-юношеского туризма и экскурсий Грозненского муниципального района \"","Чеченская республика,366030  Грозненский район, с.Центора-Юрт, ул.Аксайская 30","село ","08.07.2021г.",2090,12542]
[]
[null,"2.","Социально-гуманитарная",105,15,"МБУ ДО \"Дом детского творчества Висаитовского района г.Грозного","городок.Маяковского 73-а","город","25.02.2021 г.",23732,142395]
[null,null,null,105,15,"МБУ ДО  \"Ачхой-Мартановский детско-юношеский центр\"","366612,ЧР,  Ачхой-мартановский р-н, с.Ачхой-Мартан, ул.А.Л.Асхабова, 2","село","26.01.2016г.",23732,142395]
[null,null,null,105,15,"МБУ ДО \"Ачхой-Мартановский Дом детского творчества\"","366612,ЧР, с.Ачхой-Мартан,\n ул.А-Х.Кадырова . 13 ","село","24.12.2015г.",20113,120679]
[null,null,null,105,15,"МБУ ДО \"Дом детского творчсетва Ахматовского района г. Грозного\"","364020, ЧР, Г. Грозный, ул. Тасуева д. 12","Город","19.02.2021 г.",23732,142395]
[null,null,null,105,15,"МБУ ДО  \"Веденский районный центр детско-юношеского творчества\" ","Веденский р-он,с. Ведено,ул. Крепостная, №3","село ","25.01.2016г.",20113,120679]
[null,"3.","Художественная",112,16," МБУ ДО \"Дом детского творчества Висаитовского района г.Грозного\"","городок.Маяковского 73-а","город","25.02.2021 г.",4547,27284]
[null,null,null,112,16,"МБОУ «СОШ № 8 им.Арби Вахаева» г. Урус-Мартан","366500, Чеченская Республика, Урус-Мартановский район, г. Урус-Мартан, ул. Махмуда Эсамбаева, 76","город","15.03.2018 г.",4547,27284]
[null,null,null,112,16,"МБОУ \"СОШ №9 г.Урус-Мартан\"","г.Урус-Мартан, ул.Туликова,86","город","08.08.2019 г.",4547,27284]
[null,null,null,112,16,"МБУ ДО  «Наурский дом детского творчества»","366128, ЧР, Наурский район, ст. Наурская, ул.Джона Рида, дом 47а","село","25 ноября 2015г.",4547,27284]
[null,null,null,112,16,"МБУ ДО «Дом детского творчества Серноводского муниципального района»","ЧР, Серноводский район, с.Серноводское, ул. Мичурина, 4а.","село"," 06.10.2020 г.",4547,27284]
[null,null,null,112,16,"МБОУ ДО \"Детско-юношеский центр Грозненского муниципального района\"","Чеченская Респ, Грозненский р-н. с Центора-Юрт, ул. Садовая 80","село","11 июня 2015 г.",4547,27284]
[null,null,null,112,16,"МБОУ  \"СОШ №2 с.Бердыкель\" им. героя России Басханова Р.Ш. городского округа город Аргун","ЧР, городской округ город Аргун, село Бердыкель, улица М.Д.Дикаева, 2","село","10.11.2020г. № 3319",4547,27284]
[null,null,null,112,16,"МБОУ \"Средняя общеобразовательная школа № 2 с.п. Знаменское\"","366813, Чеченская Республика,Надтерчный район, С.Знаменское, ул. им. Д.А. Ахмарова ,1","село","08.12.2021г.",4547,27284]
[null,null,null,112,16,"МБОУ \"СОШ № 38\" г. Грозного","г. Грозный, ул.Арсаханова, 17","Город","05.05.2014 г.",4547,27284]
[null,null,null,112,16,"МБОУ  «СОШ № 31» г. Грозного\n","г. Грозный ул. Школьная, 13 а","город","16.02 2021 г.",4547,27284]
[null,null,null,112,16,"МБОУ \"СОШ № 34\" г. Грозного","г. Грозный, ул. Алексеева 156 а","Город","14.12.2021 г.",4547,27284]
[null,null,null,112,16,"МБОУ \"Дом детского творчество Байсангуровского района г.Грозного\"","ЧР, г.Грозный ,Байсангуровский район, ул.Сайханова 133 Б","Город","24.02.2021 г.",4547,27284]
[null,null,null,112,16,"МБУ ДО \"Дом детского творчсетва Ахматовского района г. Грозного\"","364020, ЧР, Г. Грозный, ул. Тасуева д. 12","Город","19.02.2021 г.",4547,27284]
[null,null,null,112,16,"МБУ ДО  «Дом детского творчества» Гудермесского муниципального района\"","366209, ЧР, г.Гудермес, ул.Молодежная, 1","город","9 сентября 2015 г.",4547,27284]
[null,null,null,112,16,"МБУ ДО  \"Дом детского творчества Ножай-Юртовского муниципального района\"","366241. Ножай-Юртовский район, с.Ножай-Юрт, ул.А.А.Кадырова,108","село","21.12.2015г.",4547,27284]
[null,null,null,112,16,"МБОУ  \"Шуанинская средняя школа \"","366913 ,Чеченская Республика , Гудермесский муниципальный район ,с.Шуани , ул.А.А.Кадырова ,24","Село","25.09.2017г.",4547,27284]
[null,null,null,112,16,"МБОУ \"СОШ №7 г. Шали\"","366300, Чеченская Республика, г. Шали, ул. А-Х Кадырова, дом 359","город","27.07.2017 г.",4547,27284]
[null,null,null,112,16,"МБУ ДО  \"Дом детского творчества Грозненского муниципального района\"","366013 ЧР., Грозненский район, с. Толстой-Юрт, ул. Староюртовская, б/н","село","25.09.2017г.",4547,27284]
[null,"4.","Естественнонаучная",96,13,"ГБУ ДО  \"Республиканский эколого-биологический центр\"","Г. Грозный, Строительная, 17","Город","28.12.2015 г.",73945,443675]
[null,null,null,94,13,"ГБНОУ «Респаубликанский комплекс общего и дополнительного образования \"Квант»","Грозный, Ахматовский район, ул. Федеративная 12","город","8 июля 2020 г.",73945,443675]
[null,null,null,96,13,"ГБОУ  \"Гудермесская средняя школа им. Усмана Ахмаровича Оздамирова\" ","366203, Чеченская Республика, г.Гудермес, ул. Промышленная, 1-а","город","24.03.2022 г.",43130,258780]
[null,null,null,112,16,"МБУ ДО «Дом детского творчества Шейх- Мансуровского района»","г. Грозный, ул. Мамсурова, 22","Город","25.02.2021 г.",12314,73884]
[null,null,null,112,16,"МБУ ДО  \"Центр юных натуралистов и экологов г. Аргуна\"","366310, Чеченская Республика, г. Аргун, ул. М. Кутузова","город","20 октября 2015 г.",12314,73884]
[null,null,null,112,16,"МБУ ДО «Эколого-биологическая станция» Гудермесского муниципального района","366208, Чеченская Республика, Гудермесский район, город Гудермес, пр. А. Кадырова, 14","город","9 сентября 2015 г.",12314,73884]
[null,null,null,112,16,"МБОУ \"Гимназия № 7\" г.Грозного","г. Грозный, Байсангуровский р-н, ул. Буровая, 82 а","Город","05.11.2015 г.",12314,73884]
[null,null,null,112,16,"МБОУ ДО \"Эколого-биологическая станция Ножай-Юртовского муниципального района\"","366241. Ножай-Юртовский район, с.Ножай-Юрт, ул.А.А.Кадырова,108","село","21.12.2015 г."]
[null,"5.","Техническая",105,15,"МБОУ «СОШ п. Долинский Грозненского муниципального района»","366019\r\nЧеченская Республика, Грозненский муниципальный район, п. Долинский , б/у, б/н\r\n","село","27.09.2016 г.",14865,89193]
[null,null,null,105,15,"МБОУ ДО  «Дом юных техников Гудермесского муниципального района»","Гудермес, ул. Кирова, 171","город","9 сентября 2015 г.",14865,89193]
[null,null,null,210,30,"МБУ ДО  \"Веденский районный центр детско-юнощеского технического творчества\"","Веденский р-он,                          с. Ведено,ул. Исаева 7","село "," 28.12.2015г ",17475,104852]
[null,null,null,105,15,"МБУ ДО  «Наурский Центр детско-юношеского технического творчества»","366128, ЧР, Наурский район, ст. Наурская, ул.Джона Рида, дом 47а","село","25 ноября 2015г.",20085,120512]
[null,null,null,105,15,"МБУ ДО \"Дом юных техников Грозненского муниципального района\"","ЧР, Грозненский район, село Садовое, ул. М.Д. Бахмадова, 35","село","09.10.2020г",20085,120512]
[null,null,null,105,15,"МБУ ДО  \"Ножай-Юртовский районный центр детско-юношескоготехнического творчества\"","366241. Ножай-Юртовский район, с.Ножай-Юрт, ул.А.А.Кадырова,108","село","21.12.2015г.",20085,120512]
[null,null,null,105,15,"МБУ ДО \"Станция детского (юношеского)технического творчества г.Грозного\"","г. Грозный, ул. Кутузова, 11","Город","22.09.2015 г.",20085,120512]
[null,"6.","Туристско-краеведческая",224,32,"ГБУ ДО «Республиканский детско-юношеский  центр физического воспитания, \nспорта и туризма»\n","364007, Чеченская Республика, г. Грозный, ул. Даудова, 94а.","город"," 6 декабря 2021г.\n",15946,95677]
[null,null,null,105,15,"МБУ ДО \"Надтеречный  Дом-детско юношеского туризма и экскурсий\"","Адрес: 366832 Чеченская Республика, Надтеречный район, с.п. Знаменское, ул. Ш. Хасанова, 146","село","4 февраля 2016 г.",29278,175669]
[null,null,null,224,32,"МБУ ДО \"Ножай-Юртовский районный центр детско-юношеского туризма и краеведения\"","366241. Ножай-Юртовский район, с.Ножай-Юрт, ул.А.А.Кадырова,108","село","21.12.2015г.",15946,95677]
[null,null,null,224,32,"МБУ ДО  \"Дом детвско-юношеского туризма и экскурсий Серноводского муниципального района»","ЧР Серноводский район. с.Серноводское ул. Мичурина, 4а.","село"," 13.10.2020г.",15946,95677]
[null,null,null,224,32,"МБУ ДО \"Дом-детско юношеского туризма и экскурсий Грозненского муниципального района\"","366030, ЧР, Грозненский район, с. Центора-Юрт, ул. Аксайская 30","село","8.07.2021 г.",15946,95677]
[null,null,null,119,17,"МБУ ДО «Наурский Центр детско-юношеского туризма и краеведения»","366128, Чеченская Республика, Наурский район, ст. Наурская, ул. Алленова , 33.","село","05 ноября 2015г.",4182,25095]
[null,null,null,119,17,"МБУ ДО  \"Дом детско-юношеского туризма и экскурсий\" Гудермесского муниципального района","366200, Российская Федерация, Чеченская Республика, Гудермесский р-н, г. Гудермес, пер. Пожарный, 3.","город","9 сентября 2015 г.",4182,25095]
[null,null,null,119,17,"МБУ ДО \"Веденский районный центр детско-юношеского туризма  и экскурсий\"","Веденский район, с.Ведено, ул. Крепостная,1","село","15.02.2016г.",4182,25095]
[null,null,"Итого:",7545,1076,null,null,null,null,703468,4220933]

{"sheet":"Форма3","index":2,"n_rows":1009,"n_cols":32,"rows_kept":1009,"cut":false,"hidden":true,"merged":[[6,1,6,11]]}
[null,null,null,null,null,null,null,null,null,null,null,null,null,null,null,null,null,null,null,null,null,null,null,null,null,null,null,null,null,null,null,0]
[]
[]
[]
[]
[]
[null,"Перечень средств обучения и воспитания в разрезе направленностей, ДОП и образовательных организаций"]
[null,"Наименование организации","Адрес организации","Вид населенного пункта\n(город, ПГТ, село)","Направленность дополнительной общеразвивающей  программы, планируемой к реализации с использованием перечисленного оборудования","Наименование дополнительной общеразвивающей  программы, планируемой к реализации с использованием перечисленного оборудования","№\n(i)","Наименование оборудования","Номер пункта Примерного перечня средств обучения и воспитания в целях создания новых мест в образовательных организациях различных типов для реализации ДОП всех направленностей (Приложение 3 Методрекомендаций) или описание оборудования","Количество одновременных пользователей\n(Ni)","Примерная рыночная стоимость позиции, руб.\n(Ci)\n","Стоимость данной позиции в расчете на одного человека, руб.\n(Si = Ci / Ni)\n"]
[null,1,2,3,4,5,6,7,8,9,10,11]
[null,{"$f":"[1]Форма3!B10","v":"ГБУ ДО «Республиканский детско-юношеский  центр физического воспитания, \nспорта и туризма»\n"},{"$f":"[1]Форма3!C10","v":"364007, Чеченская Республика, г. Грозный, ул. Даудова, 94а."},{"$f":"[1]Форма3!D10","v":"город"},{"$f":"[1]Форма3!E10","v":"Туристско-краеведческая"},{"$f":"[1]Форма3!F10","v":"Велотуризм"},{"$f":"[1]Форма3!G10","v":1},{"$f":"[1]Форма3!H10","v":"Велосипед (17 шт.)"},{"$f":"[1]Форма3!I10","v":"5.29."},{"$f":"[1]Форма3!J10","v":1},{"$f":"[1]Форма3!K10","v":41084},{"$f":"IF(J10 >0, K10/J10, \"\")","v":41084}]
[null,{"$f":"[1]Форма3!B11","v":41084},{"$f":"[1]Форма3!C11","v":41084},{"$f":"[1]Форма3!D11","v":41084},{"$f":"[1]Форма3!E11","v":"Туристско-краеведческая"},{"$f":"[1]Форма3!F11","v":"Велотуризм"},{"$f":"[1]Форма3!G11","v":2},{"$f":"[1]Форма3!H11","v":"Каска (17 шт.)"},{"$f":"[1]Форма3!I11","v":"5.31."},{"$f":"[1]Форма3!J11","v":1},{"$f":"[1]Форма3!K11","v":3866},{"$f":"IF(J11 >0, K11/J11, \"\")","v":3866}]
[null,{"$f":"[1]Форма3!B12","v":3866},{"$f":"[1]Форма3!C12","v":3866},{"$f":"[1]Форма3!D12","v":3866},{"$f":"[1]Форма3!E12","v":"Туристско-краеведческая"},{"$f":"[1]Форма3!F12","v":"Велотуризм"},{"$f":"[1]Форма3!G12","v":3},{"$f":"[1]Форма3!H12","v":"Рюкзак велосипедный (17 шт.)"},{"$f":"[1]Форма3!I12","v":"5.30."},{"$f":"[1]Форма3!J12","v":1},{"$f":"[1]Форма3!K12","v":6028},6028]
[null,"МБУ ДО \"Науский центр детско-юношеского  туризма и краеведения\"",{"$f":"[1]Форма3!C76","v":"366128, Чеченская Республика, Наурский район, ст. Наурская, ул. Алленова , 33."},{"$f":"[1]Форма3!D76","v":"село"},{"$f":"[1]Форма3!E76","v":"Туристско-краеведческая"},{"$f":"[1]Форма3!F76","v":"Велотуризм"},{"$f":"[1]Форма3!G76","v":1},{"$f":"[1]Форма3!H76","v":"Велосипед (17 шт.)"},{"$f":"[1]Форма3!I76","v":"5.29."},{"$f":"[1]Форма3!J76","v":1},{"$f":"[1]Форма3!K76","v":41084},{"$f":"IF(J13 >0, K13/J13, \"\")","v":41084}]
[null,{"$f":"[1]Форма3!B77","v":41084},{"$f":"[1]Форма3!C77","v":41084},{"$f":"[1]Форма3!D77","v":41084},{"$f":"[1]Форма3!E77","v":"Туристско-краеведческая"},{"$f":"[1]Форма3!F77","v":"Велотуризм"},{"$f":"[1]Форма3!G77","v":2},{"$f":"[1]Форма3!H77","v":"Каска (17 шт.)"},{"$f":"[1]Форма3!I77","v":"5.31."},{"$f":"[1]Форма3!J77","v":1},{"$f":"[1]Форма3!K77","v":3866},{"$f":"IF(J14 >0, K14/J14, \"\")","v":3866}]
[null,{"$f":"[1]Форма3!B78","v":3866},{"$f":"[1]Форма3!C78","v":3866},{"$f":"[1]Форма3!D78","v":3866},{"$f":"[1]Форма3!E78","v":"Туристско-краеведческая"},{"$f":"[1]Форма3!F78","v":"Велотуризм"},{"$f":"[1]Форма3!G78","v":3},{"$f":"[1]Форма3!H78","v":"Рюкзак велосипедный (17 шт.)"},{"$f":"[1]Форма3!I78","v":"5.30."},{"$f":"[1]Форма3!J78","v":1},{"$f":"[1]Форма3!K78","v":6028},{"$f":"IF(J15 >0, K15/J15, \"\")","v":6028}]
[null,"МБУ ДО \"Дом детско-юношеского туризма и экскурсии Гудермесского муниципального района\"",{"$f":"[1]Форма3!C79","v":"ЧР 366208 г. Гудермес ул. Х Исаева 18"},{"$f":"[1]Форма3!D79","v":"город"},{"$f":"[1]Форма3!E79","v":"Туристско-краеведческая"},{"$f":"[1]Форма3!F79","v":"Велотуризм"},{"$f":"[1]Форма3!G79","v":1},{"$f":"[1]Форма3!H79","v":"Велосипед (17 шт.)"},{"$f":"[1]Форма3!I79","v":"5.29."},{"$f":"[1]Форма3!J79","v":1},{"$f":"[1]Форма3!K79","v":41084},41084]
[null,{"$f":"[1]Форма3!B80","v":41084},{"$f":"[1]Форма3!C80","v":41084},{"$f":"[1]Форма3!D80","v":41084},{"$f":"[1]Форма3!E80","v":"Туристско-краеведческая"},{"$f":"[1]Форма3!F80","v":"Велотуризм"},{"$f":"[1]Форма3!G80","v":2},{"$f":"[1]Форма3!H80","v":"Каска (17 шт.)"},{"$f":"[1]Форма3!I80","v":"5.31."},{"$f":"[1]Форма3!J80","v":1},{"$f":"[1]Форма3!K80","v":3866},3866]
[null,{"$f":"[1]Форма3!B81","v":3866},{"$f":"[1]Форма3!C81","v":3866},{"$f":"[1]Форма3!D81","v":3866},{"$f":"[1]Форма3!E81","v":"Туристско-краеведческая"},{"$f":"[1]Форма3!F81","v":"Велотуризм"},{"$f":"[1]Форма3!G81","v":3},{"$f":"[1]Форма3!H81","v":"Рюкзак велосипедный (17 шт.)"},{"$f":"[1]Форма3!I81","v":"5.30."},{"$f":"[1]Форма3!J81","v":1},{"$f":"[1]Форма3!K81","v":6028},6028]
[null,"МБУ ДО \"Веденский районный центр детско-юношеского туризма  и экскурсий\"","Веденский район, с.Ведено, ул. Крепостная,1","село","Туристско-краеведческая","Велотуризм",1,"Велосипед (17 шт.)","5.29.",1,41084,41084]
[null,null,null,null,"Туристско-краеведческая","Велотуризм",2,"Каска (17 шт.)","5.31.",1,3866,3866]
[null,null,null,null,"Туристско-краеведческая","Велотуризм",3,"Рюкзак велосипедный (17 шт.)","5.30.",1,6028,6028]
[null,"МБУ ДО \"Дом детвско-юношеского туризма и экскурсий Серноводского муниципального района»","ЧР Серноводский район. с.Серноводское ул. Мичурина, 4а.","село","Туристско-краеведческая","Велотуризм",1,"Велосипед (17 шт.)","5.29.",1,41084,41084]
[null,null,null,null,"Туристско-краеведческая","Велотуризм",2,"Каска (17 шт.)","5.31.",1,3866,3866]
[null,null,null,null,"Туристско-краеведческая","Велотуризм",3,"Рюкзак велосипедный (17 шт.)","5.30.",1,6028,6028]
[null,"МБУ ДО \"Дом Детского творчество Байсангуровского района г.Грозного\"","ЧР, г.Грозный ,Байсангуровский район, ул.Сайханова 133 Б","город","Туристско-краеведческая","Велотуризм",1,"Велосипед (17 шт.)","5.29.",1,41084,41084]
[null,null,null,null,"Туристско-краеведческая","Велотуризм",2,"Каска (17 шт.)","5.31.",1,3866,3866]
[null,null,null,null,"Туристско-краеведческая","Велотуризм",3,"Рюкзак велосипедный (17 шт.)","5.30.",1,6028,6028]
[null,"МБУ ДО \"Ножай-Юртовский районный центр детско-юношеского туризма и краеведения\"","366241. Ножай-Юртовский район, с.Ножай-Юрт, ул.А.А.Кадырова,108","село","Туристско-краеведческая","Велотуризм",1,"Велосипед (17 шт.)","5.29.",1,41084,41084]
[null,null,null,null,"Туристско-краеведческая","Велотуризм",2,"Каска (17 шт.)","5.31.",1,3866,3866]
[null,null,null,null,"Туристско-краеведческая","Велотуризм",3,"Рюкзак велосипедный (17 шт.)","5.30.",1,6028,6028]
[null,"МБУ ДО \"Дом детско-юношеского туризма и экскурсии  Грозненского муниципального района\"","366030, ЧР, Грозненский район, с. Центора-Юрт, ул. Аксайская 30","село ","Туристско-краеведческая","Велотуризм",1,"Велосипед (17 шт.)","5.29.",1,41084,41084]
[null,null,null,null,"Туристско-краеведческая","Велотуризм",2,"Каска (17 шт.)","5.31.",1,3866,3866]
[null,null,null,null,"Туристско-краеведческая","Велотуризм",3,"Рюкзак велосипедный (17 шт.)","5.30.",1,6028,6028]
[null,"ГБУ ДО «Республиканский детско-юношеский  центр физического воспитания, \nспорта и туризма»\n","364007, Чеченская Республика, г. Грозный, ул. Даудова, 94а.","город","Туристско-краеведческая","Исследовательское краеведение. Площадки «Топос»",1,"Мобильный скалодром 3х6 м (1 шт.)","Конструкция-мобильный, Максимальное нависание- без нависания, Вес груза (кг) (основные)\r\n650, В комплекте-100 зацепов, точки верхней страховки, Ширина (м) не менее 3, Высота (м) не менее 6\r\n",1,780000,780000]
[null,null,null,null,"Туристско-краеведческая","Исследовательское краеведение. Площадки «Топос»",2,"Принтер лазерный цветной (1 шт.)","8.4.2.",1,80000,80000]
[null,null,null,null,"Туристско-краеведческая","Исследовательское краеведение. Площадки «Топос»",3,"Брошюровщик механический (1 шт.)","8.4.7.",1,8000,8000]
[null,null,null,null,"Туристско-краеведческая","Исследовательское краеведение. Площадки «Топос»",4,"Ламинатор (1шт.)","8.4.8.",1,9000,9000]
[null,null,null,null,"Туристско-краеведческая","Исследовательское краеведение. Площадки «Топос»",5,"Ноутбук (2 шт.)","Форм-фактор: ноутбук; \nРазмер диагонали: не менее 15.6 дюймов;\nРазрешение экрана: Full HD, Quad HD или Ultra HD;\nОбщий объем установленной оперативной памяти: не менее 8 Гбайт; \nМаксимальный общий поддерживаемый объем оперативной памяти: не менее 16 Гбайт",8,120000,15000]
[null,null,null,null,"Туристско-краеведческая","Исследовательское краеведение. Площадки «Топос»",6,"Квадракоптер (1 шт.)","8.6.1.Аккумулятор 5870 мА·ч, Время полета (минуты) 30, Дальность действия аппаратуры (м) 4000, Разрешение видеозаписи 1920x1080, Количество винтов 4, поддерживаемое мобильное приложение iOS / Android, Максимальная скорость полета (м/с) 20",1,150000,150000]
[null,null,null,null,"Туристско-краеведческая","Исследовательское краеведение. Площадки «Топос»",7,"Экшн-камеры (3 шт.)","Разновидность камиер, предназначенных для съемки во время движения\r\nМаксимальное разрешение видеозаписи - 5120 х 2160 30 кадров/сек, Стабилизатор \r\nизображения – цифровой, Прямые трансляции в FullHD, Веб-камера в FullHD, \r\nвстроенный дисплей – цветной, запись звука – есть, встроенный микрофон – есть, \r\nводонепроницаемость корпуса, встроенный динамик - есть. Максимальный объем \r\nкарты памяти - 128 ГБ, Wi-Fi, USB, Кабель USB, кейс, универсальное крепление на \r\nголову",1,15000,15000]
[null,null,null,null,"Туристско-краеведческая","Исследовательское краеведение. Площадки «Топос»",8,"Флипчарт (1 шт.)","8.1.9.Функциональное назначениеДля письма маркером, Для крепления информации магнитами\nТип доскиПередвижная (мобильная)\nКоличество рабочих поверхностей2\nМатериал покрытия рабочей поверхностиАнтибликовое полимерное\nПроизводительАэлита\nРазметка рабочей поверхностине предусмотрена\nМатериал профиля (окантовки)Металл",4,16640,4160]
[null,"МБУ ДО  \"Дом детвско-юношеского туризма и экскурсий Серноводского муниципального района»","ЧР Серноводский район. с.Серноводское ул. Мичурина, 4а.","село ","Туристско-краеведческая","Исследовательское краеведение. Площадки «Топос»",1,"Мобильный скалодром 3х6 м (1 шт.)","Конструкция-мобильный, Максимальное нависание- без нависания, Вес груза (кг) (основные)\r\n650, В комплекте-100 зацепов, точки верхней страховки, Ширина (м) не менее 3, Высота (м) не менее 6\r\n",1,780000,780000]
[null,null,null,null,"Туристско-краеведческая","Исследовательское краеведение. Площадки «Топос»",2,"Принтер лазерный цветной (1 шт.)","8.4.2.",1,80000,80000]
[null,null,null,null,"Туристско-краеведческая","Исследовательское краеведение. Площадки «Топос»",3,"Брошюровщик механический (1 шт.)","8.4.7.",1,8000,8000]
[null,null,null,null,"Туристско-краеведческая","Исследовательское краеведение. Площадки «Топос»",4,"Ламинатор (1шт.)","8.4.8.",1,9000,9000]
[null,null,null,null,"Туристско-краеведческая","Исследовательское краеведение. Площадки «Топос»",5,"Ноутбук (2 шт.)","Форм-фактор: ноутбук; \nРазмер диагонали: не менее 15.6 дюймов;\nРазрешение экрана: Full HD, Quad HD или Ultra HD;\nОбщий объем установленной оперативной памяти: не менее 8 Гбайт; \nМаксимальный общий поддерживаемый объем оперативной памяти: не менее 16 Гбайт",8,120000,15000]
[null,null,null,null,"Туристско-краеведческая","Исследовательское краеведение. Площадки «Топос»",6,"Квадракоптер (1 шт.)","8.6.1.Аккумулятор 5870 мА·ч, Время полета (минуты) 30, Дальность действия аппаратуры (м) 4000, Разрешение видеозаписи 1920x1080, Количество винтов 4, поддерживаемое мобильное приложение iOS / Android, Максимальная скорость полета (м/с) 20",1,150000,150000]
[null,null,null,null,"Туристско-краеведческая","Исследовательское краеведение. Площадки «Топос»",7,"Экшн-камеры (3 шт.)","Разновидность камиер, предназначенных для съемки во время движения\r\nМаксимальное разрешение видеозаписи - 5120 х 2160 30 кадров/сек, Стабилизатор \r\nизображения – цифровой, Прямые трансляции в FullHD, Веб-камера в FullHD, \r\nвстроенный дисплей – цветной, запись звука – есть, встроенный микрофон – есть, \r\nводонепроницаемость корпуса, встроенный динамик - есть. Максимальный объем \r\nкарты памяти - 128 ГБ, Wi-Fi, USB, Кабель USB, кейс, универсальное крепление на \r\nголову",1,15000,15000]
[null,null,null,null,"Туристско-краеведческая","Исследовательское краеведение. Площадки «Топос»",8,"Флипчарт (1 шт.)","8.1.9.Функциональное назначениеДля письма маркером, Для крепления информации магнитами\nТип доскиПередвижная (мобильная)\nКоличество рабочих поверхностей2\nМатериал покрытия рабочей поверхностиАнтибликовое полимерное\nПроизводительАэлита\nРазметка рабочей поверхностине предусмотрена\nМатериал профиля (окантовки)Металл",4,16640,4160]
[null,"МБУ ДО \"Ножай-Юртовский районный центр детско-юношеского туризма и краеведения\"","366241. Ножай-Юртовский район, с.Ножай-Юрт, ул.А.А.Кадырова,108","село","Туристско-краеведческая","Исследовательское краеведение. Площадки «Топос»",1,"Мобильный скалодром 3х6 м (1 шт.)","Конструкция-мобильный, Максимальное нависание- без нависания, Вес груза (кг) (основные)\r\n650, В комплекте-100 зацепов, точки верхней страховки, Ширина (м) не менее 3, Высота (м) не менее 6\r\n",1,780000,780000]
[null,null,null,null,"Туристско-краеведческая","Исследовательское краеведение. Площадки «Топос»",2,"Принтер лазерный цветной (1 шт.)","8.4.2.",1,80000,80000]
[null,null,null,null,"Туристско-краеведческая","Исследовательское краеведение. Площадки «Топос»",3,"Брошюровщик механический (1 шт.)","8.4.7.",1,8000,8000]
[null,null,null,null,"Туристско-краеведческая","Исследовательское краеведение. Площадки «Топос»",4,"Ламинатор (1шт.)","8.4.8.",1,9000,9000]
[null,null,null,null,"Туристско-краеведческая","Исследовательское краеведение. Площадки «Топос»",5,"Ноутбук (2 шт.)","Форм-фактор: ноутбук; \nРазмер диагонали: не менее 15.6 дюймов;\nРазрешение экрана: Full HD, Quad HD или Ultra HD;\nОбщий объем установленной оперативной памяти: не менее 8 Гбайт; \nМаксимальный общий поддерживаемый объем оперативной памяти: не менее 16 Гбайт",8,120000,15000]
[null,null,null,null,"Туристско-краеведческая","Исследовательское краеведение. Площадки «Топос»",6,"Квадракоптер (1 шт.)","8.6.1.Аккумулятор 5870 мА·ч, Время полета (минуты) 30, Дальность действия аппаратуры (м) 4000, Разрешение видеозаписи 1920x1080, Количество винтов 4, поддерживаемое мобильное приложение iOS / Android, Максимальная скорость полета (м/с) 20",1,150000,150000]
[null,null,null,null,"Туристско-краеведческая","Исследовательское краеведение. Площадки «Топос»",7,"Экшн-камеры (3 шт.)","Разновидность камиер, предназначенных для съемки во время движения\r\nМаксимальное разрешение видеозаписи - 5120 х 2160 30 кадров/сек, Стабилизатор \r\nизображения – цифровой, Прямые трансляции в FullHD, Веб-камера в FullHD, \r\nвстроенный дисплей – цветной, запись звука – есть, встроенный микрофон – есть, \r\nводонепроницаемость корпуса, встроенный динамик - есть. Максимальный объем \r\nкарты памяти - 128 ГБ, Wi-Fi, USB, Кабель USB, кейс, универсальное крепление на \r\nголову",1,15000,15000]
[null,null,null,null,"Туристско-краеведческая","Исследовательское краеведение. Площадки «Топос»",8,"Флипчарт (1 шт.)","8.1.9.Функциональное назначениеДля письма маркером, Для крепления информации магнитами\nТип доскиПередвижная (мобильная)\nКоличество рабочих поверхностей2\nМатериал покрытия рабочей поверхностиАнтибликовое полимерное\nПроизводительАэлита\nРазметка рабочей поверхностине предусмотрена\nМатериал профиля (окантовки)Металл",4,16640,4160]
[null,"МБУ ДО \" Дом детско-юношеского туризма и экскурсии   Грозненского муниципального района\"","366030, ЧР, Грозненский район, с. Центора-Юрт, ул. Аксайская 30","село","Туристско-краеведческая","Исследовательское краеведение. Площадки «Топос»",1,"Мобильный скалодром 3х6 м (1 шт.)","Конструкция-мобильный, Максимальное нависание- без нависания, Вес груза (кг) (основные)\r\n650, В комплекте-100 зацепов, точки верхней страховки, Ширина (м) не менее 3, Высота (м) не менее 6\r\n",1,780000,780000]
[null,null,null,null,"Туристско-краеведческая","Исследовательское краеведение. Площадки «Топос»",2,"Брошюровщик механический (1 шт.)","8.4.7.",1,8000,8000]
[null,null,null,null,"Туристско-краеведческая","Исследовательское краеведение. Площадки «Топос»",3,"Ламинатор (1шт.)","8.4.8.",1,9000,9000]
[null,null,null,null,"Туристско-краеведческая","Исследовательское краеведение. Площадки «Топос»",4,"Ноутбук (2 шт.)","Форм-фактор: ноутбук; \nРазмер диагонали: не менее 15.6 дюймов;\nРазрешение экрана: Full HD, Quad HD или Ultra HD;\nОбщий объем установленной оперативной памяти: не менее 8 Гбайт; \nМаксимальный общий поддерживаемый объем оперативной памяти: не менее 16 Гбайт",8,120000,15000]
[null,null,null,null,"Туристско-краеведческая","Исследовательское краеведение. Площадки «Топос»",5,"Квадракоптер (1 шт.)","8.6.1.Аккумулятор 5870 мА·ч, Время полета (минуты) 30, Дальность действия аппаратуры (м) 4000, Разрешение видеозаписи 1920x1080, Количество винтов 4, поддерживаемое мобильное приложение iOS / Android, Максимальная скорость полета (м/с) 20",1,150000,150000]
[null,null,null,null,"Туристско-краеведческая","Исследовательское краеведение. Площадки «Топос»",6,"Экшн-камеры (3 шт.)","Разновидность камиер, предназначенных для съемки во время движения\r\nМаксимальное разрешение видеозаписи - 5120 х 2160 30 кадров/сек, Стабилизатор \r\nизображения – цифровой, Прямые трансляции в FullHD, Веб-камера в FullHD, \r\nвстроенный дисплей – цветной, запись звука – есть, встроенный микрофон – есть, \r\nводонепроницаемость корпуса, встроенный динамик - есть. Максимальный объем \r\nкарты памяти - 128 ГБ, Wi-Fi, USB, Кабель USB, кейс, универсальное крепление на \r\nголову",1,15000,15000]
[null,null,null,null,"Туристско-краеведческая","Исследовательское краеведение. Площадки «Топос»",7,"Флипчарт (1 шт.)","8.1.9.Функциональное назначениеДля письма маркером, Для крепления информации магнитами\nТип доскиПередвижная (мобильная)\nКоличество рабочих поверхностей2\nМатериал покрытия рабочей поверхностиАнтибликовое полимерное\nПроизводительАэлита\nРазметка рабочей поверхностине предусмотрена\nМатериал профиля (окантовки)Металл",4,16640,4160]
[null,"МБУ ДО \"Надтеречный Дом детско-юношеского туризма и экскурсии\"","Адрес: 366832 Чеченская Республика, Надтеречный район, с.п. Знаменское, ул. Ш. Хасанова, 146","село","Туристско-краеведческая","Исследовательское краеведение. Площадки «Топос»",1,"Мобильный скалодром 3х6 м (1 шт.)","Конструкция-мобильный, Максимальное нависание- без нависания, Вес груза (кг) (основные)\r\n650, В комплекте-100 зацепов, точки верхней страховки, Ширина (м) не менее 3, Высота (м) не менее 6\r\n",1,780000,780000]
[null,null,null,null,"Туристско-краеведческая","Исследовательское краеведение. Площадки «Топос»",2,"Брошюровщик механический (1 шт.)","8.4.7.",1,8000,8000]
[null,null,null,null,"Туристско-краеведческая","Исследовательское краеведение. Площадки «Топос»",3,"Ламинатор (1шт.)","8.4.8.",1,9000,9000]
[null,null,null,null,"Туристско-краеведческая","Исследовательское краеведение. Площадки «Топос»",4,"Ноутбук (2 шт.)","Форм-фактор: ноутбук; \nРазмер диагонали: не менее 15.6 дюймов;\nРазрешение экрана: Full HD, Quad HD или Ultra HD;\nОбщий объем установленной оперативной памяти: не менее 8 Гбайт; \nМаксимальный общий поддерживаемый объем оперативной памяти: не менее 16 Гбайт",8,120000,15000]
[null,null,null,null,"Туристско-краеведческая","Исследовательское краеведение. Площадки «Топос»",5,"Квадракоптер (1 шт.)","8.6.1.Аккумулятор 5870 мА·ч, Время полета (минуты) 30, Дальность действия аппаратуры (м) 4000, Разрешение видеозаписи 1920x1080, Количество винтов 4, поддерживаемое мобильное приложение iOS / Android, Максимальная скорость полета (м/с) 20",1,150000,150000]
[null,null,null,null,"Туристско-краеведческая","Исследовательское краеведение. Площадки «Топос»",6,"Экшн-камеры (3 шт.)","Разновидность камиер, предназначенных для съемки во время движения\r\nМаксимальное разрешение видеозаписи - 5120 х 2160 30 кадров/сек, Стабилизатор \r\nизображения – цифровой, Прямые трансляции в FullHD, Веб-камера в FullHD, \r\nвстроенный дисплей – цветной, запись звука – есть, встроенный микрофон – есть, \r\nводонепроницаемость корпуса, встроенный динамик - есть. Максимальный объем \r\nкарты памяти - 128 ГБ, Wi-Fi, USB, Кабель USB, кейс, универсальное крепление на \r\nголову",1,15000,15000]
[null,null,null,null,"Туристско-краеведческая","Исследовательское краеведение. Площадки «Топос»",7,"Флипчарт (1 шт.)","8.1.9.Функциональное назначениеДля письма маркером, Для крепления информации магнитами\nТип доскиПередвижная (мобильная)\nКоличество рабочих поверхностей2\nМатериал покрытия рабочей поверхностиАнтибликовое полимерное\nПроизводительАэлита\nРазметка рабочей поверхностине предусмотрена\nМатериал профиля (окантовки)Металл",4,16640,4160]
[null,"ГБУ ДО \"Республиканский эколого-биологический центр\"","Г. Грозный, Строительная, 17","город","Естественнонаучная","человек и его здоровье ",1,"Цифровая лаборатория по физиологии (12 шт.)","5.17.",1,150000,150000]
[null,null,null,null,"Естественнонаучная","человек и его здоровье ",2,"Интерактивный анатомический стол (1 шт.)","5.11. Интерактивный анатомический стол «Пирогов», модель «Пирогов I»",13,5500000,423076.92307692306]
[null,null,null,null,"Естественнонаучная","человек и его здоровье ",3,"Учебно-демонстрационный комплекс по физиологии человека (2 шт.)","1. Сенсор электрической активности мозга;\r\n2. Сенсор мышечной электрической активности;\r\n3. Сенсор сердечной электрической активности;\r\n4. Сенсор кожно-гальванической реакции;\r\n5. Сенсор регистрации колебаний грудной клетки;\r\n6. Устройство для регистрации артериального давления;\r\n7. Сенсор пульсоксиметрии для оценки насыщения кислородом крови человека,\r\n8. Сенсор регистрации выдыхаемого человеком объема воздуха;\r\n9. Центральный модуль приема/передачи данных на компьютер, до 4 сенсоров одновременно;\r\n10. Динамометр;\r\n11. Программное обеспечение;\r\n12. Методическое пособие для проведения опытов и лабораторных работ;\r\n13. Набор одноразовых гелевых медицинских электродов;\r\n14. Гель для дезинфекции;\r\n15. Модуль для разметки регистрируемых данных.",6,211501,35250.166666666664]
[null,null,null,null,"Естественнонаучная","человек и его здоровье ",4,"Ноутбук (2 шт.)","Форм-фактор: ноутбук; \nРазмер диагонали: не менее 15.6 дюймов;\nРазрешение экрана: Full HD, Quad HD или Ultra HD;\nОбщий объем установленной оперативной памяти: не менее 8 Гбайт; \nМаксимальный общий поддерживаемый объем оперативной памяти: не менее 16 Гбайт; \nОбъем SSD накопителя: не менее 240 Гбайт;\nБеспроводная связь: Wi-Fi; \nКоличество встроенных в корпус портов USB: не менее 2, из которых не менее 1 должно быть USB версии не ниже 3.0;\nРазрешение вэб-камеры, Мпиксель: не менее 0.3;\nВстроенный микрофон;",6,120000,{"$f":"IF(J75 >0, K75/J75, \"\")","v":20000}]
[null,"ГБОУ  \"Гудермесская средняя школа им. Усмана Ахмаровича Оздамирова\" ","366203, Чеченская Республика, г.Гудермес, ул. Промышленная, 1-а","город","Естественнонаучная","человек и его здоровье ",1,"Цифровая лаборатория по физиологии (8 шт.)","5.17.",2,150000,75000]
[null,null,null,null,"Естественнонаучная","человек и его здоровье ",2,"Интерактивный анатомический стол (1 шт.)","5.11. Интерактивный анатомический стол «Пирогов», модель «Пирогов I»",13,5500000,423076.92307692306]
[null,null,null,null,"Естественнонаучная","человек и его здоровье ",3,"Учебно-демонстрационный комплекс по физиологии человека (1 шт.)","1. Сенсор электрической активности мозга;\r\n2. Сенсор мышечной электрической активности;\r\n3. Сенсор сердечной электрической активности;\r\n4. Сенсор кожно-гальванической реакции;\r\n5. Сенсор регистрации колебаний грудной клетки;\r\n6. Устройство для регистрации артериального давления;\r\n7. Сенсор пульсоксиметрии для оценки насыщения кислородом крови человека,\r\n8. Сенсор регистрации выдыхаемого человеком объема воздуха;\r\n9. Центральный модуль приема/передачи данных на компьютер, до 4 сенсоров одновременно;\r\n10. Динамометр;\r\n11. Программное обеспечение;\r\n12. Методическое пособие для проведения опытов и лабораторных работ;\r\n13. Набор одноразовых гелевых медицинских электродов;\r\n14. Гель для дезинфекции;\r\n15. Модуль для разметки регистрируемых данных.",13,211501,16269.307692307691]
[null,null,null,null,"Естественнонаучная","человек и его здоровье ",4,"Ноутбук (2 шт.)","Форм-фактор: ноутбук; \nРазмер диагонали: не менее 15.6 дюймов;\nРазрешение экрана: Full HD, Quad HD или Ultra HD;\nОбщий объем установленной оперативной памяти: не менее 8 Гбайт; \nМаксимальный общий поддерживаемый объем оперативной памяти: не менее 16 Гбайт; \nОбъем SSD накопителя: не менее 240 Гбайт;\nБеспроводная связь: Wi-Fi; \nКоличество встроенных в корпус портов USB: не менее 2, из которых не менее 1 должно быть USB версии не ниже 3.0;\nРазрешение вэб-камеры, Мпиксель: не менее 0.3;\nВстроенный микрофон;",6,120000,20000]
[null,"ГБНОУ \"Республиканский комплекс общего и дополнительного образования \"Квант\"","Грозный, Ахматовский район, ул. Федеративная 12","город","Естественнонаучная","человек и его здоровье ",1,"Цифровая лаборатория по физиологии (5шт.)","5.17.",3,150000,50000]
[null,null,null,null,"Естественнонаучная","человек и его здоровье ",2,"Интерактивный анатомический стол (1 шт.)","5.11. Интерактивный анатомический стол «Пирогов», модель «Пирогов I»",13,5500000,423076.92307692306]
[null,null,null,null,"Естественнонаучная","человек и его здоровье ",3,"Учебно-демонстрационный комплекс по физиологии человека (1 шт.)","1. Сенсор электрической активности мозга;\r\n2. Сенсор мышечной электрической активности;\r\n3. Сенсор сердечной электрической активности;\r\n4. Сенсор кожно-гальванической реакции;\r\n5. Сенсор регистрации колебаний грудной клетки;\r\n6. Устройство для регистрации артериального давления;\r\n7. Сенсор пульсоксиметрии для оценки насыщения кислородом крови человека,\r\n8. Сенсор регистрации выдыхаемого человеком объема воздуха;\r\n9. Центральный модуль приема/передачи данных на компьютер, до 4 сенсоров одновременно;\r\n10. Динамометр;\r\n11. Программное обеспечение;\r\n12. Методическое пособие для проведения опытов и лабораторных работ;\r\n13. Набор одноразовых гелевых медицинских электродов;\r\n14. Гель для дезинфекции;\r\n15. Модуль для разметки регистрируемых данных.",13,211501,16269.307692307691]
[null,"МБУ ДО «Дом детского творчества Шейх- Мансуровского района»","г. Грозный, ул. Мамсурова, 22","город","Естественнонаучная","Ботаника и зоология",1,"Ноутбук (1 шт.)","Форм-фактор: ноутбук; \nРазмер диагонали: не менее 15.6 дюймов;\nРазрешение экрана: Full HD, Quad HD или Ultra HD;\nОбщий объем установленной оперативной памяти: не менее 8 Гбайт; \nМаксимальный общий поддерживаемый объем оперативной памяти: не менее 16 Гбайт",16,120000,7500]
[null,null,null,null,"Естественнонаучная","Ботаника и зоология",2,"Набор химической посуды (4 шт.)","2.39.",4,20200,5050]
[null,null,null,null,"Естественнонаучная","Ботаника и зоология",3,"микроскоп световой (2 шт.)","2.41. Увеличение микроскопа, крат 40 - 1600 (20 - 2000 - опция), Визуальная насадка,тип  -монокулярная, Угол наклона визуальной насадки 45 град, Револьверное устройство- на 4 объектива, Окуляры, крат 10/18; 16/15; (5/18; 12,5/15; 20/11 - опция), Тип корре",8,70000,8750]
[null,null,null,null,"Естественнонаучная","Ботаника и зоология",4,"Набор микроскопических препаратов (1 комплект)","2.74.",16,60000,3750]
[null,null,null,null,"Естественнонаучная","Ботаника и зоология",5,"Цифровая теплица (5шт.)","Лаборатория Биолога",3,146000,48666.666666666664]
[null,null,null,null,"Естественнонаучная","Ботаника и зоология",6,"Цифровая лаборатория по экологии (полевая) (5 шт.)","4.39.",3,265000,88333.333333333328]
[null,null,null,null,"Естественнонаучная","Ботаника и зоология",7,"Набор химических реактивов и красителей (4)","2.22.",4,30000,7500]
[null,null,null,null,"Естественнонаучная","Ботаника и зоология",8,"Цифровая лаборатория по биологии (5 шт.)","3.14.",3,73000,24333.333333333332]
[null,"МБУ ДО  \"Центр юных натуралистов и экологов г. Аргуна\"","366310, Чеченская Республика, г. Аргун, ул. М. Кутузова","город","Естественнонаучная","Ботаника и зоология",1,"Ноутбук (1 шт.)","Форм-фактор: ноутбук; \nРазмер диагонали: не менее 15.6 дюймов;\nРазрешение экрана: Full HD, Quad HD или Ultra HD;\nОбщий объем установленной оперативной памяти: не менее 8 Гбайт; \nМаксимальный общий поддерживаемый объем оперативной памяти: не менее 16 Гбайт",16,120000,7500]
[null,null,null,null,"Естественнонаучная","Ботаника и зоология",2,"Набор химической посуды (4 шт.)","2.39.",4,20200,5050]
[null,null,null,null,"Естественнонаучная","Ботаника и зоология",3,"микроскоп световой (2 шт.)","2.41. Увеличение микроскопа, крат 40 - 1600 (20 - 2000 - опция), Визуальная насадка,тип  -монокулярная, Угол наклона визуальной насадки 45 град, Револьверное устройство- на 4 объектива, Окуляры, крат 10/18; 16/15; (5/18; 12,5/15; 20/11 - опция), Тип корре",8,70000,8750]
[null,null,null,null,"Естественнонаучная","Ботаника и зоология",4,"Набор микроскопических препаратов (1 комплект)","2.74.",16,60000,3750]
[null,null,null,null,"Естественнонаучная","Ботаника и зоология",5,"Цифровая теплица (5шт.)","Лаборатория Биолога",3,146000,48666.666666666664]
[null,null,null,null,"Естественнонаучная","Ботаника и зоология",6,"Цифровая лаборатория по экологии (полевая) (5 шт.)","4.39.",3,265000,88333.333333333328]
[null,null,null,null,"Естественнонаучная","Ботаника и зоология",7,"Набор химических реактивов и красителей (4)","2.22.",4,30000,7500]
[null,null,null,null,"Естественнонаучная","Ботаника и зоология",8,"Цифровая лаборатория по биологии (5 шт.)","3.14.",3,73000,24333.333333333332]
[null,"МБУ ДО «Эколого-биологическая станция» Гудермесского муниципального района","366208, Чеченская Республика, Гудермесский район, город Гудермес, проспект А.Кадырова, 17","Город","Естественнонаучная","Ботаника и зоология",1,"Ноутбук (1 шт.)","Форм-фактор: ноутбук; \nРазмер диагонали: не менее 15.6 дюймов;\nРазрешение экрана: Full HD, Quad HD или Ultra HD;\nОбщий объем установленной оперативной памяти: не менее 8 Гбайт; \nМаксимальный общий поддерживаемый объем оперативной памяти: не менее 16 Гбайт",16,120000,7500]
[null,null,null,null,"Естественнонаучная","Ботаника и зоология",2,"Набор химической посуды (4 шт.)","2.39.",4,20200,5050]
[null,null,null,null,"Естественнонаучная","Ботаника и зоология",3,"микроскоп световой (2 шт.)","2.41. Увеличение микроскопа, крат 40 - 1600 (20 - 2000 - опция), Визуальная насадка,тип  -монокулярная, Угол наклона визуальной насадки 45 град, Револьверное устройство- на 4 объектива, Окуляры, крат 10/18; 16/15; (5/18; 12,5/15; 20/11 - опция), Тип корре",8,70000,8750]
[null,null,null,null,"Естественнонаучная","Ботаника и зоология",4,"Набор микроскопических препаратов (1 комплект)","2.74.",16,60000,3750]
[null,null,null,null,"Естественнонаучная","Ботаника и зоология",5,"Цифровая теплица (5шт.)","Лаборатория Биолога",3,146000,48666.666666666664]
[null,null,null,null,"Естественнонаучная","Ботаника и зоология",6,"Цифровая лаборатория по экологии (полевая) (5 шт.)","4.39.",3,265000,88333.333333333328]
[null,null,null,null,"Естественнонаучная","Ботаника и зоология",7,"Набор химических реактивов и красителей (4)","2.22.",4,30000,7500]
[null,null,null,null,"Естественнонаучная","Ботаника и зоология",8,"Цифровая лаборатория по биологии (5 шт.)","3.14.",3,73000,24333.333333333332]
[null,"МБУ ДО \"Эколого-биологическая станция Ножай-Юртовского муниципального района\"","366241. Ножай-Юртовский район, с.Ножай-Юрт, ул.А.А.Кадырова,108","село","Естественнонаучная","Ботаника и зоология",1,"Ноутбук (1 шт.)","Форм-фактор: ноутбук; \nРазмер диагонали: не менее 15.6 дюймов;\nРазрешение экрана: Full HD, Quad HD или Ultra HD;\nОбщий объем установленной оперативной памяти: не менее 8 Гбайт; \nМаксимальный общий поддерживаемый объем оперативной памяти: не менее 16 Гбайт",16,120000,7500]
[null,null,null,null,"Естественнонаучная","Ботаника и зоология",2,"Набор химической посуды (4 шт.)","2.39.",4,20200,5050]
[null,null,null,null,"Естественнонаучная","Ботаника и зоология",3,"микроскоп световой (2 шт.)","2.41. Увеличение микроскопа, крат 40 - 1600 (20 - 2000 - опция), Визуальная насадка,тип  -монокулярная, Угол наклона визуальной насадки 45 град, Револьверное устройство- на 4 объектива, Окуляры, крат 10/18; 16/15; (5/18; 12,5/15; 20/11 - опция), Тип корре",8,70000,8750]
[null,null,null,null,"Естественнонаучная","Ботаника и зоология",4,"Набор микроскопических препаратов (1 комплект)","2.74.",16,60000,3750]
[null,null,null,null,"Естественнонаучная","Ботаника и зоология",5,"Цифровая теплица (5шт.)","Лаборатория Биолога",3,146000,48666.666666666664]
[null,null,null,null,"Естественнонаучная","Ботаника и зоология",6,"Цифровая лаборатория по экологии (полевая) (5 шт.)","4.39.",3,265000,88333.333333333328]
[null,null,null,null,"Естественнонаучная","Ботаника и зоология",7,"Набор химических реактивов и красителей (4)","2.22.",4,30000,7500]
[null,null,null,null,"Естественнонаучная","Ботаника и зоология",8,"Цифровая лаборатория по биологии (5 шт.)","3.14.",3,73000,24333.333333333332]
[null,"МБОУ \"Гимназия № 7\" г.Грозного","г. Грозный, Байсангуровский р-н, ул. Буровая, 82 а","Город","Естественнонаучная","Ботаника и зоология",1,"Ноутбук (1 шт.)","Форм-фактор: ноутбук; \nРазмер диагонали: не менее 15.6 дюймов;\nРазрешение экрана: Full HD, Quad HD или Ultra HD;\nОбщий объем установленной оперативной памяти: не менее 8 Гбайт; \nМаксимальный общий поддерживаемый объем оперативной памяти: не менее 16 Гбайт",16,120000,7500]
[null,null,null,null,"Естественнонаучная","Ботаника и зоология",2,"Набор химической посуды (4 шт.)","2.39.",4,20200,5050]
[null,null,null,null,"Естественнонаучная","Ботаника и зоология",3,"микроскоп световой (2 шт.)","2.41. Увеличение микроскопа, крат 40 - 1600 (20 - 2000 - опция), Визуальная насадка,тип  -монокулярная, Угол наклона визуальной насадки 45 град, Револьверное устройство- на 4 объектива, Окуляры, крат 10/18; 16/15; (5/18; 12,5/15; 20/11 - опция), Тип корре",8,70000,8750]
[null,null,null,null,"Естественнонаучная","Ботаника и зоология",4,"Набор микроскопических препаратов (1 комплект)","2.74.",16,60000,3750]
[null,null,null,null,"Естественнонаучная","Ботаника и зоология",5,"Цифровая теплица (5шт.)","Лаборатория Биолога",3,146000,48666.666666666664]
[null,null,null,null,"Естественнонаучная","Ботаника и зоология",6,"Цифровая лаборатория по экологии (полевая) (5 шт.)","4.39.",3,265000,88333.333333333328]
[null,null,null,null,"Естественнонаучная","Ботаника и зоология",7,"Набор химических реактивов и красителей (4)","2.22.",4,30000,7500]
[null,null,null,null,"Естественнонаучная","Ботаника и зоология",8,"Цифровая лаборатория по биологии (5 шт.)","3.14.",3,73000,24333.333333333332]
[null," МБУ ДО \"Дом детского творчества Висаитовского района г.Грозного\"","городок.Маяковского 73-а","город","Социально-гуманитарная","Журналистика",1,"Хромокей (2 шт.)","8.9.6.",4,25000,6250]
[null,null,null,null,"Социально-гуманитарная","Журналистика",2,"Ноутбук (8 шт.)","Форм-фактор: ноутбук; \nРазмер диагонали: не менее 15.6 дюймов;\nРазрешение экрана: Full HD, Quad HD или Ultra HD;\nОбщий объем установленной оперативной памяти: не менее 8 Гбайт; \nМаксимальный общий поддерживаемый объем оперативной памяти: не менее 16 Гбайт",2,120000,60000]
[null,null,null,null,"Социально-гуманитарная","Журналистика",3,"Микрофон (1 шт.)","2.14. Тип устройства: инстурментальный/вокальный микрофон;\nДиаграмма направленности капсюля: суперкардиоидная, с круговой симметрией относительно оси микрофона;\nКрепление: стандартный держатель для микрофона (в комплекте поставки); Частотные характеристики: от 50 Гц до 16 кГц;\nЧувствительность: 51,6 дБ;\nСопротивление: 150 Ом; \nУровень выходного сигнала -71 дБ (0.28 мВ)",1,40000,40000]
[null,null,null,null,"Социально-гуманитарная","Журналистика",4,"Фотоаппарат зеркальный + объектив (1 шт.)","2.11.",1,175000,175000]
[null,null,null,null,"Социально-гуманитарная","Журналистика",5,"Головной микрофон (1 шт.)","Подходит для выступлений на сцене. Имеет крепление на одно ухо, частотный диапазон от 20 Гц до 20 кГц.",1,20000,20000]
[null,null,null,null,"Социально-гуманитарная","Журналистика",6,"Флипчарт (3 шт.)","8.1.9. (туристско-краеведческая направленность)",5,16640,3328]
[null,null,null,null,"Социально-гуманитарная","Журналистика",7,"Видеокамера (2 шт.)","9.11. Тип носителя - перезаписываемая память (Flash), Максимальное разрешение видеосъемки- 4096x2160, Наличие широкоформатного режима видео,Тип матрицы – MOS, Количество матриц -1 Матрица- 9.46 Мпикс\nФизический размер матрицы - 1\"\nФокусное расстояние объектива - 8.8 - 176 мм,\nZoom оптический / цифровой - 20x / 10x, \nДиафрагма - F2.8 - F4.5\n",15,100000,6666.666666666667]
[null,null,null,null,"Социально-гуманитарная","Журналистика",8,"Контроллер (1 шт.)","Контроль не менее 512 каналов DMX.Оптоизолированный выход. 32 последовательности; можно запустить 3 или более последовательности одновременно, скорость регулируется индивидуально.",15,152000,10133.333333333334]
[null,null,null,null,"Социально-гуманитарная","Журналистика",9,"Цветной принтер (1 шт.)","9.7.",1,80000,80000]
[null,"МБУ ДО  \"Ачхой-Мартановский детско-юношеский центр\"","366612,ЧР,  Ачхой-мартановский р-н, с.Ачхой-Мартан, ул.А.Л.Асхабова, 2","село","Социально-гуманитарная","Журналистика",1,"Хромокей (2 шт.)","8.9.6.",4,25000,6250]
[null,null,null,null,"Социально-гуманитарная","Журналистика",2,"Ноутбук (8 шт.)","Форм-фактор: ноутбук; \nРазмер диагонали: не менее 15.6 дюймов;\nРазрешение экрана: Full HD, Quad HD или Ultra HD;\nОбщий объем установленной оперативной памяти: не менее 8 Гбайт; \nМаксимальный общий поддерживаемый объем оперативной памяти: не менее 16 Гбайт",2,120000,60000]
[null,null,null,null,"Социально-гуманитарная","Журналистика",3,"Микрофон (1 шт.)","2.14. Тип устройства: инстурментальный/вокальный микрофон;\nДиаграмма направленности капсюля: суперкардиоидная, с круговой симметрией относительно оси микрофона;\nКрепление: стандартный держатель для микрофона (в комплекте поставки); Частотные характеристики: от 50 Гц до 16 кГц;\nЧувствительность: 51,6 дБ;\nСопротивление: 150 Ом; \nУровень выходного сигнала -71 дБ (0.28 мВ)",1,40000,40000]
[null,null,null,null,"Социально-гуманитарная","Журналистика",4,"Фотоаппарат зеркальный + объектив (1 шт.)","2.11.",1,175000,175000]
[null,null,null,null,"Социально-гуманитарная","Журналистика",5,"Головной микрофон (1 шт.)","Подходит для выступлений на сцене. Имеет крепление на одно ухо, частотный диапазон от 20 Гц до 20 кГц.",1,20000,20000]
[null,null,null,null,"Социально-гуманитарная","Журналистика",6,"Флипчарт (3 шт.)","8.1.9. (туристско-краеведческая направленность)",5,16640,3328]
[null,null,null,null,"Социально-гуманитарная","Журналистика",7,"Видеокамера (2 шт.)","9.11. Тип носителя - перезаписываемая память (Flash), Максимальное разрешение видеосъемки- 4096x2160, Наличие широкоформатного режима видео,Тип матрицы – MOS, Количество матриц -1 Матрица- 9.46 Мпикс\nФизический размер матрицы - 1\"\nФокусное расстояние объектива - 8.8 - 176 мм,\nZoom оптический / цифровой - 20x / 10x, \nДиафрагма - F2.8 - F4.5\n",15,100000,6666.666666666667]
[null,null,null,null,"Социально-гуманитарная","Журналистика",8,"Контроллер (1 шт.)","Контроль не менее 512 каналов DMX.Оптоизолированный выход. 32 последовательности; можно запустить 3 или более последовательности одновременно, скорость регулируется индивидуально.",15,152000,{"$f":"IF(J139 >0, K139/J139, \"\")","v":10133.333333333334}]
[null,null,null,null,"Социально-гуманитарная","Журналистика",9,"Цветной принтер (1 шт.)","9.7.",1,80000,80000]
[null,"МБУ ДО  \"Веденский районный центр детско-юношеского творчества\" ","Веденский р-он,с. Ведено,ул. Крепостная, №3","село ","Социально-гуманитарная","Журналистика",1,"Хромокей (2 шт.)","8.9.6.",4,25000,6250]
[null,null,null,null,"Социально-гуманитарная","Журналистика",2,"Ноутбук (8 шт.)","Форм-фактор: ноутбук; \nРазмер диагонали: не менее 15.6 дюймов;\nРазрешение экрана: Full HD, Quad HD или Ultra HD;\nОбщий объем установленной оперативной памяти: не менее 8 Гбайт; \nМаксимальный общий поддерживаемый объем оперативной памяти: не менее 16 Гбайт",2,120000,60000]
[null,null,null,null,"Социально-гуманитарная","Журналистика",3,"Микрофон (1 шт.)","2.14. Тип устройства: инстурментальный/вокальный микрофон;\nДиаграмма направленности капсюля: суперкардиоидная, с круговой симметрией относительно оси микрофона;\nКрепление: стандартный держатель для микрофона (в комплекте поставки); Частотные характеристики: от 50 Гц до 16 кГц;\nЧувствительность: 51,6 дБ;\nСопротивление: 150 Ом; \nУровень выходного сигнала -71 дБ (0.28 мВ)",1,40000,40000]
[null,null,null,null,"Социально-гуманитарная","Журналистика",4,"Фотоаппарат зеркальный + объектив (1 шт.)","2.11.",1,175000,175000]
[null,null,null,null,"Социально-гуманитарная","Журналистика",5,"Головной микрофон (1 шт.)","Подходит для выступлений на сцене. Имеет крепление на одно ухо, частотный диапазон от 20 Гц до 20 кГц.",1,20000,20000]
[null,null,null,null,"Социально-гуманитарная","Журналистика",6,"Флипчарт (3 шт.)","8.1.9. (туристско-краеведческая направленность)",5,16640,3328]
[null,null,null,null,"Социально-гуманитарная","Журналистика",7,"Видеокамера (2 шт.)","9.11. Тип носителя - перезаписываемая память (Flash), Максимальное разрешение видеосъемки- 4096x2160, Наличие широкоформатного режима видео,Тип матрицы – MOS, Количество матриц -1 Матрица- 9.46 Мпикс\nФизический размер матрицы - 1\"\nФокусное расстояние объектива - 8.8 - 176 мм,\nZoom оптический / цифровой - 20x / 10x, \nДиафрагма - F2.8 - F4.5\n",15,100000,6666.666666666667]
[null,null,null,null,"Социально-гуманитарная","Журналистика",8,"Контроллер (1 шт.)","Контроль не менее 512 каналов DMX.Оптоизолированный выход. 32 последовательности; можно запустить 3 или более последовательности одновременно, скорость регулируется индивидуально.",15,152000,10133.333333333334]
[null,null,null,null,"Социально-гуманитарная","Журналистика",9,"Цветной принтер (1 шт.)","9.7.",1,80000,80000]
[null,"МБУ ДО  \"Дом детского творчсетва Ахматовского района г. Грозного\"","364020, ЧР, Г. Грозный, ул. Тасуева д. 12","Город","Социально-гуманитарная","Журналистика",1,"Хромокей (2 шт.)","8.9.6.",4,25000,6250]
[null,null,null,null,"Социально-гуманитарная","Журналистика",2,"Ноутбук (8 шт.)","Форм-фактор: ноутбук; \nРазмер диагонали: не менее 15.6 дюймов;\nРазрешение экрана: Full HD, Quad HD или Ultra HD;\nОбщий объем установленной оперативной памяти: не менее 8 Гбайт; \nМаксимальный общий поддерживаемый объем оперативной памяти: не менее 16 Гбайт",2,120000,60000]
[null,null,null,null,"Социально-гуманитарная","Журналистика",3,"Микрофон (1 шт.)","2.14. Тип устройства: инстурментальный/вокальный микрофон;\nДиаграмма направленности капсюля: суперкардиоидная, с круговой симметрией относительно оси микрофона;\nКрепление: стандартный держатель для микрофона (в комплекте поставки); Частотные характеристики: от 50 Гц до 16 кГц;\nЧувствительность: 51,6 дБ;\nСопротивление: 150 Ом; \nУровень выходного сигнала -71 дБ (0.28 мВ)",1,40000,40000]
[null,null,null,null,"Социально-гуманитарная","Журналистика",4,"Фотоаппарат зеркальный + объектив (1 шт.)","2.11.",1,175000,175000]
[null,null,null,null,"Социально-гуманитарная","Журналистика",5,"Головной микрофон (1 шт.)","Подходит для выступлений на сцене. Имеет крепление на одно ухо, частотный диапазон от 20 Гц до 20 кГц.",1,20000,20000]
[null,null,null,null,"Социально-гуманитарная","Журналистика",6,"Флипчарт (3 шт.)","8.1.9. (туристско-краеведческая направленность)",5,16640,3328]
[null,null,null,null,"Социально-гуманитарная","Журналистика",7,"Видеокамера (2 шт.)","9.11. Тип носителя - перезаписываемая память (Flash), Максимальное разрешение видеосъемки- 4096x2160, Наличие широкоформатного режима видео,Тип матрицы – MOS, Количество матриц -1 Матрица- 9.46 Мпикс\nФизический размер матрицы - 1\"\nФокусное расстояние объектива - 8.8 - 176 мм,\nZoom оптический / цифровой - 20x / 10x, \nДиафрагма - F2.8 - F4.5\n",15,100000,6666.666666666667]
[null,null,null,null,"Социально-гуманитарная","Журналистика",8,"Контроллер (1 шт.)","Контроль не менее 512 каналов DMX.Оптоизолированный выход. 32 последовательности; можно запустить 3 или более последовательности одновременно, скорость регулируется индивидуально.",15,152000,10133.333333333334]
[null,null,null,null,"Социально-гуманитарная","Журналистика",9,"Цветной принтер (1 шт.)","9.7.",1,80000,80000]
[null,"МБУ ДО  \"Ачхой-Мартановский Дом детского творчества\"","366612,ЧР, с.Ачхой-Мартан,\n ул.А-Х.Кадырова . 13 ","село","Социально-гуманитарная","Журналистика",1,"Хромокей (2 шт.)","8.9.6.",4,25000,6250]
[null,null,null,null,"Социально-гуманитарная","Журналистика",2,"Ноутбук (8 шт.)","Форм-фактор: ноутбук; \nРазмер диагонали: не менее 15.6 дюймов;\nРазрешение экрана: Full HD, Quad HD или Ultra HD;\nОбщий объем установленной оперативной памяти: не менее 8 Гбайт; \nМаксимальный общий поддерживаемый объем оперативной памяти: не менее 16 Гбайт",2,120000,60000]
[null,null,null,null,"Социально-гуманитарная","Журналистика",3,"Микрофон (1 шт.)","2.14. Тип устройства: инстурментальный/вокальный микрофон;\nДиаграмма направленности капсюля: суперкардиоидная, с круговой симметрией относительно оси микрофона;\nКрепление: стандартный держатель для микрофона (в комплекте поставки); Частотные характеристики: от 50 Гц до 16 кГц;\nЧувствительность: 51,6 дБ;\nСопротивление: 150 Ом; \nУровень выходного сигнала -71 дБ (0.28 мВ)",1,40000,40000]
[null,null,null,null,"Социально-гуманитарная","Журналистика",4,"Фотоаппарат зеркальный + объектив (1 шт.)","2.11.",1,175000,175000]
[null,null,null,null,"Социально-гуманитарная","Журналистика",5,"Головной микрофон (1 шт.)","Подходит для выступлений на сцене. Имеет крепление на одно ухо, частотный диапазон от 20 Гц до 20 кГц.",1,20000,20000]
[null,null,null,null,"Социально-гуманитарная","Журналистика",6,"Флипчарт (3 шт.)","8.1.9. (туристско-краеведческая направленность)",5,16640,3328]
[null,null,null,null,"Социально-гуманитарная","Журналистика",7,"Видеокамера (2 шт.)","9.11. Тип носителя - перезаписываемая память (Flash), Максимальное разрешение видеосъемки- 4096x2160, Наличие широкоформатного режима видео,Тип матрицы – MOS, Количество матриц -1 Матрица- 9.46 Мпикс\nФизический размер матрицы - 1\"\nФокусное расстояние объектива - 8.8 - 176 мм,\nZoom оптический / цифровой - 20x / 10x, \nДиафрагма - F2.8 - F4.5\n",15,100000,6666.666666666667]
[null,null,null,null,"Социально-гуманитарная","Журналистика",8,"Контроллер (1 шт.)","Контроль не менее 512 каналов DMX.Оптоизолированный выход. 32 последовательности; можно запустить 3 или более последовательности одновременно, скорость регулируется индивидуально.",15,152000,10133.333333333334]
[null,null,null,null,"Социально-гуманитарная","Журналистика",9,"Цветной принтер (1 шт.)","9.7.",1,80000,80000]
[null,"МБУ ДО  \"Дом детского творчества Висаитовского района г.Грозного","городок.Маяковского 73-а","город","Художественная","Школьный театр",1,"Микрофон (1 шт.)","2.14. Тип устройства: инстурментальный/вокальный микрофон;\r\nДиаграмма направленности капсюля: суперкардиоидная, с круговой симметрией относительно оси микрофона;\r\nКрепление: стандартный держатель для микрофона (в комплекте поставки); Частотные характеристики: от 50 Гц до 16 кГц;\r\nЧувствительность: 51,6 дБ;\r\nСопротивление: 150 Ом; \r\nУровень выходного сигнала -71 дБ (0.28 мВ)",1,40000,40000]
[null,null,null,null,"Художественная","Школьный театр",2,"Флипчарт ( 1 шт.)","магнитно-маркерная, 70x100см, на роликах, ECO, \"2х3\" TF03 ECO",1,16640,16640]
[null,null,null,null,"Художественная","Школьный театр",3,"Цветной принтер (1 шт.)","9.7.",1,80000,80000]
[null,null,null,null,"Художественная","Школьный театр",4,"Ноутбук с акустической системой (1 шт.)","Форм-фактор: ноутбук; \nРазмер диагонали: не менее 15.6 дюймов;\nРазрешение экрана: Full HD, Quad HD или Ultra HD;\nОбщий объем установленной оперативной памяти: не менее 8 Гбайт; \nМаксимальный общий поддерживаемый объем оперативной памяти: не менее 16 Гбайт",1,137970,137970]
[null,null,null,null,"Художественная","Школьный театр",5,"Контроллер (1 шт.)","Контроль не менее 512 каналов DMX.Оптоизолированный выход. 32 последовательности; можно запустить 3 или более последовательности одновременно, скорость регулируется индивидуально.",16,152000,9500]
[null,null,null,null,"Художественная","Школьный театр",6,"Светодиодный прожектор (1 шт.) ","Светодиодный прожектор, белый теплый. Количество светодиодов не менее 54 х 3Вт. Питание: AC110-240В/50-60Гц. Угол  25 градусов. Управление: Авто/Звуком/DMX/Master-slave. Каналы DMX не менее 2-х. Эффект стробоскопа.",16,30000,1875]
[null,null,null,null,"Художественная","Школьный театр",7,"Светодиодный прожектор смена цвета (1шт.)","Светодиодный прожектор смены цвета. Изменение цвета, эффект стробоскопа. Не менее 54 светодиода. 12 красных, 18 зеленых, 18 синих, 6 белых. Управление: звуком/автоматический/DMX/Master-slave. Не менее 8 каналов DMX, Мощность не менее 180Вт. Питание: AC 100-240V, 50/60Hz.",16,80000,5000]
[null,null,null,null,"Художественная","Школьный театр",8,"Головной микрофон (1 шт.)","Подходит для выступлений на сцене и для вокала. Имеет крепление на одно ухо, частотный диапазон от 20 Гц до 20 кГц.",1,"20000",20000]
[null,"МБОУ «СОШ № 8 им.Арби Вахаева» г. Урус-Мартан","366500, Чеченская Республика, Урус-Мартановский район, г. Урус-Мартан, ул. Махмуда Эсамбаева, 76","город","Художественная","Школьный театр",1,"Микрофон (1 шт.)","2.14. Тип устройства: инстурментальный/вокальный микрофон;\r\nДиаграмма направленности капсюля: суперкардиоидная, с круговой симметрией относительно оси микрофона;\r\nКрепление: стандартный держатель для микрофона (в комплекте поставки); Частотные характеристики: от 50 Гц до 16 кГц;\r\nЧувствительность: 51,6 дБ;\r\nСопротивление: 150 Ом; \r\nУровень выходного сигнала -71 дБ (0.28 мВ)",1,40000,40000]
[null,null,null,null,"Художественная","Школьный театр",2,"Флипчарт ( 1 шт.)","магнитно-маркерная, 70x100см, на роликах, ECO, \"2х3\" TF03 ECO",1,16640,16640]
[null,null,null,null,"Художественная","Школьный театр",3,"Цветной принтер (1 шт.)","9.7.",1,80000,80000]
[null,null,null,null,"Художественная","Школьный театр",4,"Ноутбук с акустической системой (1 шт.)","Форм-фактор: ноутбук; \nРазмер диагонали: не менее 15.6 дюймов;\nРазрешение экрана: Full HD, Quad HD или Ultra HD;\nОбщий объем установленной оперативной памяти: не менее 8 Гбайт; \nМаксимальный общий поддерживаемый объем оперативной памяти: не менее 16 Гбайт",1,137970,137970]
[null,null,null,null,"Художественная","Школьный театр",5,"Контроллер (1 шт.)","Контроль не менее 512 каналов DMX.Оптоизолированный выход. 32 последовательности; можно запустить 3 или более последовательности одновременно, скорость регулируется индивидуально.",16,152000,9500]
[null,null,null,null,"Художественная","Школьный театр",6,"Светодиодный прожектор (1 шт.) ","Светодиодный прожектор, белый теплый. Количество светодиодов не менее 54 х 3Вт. Питание: AC110-240В/50-60Гц. Угол  25 градусов. Управление: Авто/Звуком/DMX/Master-slave. Каналы DMX не менее 2-х. Эффект стробоскопа.",16,30000,1875]
[null,null,null,null,"Художественная","Школьный театр",7,"Светодиодный прожектор смена цвета (1шт.)","Светодиодный прожектор смены цвета. Изменение цвета, эффект стробоскопа. Не менее 54 светодиода. 12 красных, 18 зеленых, 18 синих, 6 белых. Управление: звуком/автоматический/DMX/Master-slave. Не менее 8 каналов DMX, Мощность не менее 180Вт. Питание: AC 100-240V, 50/60Hz.",16,80000,5000]
[null,null,null,null,"Художественная","Школьный театр",8,"Головной микрофон (1 шт.)","Подходит для выступлений на сцене и для вокала. Имеет крепление на одно ухо, частотный диапазон от 20 Гц до 20 кГц.",1,20000,20000]
[null,"МБОУ \"СОШ №9 г.Урус-Мартан\"","г.Урус-Мартан, ул.Туликова,86","город","Художественная","Школьный театр",1,"Микрофон (1 шт.)","2.14. Тип устройства: инстурментальный/вокальный микрофон;\r\nДиаграмма направленности капсюля: суперкардиоидная, с круговой симметрией относительно оси микрофона;\r\nКрепление: стандартный держатель для микрофона (в комплекте поставки); Частотные характеристики: от 50 Гц до 16 кГц;\r\nЧувствительность: 51,6 дБ;\r\nСопротивление: 150 Ом; \r\nУровень выходного сигнала -71 дБ (0.28 мВ)",1,40000,40000]
[null,null,null,null,"Художественная","Школьный театр",2,"Флипчарт ( 1 шт.)","магнитно-маркерная, 70x100см, на роликах, ECO, \"2х3\" TF03 ECO",1,16640,16640]
[null,null,null,null,"Художественная","Школьный театр",3,"Цветной принтер (1 шт.)","9.7.",1,80000,80000]
[null,null,null,null,"Художественная","Школьный театр",4,"Ноутбук с акустической системой (1 шт.)","Форм-фактор: ноутбук; \nРазмер диагонали: не менее 15.6 дюймов;\nРазрешение экрана: Full HD, Quad HD или Ultra HD;\nОбщий объем установленной оперативной памяти: не менее 8 Гбайт; \nМаксимальный общий поддерживаемый объем оперативной памяти: не менее 16 Гбайт",1,137970,137970]
[null,null,null,null,"Художественная","Школьный театр",5,"Контроллер (1 шт.)","Контроль не менее 512 каналов DMX.Оптоизолированный выход. 32 последовательности; можно запустить 3 или более последовательности одновременно, скорость регулируется индивидуально.",16,152000,9500]
[null,null,null,null,"Художественная","Школьный театр",6,"Светодиодный прожектор (1 шт.) ","Светодиодный прожектор, белый теплый. Количество светодиодов не менее 54 х 3Вт. Питание: AC110-240В/50-60Гц. Угол  25 градусов. Управление: Авто/Звуком/DMX/Master-slave. Каналы DMX не менее 2-х. Эффект стробоскопа.",16,30000,1875]
[null,null,null,null,"Художественная","Школьный театр",7,"Светодиодный прожектор смена цвета (1шт.)","Светодиодный прожектор смены цвета. Изменение цвета, эффект стробоскопа. Не менее 54 светодиода. 12 красных, 18 зеленых, 18 синих, 6 белых. Управление: звуком/автоматический/DMX/Master-slave. Не менее 8 каналов DMX, Мощность не менее 180Вт. Питание: AC 100-240V, 50/60Hz.",16,80000,5000]
[null,null,null,null,"Художественная","Школьный театр",8,"Головной микрофон (1 шт.)","Подходит для выступлений на сцене и для вокала. Имеет крепление на одно ухо, частотный диапазон от 20 Гц до 20 кГц.",1,20000,20000]
[null,"МБУ ДО  «Наурский дом детского творчества»","366128, ЧР, Наурский район, ст. Наурская, ул.Джона Рида, дом 47а","село","Художественная","Школьный театр",1,"Микрофон (1 шт.)","2.14. Тип устройства: инстурментальный/вокальный микрофон;\r\nДиаграмма направленности капсюля: суперкардиоидная, с круговой симметрией относительно оси микрофона;\r\nКрепление: стандартный держатель для микрофона (в комплекте поставки); Частотные характеристики: от 50 Гц до 16 кГц;\r\nЧувствительность: 51,6 дБ;\r\nСопротивление: 150 Ом; \r\nУровень выходного сигнала -71 дБ (0.28 мВ)",1,40000,40000]
[null,null,null,null,"Художественная","Школьный театр",2,"Флипчарт ( 1 шт.)","магнитно-маркерная, 70x100см, на роликах, ECO, \"2х3\" TF03 ECO",1,16640,16640]
[null,null,null,null,"Художественная","Школьный театр",3,"Цветной принтер (1 шт.)","9.7.",1,80000,80000]
[null,null,null,null,"Художественная","Школьный театр",4,"Ноутбук с акустической системой (1 шт.)","Форм-фактор: ноутбук; \nРазмер диагонали: не менее 15.6 дюймов;\nРазрешение экрана: Full HD, Quad HD или Ultra HD;\nОбщий объем установленной оперативной памяти: не менее 8 Гбайт; \nМаксимальный общий поддерживаемый объем оперативной памяти: не менее 16 Гбайт",1,137970,137970]
[null,null,null,null,"Художественная","Школьный театр",5,"Контроллер (1 шт.)","Контроль не менее 512 каналов DMX.Оптоизолированный выход. 32 последовательности; можно запустить 3 или более последовательности одновременно, скорость регулируется индивидуально.",16,152000,9500]
[null,null,null,null,"Художественная","Школьный театр",6,"Светодиодный прожектор (1 шт.) ","Светодиодный прожектор, белый теплый. Количество светодиодов не менее 54 х 3Вт. Питание: AC110-240В/50-60Гц. Угол  25 градусов. Управление: Авто/Звуком/DMX/Master-slave. Каналы DMX не менее 2-х. Эффект стробоскопа.",16,30000,1875]
[null,null,null,null,"Художественная","Школьный театр",7,"Светодиодный прожектор смена цвета (1шт.)","Светодиодный прожектор смены цвета. Изменение цвета, эффект стробоскопа. Не менее 54 светодиода. 12 красных, 18 зеленых, 18 синих, 6 белых. Управление: звуком/автоматический/DMX/Master-slave. Не менее 8 каналов DMX, Мощность не менее 180Вт. Питание: AC 100-240V, 50/60Hz.",16,80000,5000]
[null,null,null,null,"Художественная","Школьный театр",8,"Головной микрофон (1 шт.)","Подходит для выступлений на сцене и для вокала. Имеет крепление на одно ухо, частотный диапазон от 20 Гц до 20 кГц.",1,20000,20000]
[null,"МБУ ДО  «Дом детского творчества Серноводского муниципального района»","ЧР, Серноводский район, с.Серноводское, ул. Мичурина, 4а.","село","Художественная","Школьный театр",1,"Микрофон (1 шт.)","2.14. Тип устройства: инстурментальный/вокальный микрофон;\r\nДиаграмма направленности капсюля: суперкардиоидная, с круговой симметрией относительно оси микрофона;\r\nКрепление: стандартный держатель для микрофона (в комплекте поставки); Частотные характеристики: от 50 Гц до 16 кГц;\r\nЧувствительность: 51,6 дБ;\r\nСопротивление: 150 Ом; \r\nУровень выходного сигнала -71 дБ (0.28 мВ)",1,40000,40000]
[null,null,null,null,"Художественная","Школьный театр",2,"Флипчарт ( 1 шт.)","магнитно-маркерная, 70x100см, на роликах, ECO, \"2х3\" TF03 ECO",1,16640,16640]
[null,null,null,null,"Художественная","Школьный театр",3,"Цветной принтер (1 шт.)","9.7.",1,80000,80000]
[null,null,null,null,"Художественная","Школьный театр",4,"Ноутбук с акустической системой (1 шт.)","Форм-фактор: ноутбук; \nРазмер диагонали: не менее 15.6 дюймов;\nРазрешение экрана: Full HD, Quad HD или Ultra HD;\nОбщий объем установленной оперативной памяти: не менее 8 Гбайт; \nМаксимальный общий поддерживаемый объем оперативной памяти: не менее 16 Гбайт",1,137970,{"$f":"IF(J203 >0, K203/J203, \"\")","v":137970}]
[null,null,null,null,"Художественная","Школьный театр",5,"Контроллер (1 шт.)","Контроль не менее 512 каналов DMX.Оптоизолированный выход. 32 последовательности; можно запустить 3 или более последовательности одновременно, скорость регулируется индивидуально.",16,152000,9500]
[null,null,null,null,"Художественная","Школьный театр",6,"Светодиодный прожектор (1 шт.) ","Светодиодный прожектор, белый теплый. Количество светодиодов не менее 54 х 3Вт. Питание: AC110-240В/50-60Гц. Угол  25 градусов. Управление: Авто/Звуком/DMX/Master-slave. Каналы DMX не менее 2-х. Эффект стробоскопа.",16,30000,1875]
[null,null,null,null,"Художественная","Школьный театр",7,"Светодиодный прожектор смена цвета (1шт.)","Светодиодный прожектор смены цвета. Изменение цвета, эффект стробоскопа. Не менее 54 светодиода. 12 красных, 18 зеленых, 18 синих, 6 белых. Управление: звуком/автоматический/DMX/Master-slave. Не менее 8 каналов DMX, Мощность не менее 180Вт. Питание: AC 100-240V, 50/60Hz.",16,80000,5000]
[null,null,null,null,"Художественная","Школьный театр",8,"Головной микрофон (1 шт.)","Подходит для выступлений на сцене и для вокала. Имеет крепление на одно ухо, частотный диапазон от 20 Гц до 20 кГц.",1,20000,20000]
[null,"МБОУ ДО \"Детско-юношеский центр Грозненского муниципального района\"","Чеченская Респ, Грозненский р-н. с Центора-Юрт, ул. Садовая 80","поселок","Художественная","Школьный театр",1,"Микрофон (1 шт.)","2.14. Тип устройства: инстурментальный/вокальный микрофон;\r\nДиаграмма направленности капсюля: суперкардиоидная, с круговой симметрией относительно оси микрофона;\r\nКрепление: стандартный держатель для микрофона (в комплекте поставки); Частотные характеристики: от 50 Гц до 16 кГц;\r\nЧувствительность: 51,6 дБ;\r\nСопротивление: 150 Ом; \r\nУровень выходного сигнала -71 дБ (0.28 мВ)",1,40000,40000]
[null,null,null,null,"Художественная","Школьный театр",2,"Флипчарт ( 1 шт.)","магнитно-маркерная, 70x100см, на роликах, ECO, \"2х3\" TF03 ECO",1,16640,16640]
[null,null,null,null,"Художественная","Школьный театр",3,"Цветной принтер (1 шт.)","9.7.",1,80000,80000]
[null,null,null,null,"Художественная","Школьный театр",4,"Ноутбук с акустической системой (1 шт.)","Форм-фактор: ноутбук; \nРазмер диагонали: не менее 15.6 дюймов;\nРазрешение экрана: Full HD, Quad HD или Ultra HD;\nОбщий объем установленной оперативной памяти: не менее 8 Гбайт; \nМаксимальный общий поддерживаемый объем оперативной памяти: не менее 16 Гбайт",1,137970,137970]
[null,null,null,null,"Художественная","Школьный театр",5,"Контроллер (1 шт.)","Контроль не менее 512 каналов DMX.Оптоизолированный выход. 32 последовательности; можно запустить 3 или более последовательности одновременно, скорость регулируется индивидуально.",16,152000,9500]
[null,null,null,null,"Художественная","Школьный театр",6,"Светодиодный прожектор (1 шт.) ","Светодиодный прожектор, белый теплый. Количество светодиодов не менее 54 х 3Вт. Питание: AC110-240В/50-60Гц. Угол  25 градусов. Управление: Авто/Звуком/DMX/Master-slave. Каналы DMX не менее 2-х. Эффект стробоскопа.",16,30000,1875]
[null,null,null,null,"Художественная","Школьный театр",7,"Светодиодный прожектор смена цвета (1шт.)","Светодиодный прожектор смены цвета. Изменение цвета, эффект стробоскопа. Не менее 54 светодиода. 12 красных, 18 зеленых, 18 синих, 6 белых. Управление: звуком/автоматический/DMX/Master-slave. Не менее 8 каналов DMX, Мощность не менее 180Вт. Питание: AC 100-240V, 50/60Hz.",16,80000,5000]
[null,null,null,null,"Художественная","Школьный театр",8,"Головной микрофон (1 шт.)","Подходит для выступлений на сцене и для вокала. Имеет крепление на одно ухо, частотный диапазон от 20 Гц до 20 кГц.",1,20000,20000]
[null,"МБОУ  \"СОШ  №2 с.Бердыкель\" имени героя России Басханова Р.Ш. городского округа город Аргун","ЧР, городской округ город Аргун, село Бердыкель, улица М.Д.Дикаева, 2","село","Художественная","Школьный театр",1,"Микрофон (1 шт.)","2.14. Тип устройства: инстурментальный/вокальный микрофон;\r\nДиаграмма направленности капсюля: суперкардиоидная, с круговой симметрией относительно оси микрофона;\r\nКрепление: стандартный держатель для микрофона (в комплекте поставки); Частотные характеристики: от 50 Гц до 16 кГц;\r\nЧувствительность: 51,6 дБ;\r\nСопротивление: 150 Ом; \r\nУровень выходного сигнала -71 дБ (0.28 мВ)",1,40000,40000]
[null,null,null,null,"Художественная","Школьный театр",2,"Флипчарт ( 1 шт.)","магнитно-маркерная, 70x100см, на роликах, ECO, \"2х3\" TF03 ECO",1,16640,16640]
[null,null,null,null,"Художественная","Школьный театр",3,"Цветной принтер (1 шт.)","9.7.",1,80000,80000]
[null,null,null,null,"Художественная","Школьный театр",4,"Ноутбук с акустической системой (1 шт.)","Форм-фактор: ноутбук; \nРазмер диагонали: не менее 15.6 дюймов;\nРазрешение экрана: Full HD, Quad HD или Ultra HD;\nОбщий объем установленной оперативной памяти: не менее 8 Гбайт; \nМаксимальный общий поддерживаемый объем оперативной памяти: не менее 16 Гбайт",1,137970,137970]
[null,null,null,null,"Художественная","Школьный театр",5,"Контроллер (1 шт.)","Контроль не менее 512 каналов DMX.Оптоизолированный выход. 32 последовательности; можно запустить 3 или более последовательности одновременно, скорость регулируется индивидуально.",16,152000,9500]
[null,null,null,null,"Художественная","Школьный театр",6,"Светодиодный прожектор (1 шт.) ","Светодиодный прожектор, белый теплый. Количество светодиодов не менее 54 х 3Вт. Питание: AC110-240В/50-60Гц. Угол  25 градусов. Управление: Авто/Звуком/DMX/Master-slave. Каналы DMX не менее 2-х. Эффект стробоскопа.",16,30000,1875]
[null,null,null,null,"Художественная","Школьный театр",7,"Светодиодный прожектор смена цвета (1шт.)","Светодиодный прожектор смены цвета. Изменение цвета, эффект стробоскопа. Не менее 54 светодиода. 12 красных, 18 зеленых, 18 синих, 6 белых. Управление: звуком/автоматический/DMX/Master-slave. Не менее 8 каналов DMX, Мощность не менее 180Вт. Питание: AC 100-240V, 50/60Hz.",16,80000,5000]
[null,null,null,null,"Художественная","Школьный театр",8,"Головной микрофон (1 шт.)","Подходит для выступлений на сцене и для вокала. Имеет крепление на одно ухо, частотный диапазон от 20 Гц до 20 кГц.",1,20000,20000]
[null,"МБОУ \"СОШ № 2 с.п. Знаменское\"","366813, Чеченская Республика,Надтерчный район, С.Знаменское, ул. им. Д.А. Ахмарова ,1","село","Художественная","Школьный театр",1,"Микрофон (1 шт.)","2.14. Тип устройства: инстурментальный/вокальный микрофон;\r\nДиаграмма направленности капсюля: суперкардиоидная, с круговой симметрией относительно оси микрофона;\r\nКрепление: стандартный держатель для микрофона (в комплекте поставки); Частотные характеристики: от 50 Гц до 16 кГц;\r\nЧувствительность: 51,6 дБ;\r\nСопротивление: 150 Ом; \r\nУровень выходного сигнала -71 дБ (0.28 мВ)",1,40000,40000]
[null,null,null,null,"Художественная","Школьный театр",2,"Флипчарт ( 1 шт.)","магнитно-маркерная, 70x100см, на роликах, ECO, \"2х3\" TF03 ECO",1,16640,16640]
[null,null,null,null,"Художественная","Школьный театр",3,"Цветной принтер (1 шт.)","9.7.",1,80000,80000]
[null,null,null,null,"Художественная","Школьный театр",4,"Ноутбук с акустической системой (1 шт.)","Форм-фактор: ноутбук; \nРазмер диагонали: не менее 15.6 дюймов;\nРазрешение экрана: Full HD, Quad HD или Ultra HD;\nОбщий объем установленной оперативной памяти: не менее 8 Гбайт; \nМаксимальный общий поддерживаемый объем оперативной памяти: не менее 16 Гбайт",1,137970,137970]
[null,null,null,null,"Художественная","Школьный театр",5,"Контроллер (1 шт.)","Контроль не менее 512 каналов DMX.Оптоизолированный выход. 32 последовательности; можно запустить 3 или более последовательности одновременно, скорость регулируется индивидуально.",16,152000,9500]
[null,null,null,null,"Художественная","Школьный театр",6,"Светодиодный прожектор (1 шт.) ","Светодиодный прожектор, белый теплый. Количество светодиодов не менее 54 х 3Вт. Питание: AC110-240В/50-60Гц. Угол  25 градусов. Управление: Авто/Звуком/DMX/Master-slave. Каналы DMX не менее 2-х. Эффект стробоскопа.",16,30000,1875]
[null,null,null,null,"Художественная","Школьный театр",7,"Светодиодный прожектор смена цвета (1шт.)","Светодиодный прожектор смены цвета. Изменение цвета, эффект стробоскопа. Не менее 54 светодиода. 12 красных, 18 зеленых, 18 синих, 6 белых. Управление: звуком/автоматический/DMX/Master-slave. Не менее 8 каналов DMX, Мощность не менее 180Вт. Питание: AC 100-240V, 50/60Hz.",16,80000,5000]
[null,null,null,null,"Художественная","Школьный театр",8,"Головной микрофон (1 шт.)","Подходит для выступлений на сцене и для вокала. Имеет крепление на одно ухо, частотный диапазон от 20 Гц до 20 кГц.",1,20000,20000]
[null,"МБОУ \"СОШ № 38\" г. Грозного","г. Грозный, ул.Арсаханова, 17","Город","Художественная","Школьный театр",1,"Микрофон (1 шт.)","2.14. Тип устройства: инстурментальный/вокальный микрофон;\r\nДиаграмма направленности капсюля: суперкардиоидная, с круговой симметрией относительно оси микрофона;\r\nКрепление: стандартный держатель для микрофона (в комплекте поставки); Частотные характеристики: от 50 Гц до 16 кГц;\r\nЧувствительность: 51,6 дБ;\r\nСопротивление: 150 Ом; \r\nУровень выходного сигнала -71 дБ (0.28 мВ)",1,40000,40000]
[null,null,null,null,"Художественная","Школьный театр",2,"Флипчарт ( 1 шт.)","магнитно-маркерная, 70x100см, на роликах, ECO, \"2х3\" TF03 ECO",1,16640,16640]
[null,null,null,null,"Художественная","Школьный театр",3,"Цветной принтер (1 шт.)","9.7.",1,80000,80000]
[null,null,null,null,"Художественная","Школьный театр",4,"Ноутбук с акустической системой (1 шт.)","Форм-фактор: ноутбук; \nРазмер диагонали: не менее 15.6 дюймов;\nРазрешение экрана: Full HD, Quad HD или Ultra HD;\nОбщий объем установленной оперативной памяти: не менее 8 Гбайт; \nМаксимальный общий поддерживаемый объем оперативной памяти: не менее 16 Гбайт",1,137970,137970]
[null,null,null,null,"Художественная","Школьный театр",5,"Контроллер (1 шт.)","Контроль не менее 512 каналов DMX.Оптоизолированный выход. 32 последовательности; можно запустить 3 или более последовательности одновременно, скорость регулируется индивидуально.",16,152000,9500]
[null,null,null,null,"Художественная","Школьный театр",6,"Светодиодный прожектор (1 шт.) ","Светодиодный прожектор, белый теплый. Количество светодиодов не менее 54 х 3Вт. Питание: AC110-240В/50-60Гц. Угол  25 градусов. Управление: Авто/Звуком/DMX/Master-slave. Каналы DMX не менее 2-х. Эффект стробоскопа.",16,30000,1875]
[null,null,null,null,"Художественная","Школьный театр",7,"Светодиодный прожектор смена цвета (1шт.)","Светодиодный прожектор смены цвета. Изменение цвета, эффект стробоскопа. Не менее 54 светодиода. 12 красных, 18 зеленых, 18 синих, 6 белых. Управление: звуком/автоматический/DMX/Master-slave. Не менее 8 каналов DMX, Мощность не менее 180Вт. Питание: AC 100-240V, 50/60Hz.",16,80000,5000]
[null,null,null,null,"Художественная","Школьный театр",8,"Головной микрофон (1 шт.)","Подходит для выступлений на сцене и для вокала. Имеет крепление на одно ухо, частотный диапазон от 20 Гц до 20 кГц.",1,20000,20000]
[null,"МБОУ «СОШ № 31» г. Грозного\n","г. Грозный ул. Школьная, 13 а","Город","Художественная","Школьный театр",1,"Микрофон (1 шт.)","2.14. Тип устройства: инстурментальный/вокальный микрофон;\r\nДиаграмма направленности капсюля: суперкардиоидная, с круговой симметрией относительно оси микрофона;\r\nКрепление: стандартный держатель для микрофона (в комплекте поставки); Частотные характеристики: от 50 Гц до 16 кГц;\r\nЧувствительность: 51,6 дБ;\r\nСопротивление: 150 Ом; \r\nУровень выходного сигнала -71 дБ (0.28 мВ)",1,40000,40000]
[null,null,null,null,"Художественная","Школьный театр",2,"Флипчарт ( 1 шт.)","магнитно-маркерная, 70x100см, на роликах, ECO, \"2х3\" TF03 ECO",1,16640,16640]
[null,null,null,null,"Художественная","Школьный театр",3,"Цветной принтер (1 шт.)","9.7.",1,80000,80000]
[null,null,null,null,"Художественная","Школьный театр",4,"Ноутбук с акустической системой (1 шт.)","Форм-фактор: ноутбук; \nРазмер диагонали: не менее 15.6 дюймов;\nРазрешение экрана: Full HD, Quad HD или Ultra HD;\nОбщий объем установленной оперативной памяти: не менее 8 Гбайт; \nМаксимальный общий поддерживаемый объем оперативной памяти: не менее 16 Гбайт",1,137970,137970]
[null,null,null,null,"Художественная","Школьный театр",5,"Контроллер (1 шт.)","Контроль не менее 512 каналов DMX.Оптоизолированный выход. 32 последовательности; можно запустить 3 или более последовательности одновременно, скорость регулируется индивидуально.",16,152000,9500]
[null,null,null,null,"Художественная","Школьный театр",6,"Светодиодный прожектор (1 шт.) ","Светодиодный прожектор, белый теплый. Количество светодиодов не менее 54 х 3Вт. Питание: AC110-240В/50-60Гц. Угол  25 градусов. Управление: Авто/Звуком/DMX/Master-slave. Каналы DMX не менее 2-х. Эффект стробоскопа.",16,30000,1875]
[null,null,null,null,"Художественная","Школьный театр",7,"Светодиодный прожектор смена цвета (1шт.)","Светодиодный прожектор смены цвета. Изменение цвета, эффект стробоскопа. Не менее 54 светодиода. 12 красных, 18 зеленых, 18 синих, 6 белых. Управление: звуком/автоматический/DMX/Master-slave. Не менее 8 каналов DMX, Мощность не менее 180Вт. Питание: AC 100-240V, 50/60Hz.",16,80000,5000]
[null,null,null,null,"Художественная","Школьный театр",8,"Головной микрофон (1 шт.)","Подходит для выступлений на сцене и для вокала. Имеет крепление на одно ухо, частотный диапазон от 20 Гц до 20 кГц.",1,20000,20000]
[null,"МБОУ \"СОШ № 34\" г. Грозного","г. Грозный, ул. Алексеева 156 а","Город","Художественная","Школьный театр",1,"Микрофон (1 шт.)","2.14. Тип устройства: инстурментальный/вокальный микрофон;\r\nДиаграмма направленности капсюля: суперкардиоидная, с круговой симметрией относительно оси микрофона;\r\nКрепление: стандартный держатель для микрофона (в комплекте поставки); Частотные характеристики: от 50 Гц до 16 кГц;\r\nЧувствительность: 51,6 дБ;\r\nСопротивление: 150 Ом; \r\nУровень выходного сигнала -71 дБ (0.28 мВ)",1,40000,40000]
[null,null,null,null,"Художественная","Школьный театр",2,"Флипчарт ( 1 шт.)","магнитно-маркерная, 70x100см, на роликах, ECO, \"2х3\" TF03 ECO",1,16640,16640]
[null,null,null,null,"Художественная","Школьный театр",3,"Цветной принтер (1 шт.)","9.7.",1,80000,80000]
[null,null,null,null,"Художественная","Школьный театр",4,"Ноутбук с акустической системой (1 шт.)","Форм-фактор: ноутбук; \nРазмер диагонали: не менее 15.6 дюймов;\nРазрешение экрана: Full HD, Quad HD или Ultra HD;\nОбщий объем установленной оперативной памяти: не менее 8 Гбайт; \nМаксимальный общий поддерживаемый объем оперативной памяти: не менее 16 Гбайт",1,137970,137970]
[null,null,null,null,"Художественная","Школьный театр",5,"Контроллер (1 шт.)","Контроль не менее 512 каналов DMX.Оптоизолированный выход. 32 последовательности; можно запустить 3 или более последовательности одновременно, скорость регулируется индивидуально.",16,152000,9500]
[null,null,null,null,"Художественная","Школьный театр",6,"Светодиодный прожектор (1 шт.) ","Светодиодный прожектор, белый теплый. Количество светодиодов не менее 54 х 3Вт. Питание: AC110-240В/50-60Гц. Угол  25 градусов. Управление: Авто/Звуком/DMX/Master-slave. Каналы DMX не менее 2-х. Эффект стробоскопа.",16,30000,1875]
[null,null,null,null,"Художественная","Школьный театр",7,"Светодиодный прожектор смена цвета (1шт.)","Светодиодный прожектор смены цвета. Изменение цвета, эффект стробоскопа. Не менее 54 светодиода. 12 красных, 18 зеленых, 18 синих, 6 белых. Управление: звуком/автоматический/DMX/Master-slave. Не менее 8 каналов DMX, Мощность не менее 180Вт. Питание: AC 100-240V, 50/60Hz.",16,80000,5000]
[null,null,null,null,"Художественная","Школьный театр",8,"Головной микрофон (1 шт.)","Подходит для выступлений на сцене и для вокала. Имеет крепление на одно ухо, частотный диапазон от 20 Гц до 20 кГц.",1,20000,20000]
[null,"МБУ ДО  \"Дом Детского творчество Байсангуровского района г.Грозного\"","ЧР, г.Грозный ,Байсангуровский район, ул.Сайханова 133 Б","Город","Художественная","Школьный театр",1,"Микрофон (1 шт.)","2.14. Тип устройства: инстурментальный/вокальный микрофон;\r\nДиаграмма направленности капсюля: суперкардиоидная, с круговой симметрией относительно оси микрофона;\r\nКрепление: стандартный держатель для микрофона (в комплекте поставки); Частотные характеристики: от 50 Гц до 16 кГц;\r\nЧувствительность: 51,6 дБ;\r\nСопротивление: 150 Ом; \r\nУровень выходного сигнала -71 дБ (0.28 мВ)",1,40000,40000]
[null,null,null,null,"Художественная","Школьный театр",2,"Флипчарт ( 1 шт.)","магнитно-маркерная, 70x100см, на роликах, ECO, \"2х3\" TF03 ECO",1,16640,16640]
[null,null,null,null,"Художественная","Школьный театр",3,"Цветной принтер (1 шт.)","9.7.",1,80000,80000]
[null,null,null,null,"Художественная","Школьный театр",4,"Ноутбук с акустической системой (1 шт.)","Форм-фактор: ноутбук; \nРазмер диагонали: не менее 15.6 дюймов;\nРазрешение экрана: Full HD, Quad HD или Ultra HD;\nОбщий объем установленной оперативной памяти: не менее 8 Гбайт; \nМаксимальный общий поддерживаемый объем оперативной памяти: не менее 16 Гбайт",1,137970,137970]
[null,null,null,null,"Художественная","Школьный театр",5,"Контроллер (1 шт.)","Контроль не менее 512 каналов DMX.Оптоизолированный выход. 32 последовательности; можно запустить 3 или более последовательности одновременно, скорость регулируется индивидуально.",16,152000,9500]
[null,null,null,null,"Художественная","Школьный театр",6,"Светодиодный прожектор (1 шт.) ","Светодиодный прожектор, белый теплый. Количество светодиодов не менее 54 х 3Вт. Питание: AC110-240В/50-60Гц. Угол  25 градусов. Управление: Авто/Звуком/DMX/Master-slave. Каналы DMX не менее 2-х. Эффект стробоскопа.",16,30000,1875]
[null,null,null,null,"Художественная","Школьный театр",7,"Светодиодный прожектор смена цвета (1шт.)","Светодиодный прожектор смены цвета. Изменение цвета, эффект стробоскопа. Не менее 54 светодиода. 12 красных, 18 зеленых, 18 синих, 6 белых. Управление: звуком/автоматический/DMX/Master-slave. Не менее 8 каналов DMX, Мощность не менее 180Вт. Питание: AC 100-240V, 50/60Hz.",16,80000,5000]
[null,null,null,null,"Художественная","Школьный театр",8,"Головной микрофон (1 шт.)","Подходит для выступлений на сцене и для вокала. Имеет крепление на одно ухо, частотный диапазон от 20 Гц до 20 кГц.",1,20000,20000]
[null,"МБУ ДО  \"Дом детского творчсетва Ахматовского района г. Грозного\"","364020, ЧР, Г. Грозный, ул. Тасуева д. 12","Город","Художественная","Школьный театр",1,"Микрофон (1 шт.)","2.14. Тип устройства: инстурментальный/вокальный микрофон;\r\nДиаграмма направленности капсюля: суперкардиоидная, с круговой симметрией относительно оси микрофона;\r\nКрепление: стандартный держатель для микрофона (в комплекте поставки); Частотные характеристики: от 50 Гц до 16 кГц;\r\nЧувствительность: 51,6 дБ;\r\nСопротивление: 150 Ом; \r\nУровень выходного сигнала -71 дБ (0.28 мВ)",1,40000,40000]
[null,null,null,null,"Художественная","Школьный театр",2,"Флипчарт ( 1 шт.)","магнитно-маркерная, 70x100см, на роликах, ECO, \"2х3\" TF03 ECO",1,16640,16640]
[null,null,null,null,"Художественная","Школьный театр",3,"Цветной принтер (1 шт.)","9.7.",1,80000,80000]
[null,null,null,null,"Художественная","Школьный театр",4,"Ноутбук с акустической системой (1 шт.)","Форм-фактор: ноутбук; \nРазмер диагонали: не менее 15.6 дюймов;\nРазрешение экрана: Full HD, Quad HD или Ultra HD;\nОбщий объем установленной оперативной памяти: не менее 8 Гбайт; \nМаксимальный общий поддерживаемый объем оперативной памяти: не менее 16 Гбайт",1,137970,{"$f":"IF(J267 >0, K267/J267, \"\")","v":137970}]
[null,null,null,null,"Художественная","Школьный театр",5,"Контроллер (1 шт.)","Контроль не менее 512 каналов DMX.Оптоизолированный выход. 32 последовательности; можно запустить 3 или более последовательности одновременно, скорость регулируется индивидуально.",16,152000,9500]
[null,null,null,null,"Художественная","Школьный театр",6,"Светодиодный прожектор (1 шт.) ","Светодиодный прожектор, белый теплый. Количество светодиодов не менее 54 х 3Вт. Питание: AC110-240В/50-60Гц. Угол  25 градусов. Управление: Авто/Звуком/DMX/Master-slave. Каналы DMX не менее 2-х. Эффект стробоскопа.",16,30000,1875]
[null,null,null,null,"Художественная","Школьный театр",7,"Светодиодный прожектор смена цвета (1шт.)","Светодиодный прожектор смены цвета. Изменение цвета, эффект стробоскопа. Не менее 54 светодиода. 12 красных, 18 зеленых, 18 синих, 6 белых. Управление: звуком/автоматический/DMX/Master-slave. Не менее 8 каналов DMX, Мощность не менее 180Вт. Питание: AC 100-240V, 50/60Hz.",16,80000,5000]
[null,null,null,null,"Художественная","Школьный театр",8,"Головной микрофон (1 шт.)","Подходит для выступлений на сцене и для вокала. Имеет крепление на одно ухо, частотный диапазон от 20 Гц до 20 кГц.",1,20000,20000]
[null,"МБУ ДО «Дом детского творчества» Гудермесского муниципального района","366209, ЧР, г.Гудермес, ул.Молодежная, 1","Город","Художественная","Школьный театр",1,"Микрофон (1 шт.)","2.14. Тип устройства: инстурментальный/вокальный микрофон;\r\nДиаграмма направленности капсюля: суперкардиоидная, с круговой симметрией относительно оси микрофона;\r\nКрепление: стандартный держатель для микрофона (в комплекте поставки); Частотные характеристики: от 50 Гц до 16 кГц;\r\nЧувствительность: 51,6 дБ;\r\nСопротивление: 150 Ом; \r\nУровень выходного сигнала -71 дБ (0.28 мВ)",1,40000,40000]
[null,null,null,null,"Художественная","Школьный театр",2,"Флипчарт ( 1 шт.)","магнитно-маркерная, 70x100см, на роликах, ECO, \"2х3\" TF03 ECO",1,16640,16640]
[null,null,null,null,"Художественная","Школьный театр",3,"Цветной принтер (1 шт.)","9.7.",1,80000,80000]
[null,null,null,null,"Художественная","Школьный театр",4,"Ноутбук с акустической системой (1 шт.)","Форм-фактор: ноутбук; \nРазмер диагонали: не менее 15.6 дюймов;\nРазрешение экрана: Full HD, Quad HD или Ultra HD;\nОбщий объем установленной оперативной памяти: не менее 8 Гбайт; \nМаксимальный общий поддерживаемый объем оперативной памяти: не менее 16 Гбайт",1,137970,137970]
[null,null,null,null,"Художественная","Школьный театр",5,"Контроллер (1 шт.)","Контроль не менее 512 каналов DMX.Оптоизолированный выход. 32 последовательности; можно запустить 3 или более последовательности одновременно, скорость регулируется индивидуально.",16,152000,9500]
[null,null,null,null,"Художественная","Школьный театр",6,"Светодиодный прожектор (1 шт.) ","Светодиодный прожектор, белый теплый. Количество светодиодов не менее 54 х 3Вт. Питание: AC110-240В/50-60Гц. Угол  25 градусов. Управление: Авто/Звуком/DMX/Master-slave. Каналы DMX не менее 2-х. Эффект стробоскопа.",16,30000,1875]
[null,null,null,null,"Художественная","Школьный театр",7,"Светодиодный прожектор смена цвета (1шт.)","Светодиодный прожектор смены цвета. Изменение цвета, эффект стробоскопа. Не менее 54 светодиода. 12 красных, 18 зеленых, 18 синих, 6 белых. Управление: звуком/автоматический/DMX/Master-slave. Не менее 8 каналов DMX, Мощность не менее 180Вт. Питание: AC 100-240V, 50/60Hz.",16,80000,5000]
[null,null,null,null,"Художественная","Школьный театр",8,"Головной микрофон (1 шт.)","Подходит для выступлений на сцене и для вокала. Имеет крепление на одно ухо, частотный диапазон от 20 Гц до 20 кГц.",1,20000,20000]
[null,"МБУ ДО \"Дом детского творчества Ножай-Юртовского муниципального района\"","366241. Ножай-Юртовский район, с.Ножай-Юрт, ул.А.А.Кадырова,108","село","Художественная","Школьный театр",1,"Микрофон (1 шт.)","2.14. Тип устройства: инстурментальный/вокальный микрофон;\r\nДиаграмма направленности капсюля: суперкардиоидная, с круговой симметрией относительно оси микрофона;\r\nКрепление: стандартный держатель для микрофона (в комплекте поставки); Частотные характеристики: от 50 Гц до 16 кГц;\r\nЧувствительность: 51,6 дБ;\r\nСопротивление: 150 Ом; \r\nУровень выходного сигнала -71 дБ (0.28 мВ)",1,40000,40000]
[null,null,null,null,"Художественная","Школьный театр",2,"Флипчарт ( 1 шт.)","магнитно-маркерная, 70x100см, на роликах, ECO, \"2х3\" TF03 ECO",1,16640,16640]
[null,null,null,null,"Художественная","Школьный театр",3,"Цветной принтер (1 шт.)","9.7.",1,80000,80000]
[null,null,null,null,"Художественная","Школьный театр",4,"Ноутбук с акустической системой (1 шт.)","Форм-фактор: ноутбук; \nРазмер диагонали: не менее 15.6 дюймов;\nРазрешение экрана: Full HD, Quad HD или Ultra HD;\nОбщий объем установленной оперативной памяти: не менее 8 Гбайт; \nМаксимальный общий поддерживаемый объем оперативной памяти: не менее 16 Гбайт",1,137970,137970]
[null,null,null,null,"Художественная","Школьный театр",5,"Контроллер (1 шт.)","Контроль не менее 512 каналов DMX.Оптоизолированный выход. 32 последовательности; можно запустить 3 или более последовательности одновременно, скорость регулируется индивидуально.",16,152000,9500]
[null,null,null,null,"Художественная","Школьный театр",6,"Светодиодный прожектор (1 шт.) ","Светодиодный прожектор, белый теплый. Количество светодиодов не менее 54 х 3Вт. Питание: AC110-240В/50-60Гц. Угол  25 градусов. Управление: Авто/Звуком/DMX/Master-slave. Каналы DMX не менее 2-х. Эффект стробоскопа.",16,30000,1875]
[null,null,null,null,"Художественная","Школьный театр",7,"Светодиодный прожектор смена цвета (1шт.)","Светодиодный прожектор смены цвета. Изменение цвета, эффект стробоскопа. Не менее 54 светодиода. 12 красных, 18 зеленых, 18 синих, 6 белых. Управление: звуком/автоматический/DMX/Master-slave. Не менее 8 каналов DMX, Мощность не менее 180Вт. Питание: AC 100-240V, 50/60Hz.",16,80000,5000]
[null,null,null,null,"Художественная","Школьный театр",8,"Головной микрофон (1 шт.)","Подходит для выступлений на сцене и для вокала. Имеет крепление на одно ухо, частотный диапазон от 20 Гц до 20 кГц.",1,20000,20000]
[null,"МБОУ  \"Шуанинская средняя школа \"","366913 ,Чеченская Республика , Гудермесский муниципальный район ,с.Шуани , ул.А.А.Кадырова ,24","Село","Художественная","Школьный театр",1,"Микрофон (1 шт.)","2.14. Тип устройства: инстурментальный/вокальный микрофон;\r\nДиаграмма направленности капсюля: суперкардиоидная, с круговой симметрией относительно оси микрофона;\r\nКрепление: стандартный держатель для микрофона (в комплекте поставки); Частотные характеристики: от 50 Гц до 16 кГц;\r\nЧувствительность: 51,6 дБ;\r\nСопротивление: 150 Ом; \r\nУровень выходного сигнала -71 дБ (0.28 мВ)",1,40000,40000]
[null,null,null,null,"Художественная","Школьный театр",2,"Флипчарт ( 1 шт.)","магнитно-маркерная, 70x100см, на роликах, ECO, \"2х3\" TF03 ECO",1,16640,16640]
[null,null,null,null,"Художественная","Школьный театр",3,"Цветной принтер (1 шт.)","9.7.",1,80000,80000]
[null,null,null,null,"Художественная","Школьный театр",4,"Ноутбук с акустической системой (1 шт.)","Форм-фактор: ноутбук; \nРазмер диагонали: не менее 15.6 дюймов;\nРазрешение экрана: Full HD, Quad HD или Ultra HD;\nОбщий объем установленной оперативной памяти: не менее 8 Гбайт; \nМаксимальный общий поддерживаемый объем оперативной памяти: не менее 16 Гбайт",1,137970,137970]
[null,null,null,null,"Художественная","Школьный театр",5,"Контроллер (1 шт.)","Контроль не менее 512 каналов DMX.Оптоизолированный выход. 32 последовательности; можно запустить 3 или более последовательности одновременно, скорость регулируется индивидуально.",16,152000,9500]
[null,null,null,null,"Художественная","Школьный театр",6,"Светодиодный прожектор (1 шт.) ","Светодиодный прожектор, белый теплый. Количество светодиодов не менее 54 х 3Вт. Питание: AC110-240В/50-60Гц. Угол  25 градусов. Управление: Авто/Звуком/DMX/Master-slave. Каналы DMX не менее 2-х. Эффект стробоскопа.",16,30000,1875]
[null,null,null,null,"Художественная","Школьный театр",7,"Светодиодный прожектор смена цвета (1шт.)","Светодиодный прожектор смены цвета. Изменение цвета, эффект стробоскопа. Не менее 54 светодиода. 12 красных, 18 зеленых, 18 синих, 6 белых. Управление: звуком/автоматический/DMX/Master-slave. Не менее 8 каналов DMX, Мощность не менее 180Вт. Питание: AC 100-240V, 50/60Hz.",16,80000,5000]
[null,null,null,null,"Художественная","Школьный театр",8,"Головной микрофон (1 шт.)","Подходит для выступлений на сцене и для вокала. Имеет крепление на одно ухо, частотный диапазон от 20 Гц до 20 кГц.",1,20000,20000]
[null,"МБОУ \"СОШ №7 г. Шали\"","366300, Чеченская Республика, г. Шали, ул. А-Х Кадырова, дом 359","город","Художественная","Школьный театр",1,"Микрофон (1 шт.)","2.14. Тип устройства: инстурментальный/вокальный микрофон;\r\nДиаграмма направленности капсюля: суперкардиоидная, с круговой симметрией относительно оси микрофона;\r\nКрепление: стандартный держатель для микрофона (в комплекте поставки); Частотные характеристики: от 50 Гц до 16 кГц;\r\nЧувствительность: 51,6 дБ;\r\nСопротивление: 150 Ом; \r\nУровень выходного сигнала -71 дБ (0.28 мВ)",1,40000,40000]
[null,null,null,null,"Художественная","Школьный театр",2,"Флипчарт ( 1 шт.)","магнитно-маркерная, 70x100см, на роликах, ECO, \"2х3\" TF03 ECO",1,16640,16640]
[null,null,null,null,"Художественная","Школьный театр",3,"Цветной принтер (1 шт.)","9.7.",1,80000,80000]
[null,null,null,null,"Художественная","Школьный театр",4,"Ноутбук с акустической системой (1 шт.)","Форм-фактор: ноутбук; \nРазмер диагонали: не менее 15.6 дюймов;\nРазрешение экрана: Full HD, Quad HD или Ultra HD;\nОбщий объем установленной оперативной памяти: не менее 8 Гбайт; \nМаксимальный общий поддерживаемый объем оперативной памяти: не менее 16 Гбайт",1,137970,137970]
[null,null,null,null,"Художественная","Школьный театр",5,"Контроллер (1 шт.)","Контроль не менее 512 каналов DMX.Оптоизолированный выход. 32 последовательности; можно запустить 3 или более последовательности одновременно, скорость регулируется индивидуально.",16,152000,9500]
[null,null,null,null,"Художественная","Школьный театр",6,"Светодиодный прожектор (1 шт.) ","Светодиодный прожектор, белый теплый. Количество светодиодов не менее 54 х 3Вт. Питание: AC110-240В/50-60Гц. Угол  25 градусов. Управление: Авто/Звуком/DMX/Master-slave. Каналы DMX не менее 2-х. Эффект стробоскопа.",16,30000,1875]
[null,null,null,null,"Художественная","Школьный театр",7,"Светодиодный прожектор смена цвета (1шт.)","Светодиодный прожектор смены цвета. Изменение цвета, эффект стробоскопа. Не менее 54 светодиода. 12 красных, 18 зеленых, 18 синих, 6 белых. Управление: звуком/автоматический/DMX/Master-slave. Не менее 8 каналов DMX, Мощность не менее 180Вт. Питание: AC 100-240V, 50/60Hz.",16,80000,5000]
[null,null,null,null,"Художественная","Школьный театр",8,"Головной микрофон (1 шт.)","Подходит для выступлений на сцене и для вокала. Имеет крепление на одно ухо, частотный диапазон от 20 Гц до 20 кГц.",1,20000,20000]
[null,"МБУ ДО \"Дом детского творчества Грозненского муниципального района \"","366013 ЧР., Грозненский район, с. Толстой-Юрт, ул. Староюртовская, б/н","село","Художественная","Школьный театр",1,"Микрофон (1 шт.)","2.14. Тип устройства: инстурментальный/вокальный микрофон;\r\nДиаграмма направленности капсюля: суперкардиоидная, с круговой симметрией относительно оси микрофона;\r\nКрепление: стандартный держатель для микрофона (в комплекте поставки); Частотные характеристики: от 50 Гц до 16 кГц;\r\nЧувствительность: 51,6 дБ;\r\nСопротивление: 150 Ом; \r\nУровень выходного сигнала -71 дБ (0.28 мВ)",1,40000,40000]
[null,null,null,null,"Художественная","Школьный театр",2,"Флипчарт ( 1 шт.)","магнитно-маркерная, 70x100см, на роликах, ECO, \"2х3\" TF03 ECO",1,16640,16640]
[null,null,null,null,"Художественная","Школьный театр",3,"Цветной принтер (1 шт.)","9.7.",1,80000,80000]
[null,null,null,null,"Художественная","Школьный театр",4,"Ноутбук с акустической системой (1 шт.)","Форм-фактор: ноутбук; \nРазмер диагонали: не менее 15.6 дюймов;\nРазрешение экрана: Full HD, Quad HD или Ultra HD;\nОбщий объем установленной оперативной памяти: не менее 8 Гбайт; \nМаксимальный общий поддерживаемый объем оперативной памяти: не менее 16 Гбайт",1,137970,137970]
[null,null,null,null,"Художественная","Школьный театр",5,"Контроллер (1 шт.)","Контроль не менее 512 каналов DMX.Оптоизолированный выход. 32 последовательности; можно запустить 3 или более последовательности одновременно, скорость регулируется индивидуально.",16,152000,9500]
[null,null,null,null,"Художественная","Школьный театр",6,"Светодиодный прожектор (1 шт.) ","Светодиодный прожектор, белый теплый. Количество светодиодов не менее 54 х 3Вт. Питание: AC110-240В/50-60Гц. Угол  25 градусов. Управление: Авто/Звуком/DMX/Master-slave. Каналы DMX не менее 2-х. Эффект стробоскопа.",16,30000,1875]
[null,null,null,null,"Художественная","Школьный театр",7,"Светодиодный прожектор смена цвета (1шт.)","Светодиодный прожектор смены цвета. Изменение цвета, эффект стробоскопа. Не менее 54 светодиода. 12 красных, 18 зеленых, 18 синих, 6 белых. Управление: звуком/автоматический/DMX/Master-slave. Не менее 8 каналов DMX, Мощность не менее 180Вт. Питание: AC 100-240V, 50/60Hz.",16,80000,5000]
[null,null,null,null,"Художественная","Школьный театр",8,"Головной микрофон (1 шт.)","Подходит для выступлений на сцене и для вокала. Имеет крепление на одно ухо, частотный диапазон от 20 Гц до 20 кГц.",1,20000,20000]
[null,"ГБУ ДО «Республиканский детско-юношеский  центр физического воспитания, \nспорта и туризма»","364007, Чеченская Республика, г. Грозный, ул. Даудова, 94а.","город","Физкультурно-спортивная","Шахматы",1,"Часы шахматные (10 шт.)","7.7.",2,4536,2268]
[null,null,null,null,"Физкультурно-спортивная","Шахматы",2,"Доска шахматная демонстрационная с фигурами демонстрационными (1 шт.)","7.1.",20,5515,275.75]
[null,null,null,null,"Физкультурно-спортивная","Шахматы",3,"Доска шахматная с фигурами шахматными (10 шт.)","7.2.",2,1593,796.5]
[null,null,null,null,"Физкультурно-спортивная","Шахматы",4,"Стол шахматный (10 шт.)","7.5.",2,14952,7476]
[null,null,null,null,"Физкультурно-спортивная","Шахматы",5,"Табурет к шахматному столу (20 шт.)","7.6.",1,3364,3364]
[null,null,null,null,"Физкультурно-спортивная","Шахматы",6,"Флипчарт (1 шт.)","8.1.9. (туристско-краеведческая) Функциональное назначениеДля письма маркером, Для крепления информации магнитами\nТип доскиПередвижная (мобильная)\nКоличество рабочих поверхностей2\nМатериал покрытия рабочей поверхностиАнтибликовое полимерное\nПроизводительАэлита\nРазметка рабочей поверхностине предусмотрена\nМатериал профиля (окантовки)Металл",20,16640,832]
[null,"МБОУ \"СОШ №3 с.Гехи им. А-Х. Кадырова\"","Чеченская Республика, Урус-Мартановский район,с.Гехи, улица Кавказская, 120","село","Физкультурно-спортивная","Шахматы",1,"Часы шахматные (10 шт.)","7.7.",2,4536,2268]
[null,null,null,null,"Физкультурно-спортивная","Шахматы",2,"Доска шахматная демонстрационная с фигурами демонстрационными (1 шт.)","7.1.",20,5515,275.75]
[null,null,null,null,"Физкультурно-спортивная","Шахматы",3,"Доска шахматная с фигурами шахматными (10 шт.)","7.2.",2,1593,796.5]
[null,null,null,null,"Физкультурно-спортивная","Шахматы",4,"Стол шахматный (10 шт.)","7.5.",2,14952,7476]
[null,null,null,null,"Физкультурно-спортивная","Шахматы",5,"Табурет к шахматному столу (20 шт.)","7.6.",1,3364,3364]
[null,null,null,null,"Физкультурно-спортивная","Шахматы",6,"Флипчарт (1 шт.)","8.1.9. (туристско-краеведческая) Функциональное назначениеДля письма маркером, Для крепления информации магнитами\nТип доскиПередвижная (мобильная)\nКоличество рабочих поверхностей2\nМатериал покрытия рабочей поверхностиАнтибликовое полимерное\nПроизводительАэлита\nРазметка рабочей поверхностине предусмотрена\nМатериал профиля (окантовки)Металл",20,16640,832]
[null,"МБОУ \"СОШ № 2 г. Урус-Мартан\"","Урус-Мартановский муниципальныйрайон, ул. им.шейха С-Х.Яндарова,76","город","Физкультурно-спортивная","Шахматы",1,"Часы шахматные (10 шт.)","7.7.",2,4536,2268]
[null,null,null,null,"Физкультурно-спортивная","Шахматы",2,"Доска шахматная демонстрационная с фигурами демонстрационными (1 шт.)","7.1.",20,5515,275.75]
[null,null,null,null,"Физкультурно-спортивная","Шахматы",3,"Доска шахматная с фигурами шахматными (10 шт.)","7.2.",2,1593,796.5]
[null,null,null,null,"Физкультурно-спортивная","Шахматы",4,"Стол шахматный (10 шт.)","7.5.",2,14952,7476]
[null,null,null,null,"Физкультурно-спортивная","Шахматы",5,"Табурет к шахматному столу (20 шт.)","7.6.",1,3364,3364]
[null,null,null,null,"Физкультурно-спортивная","Шахматы",6,"Флипчарт (1 шт.)","8.1.9. (туристско-краеведческая) Функциональное назначениеДля письма маркером, Для крепления информации магнитами\nТип доскиПередвижная (мобильная)\nКоличество рабочих поверхностей2\nМатериал покрытия рабочей поверхностиАнтибликовое полимерное\nПроизводительАэлита\nРазметка рабочей поверхностине предусмотрена\nМатериал профиля (окантовки)Металл",20,16640,832]
[null,"МБУ ДО   \"Ачхой-Мартановский Дом юных техников\"","366612,ЧР, с.Ачхой-Мартан, ул.Асхабова,2","село","Физкультурно-спортивная","Шахматы",1,"Часы шахматные (10 шт.)","7.7.",2,4536,2268]
[null,null,null,null,"Физкультурно-спортивная","Шахматы",2,"Доска шахматная демонстрационная с фигурами демонстрационными (1 шт.)","7.1.",20,5515,275.75]
[null,null,null,null,"Физкультурно-спортивная","Шахматы",3,"Доска шахматная с фигурами шахматными (10 шт.)","7.2.",2,1593,796.5]
[null,null,null,null,"Физкультурно-спортивная","Шахматы",4,"Стол шахматный (10 шт.)","7.5.",2,14952,7476]
[null,null,null,null,"Физкультурно-спортивная","Шахматы",5,"Табурет к шахматному столу (20 шт.)","7.6.",1,3364,3364]
[null,null,null,null,"Физкультурно-спортивная","Шахматы",6,"Флипчарт (1 шт.)","8.1.9. (туристско-краеведческая) Функциональное назначениеДля письма маркером, Для крепления информации магнитами\nТип доскиПередвижная (мобильная)\nКоличество рабочих поверхностей2\nМатериал покрытия рабочей поверхностиАнтибликовое полимерное\nПроизводительАэлита\nРазметка рабочей поверхностине предусмотрена\nМатериал профиля (окантовки)Металл",20,16640,832]
[null,"МБУ ДО  «Наурский Центр детско-юношеского технического творчества»","366128, ЧР, Наурский район, ст. Наурская, ул.Джона Рида, дом 47а","село","Физкультурно-спортивная","Шахматы",1,"Часы шахматные (10 шт.)","7.7.",2,4536,2268]
[null,null,null,null,"Физкультурно-спортивная","Шахматы",2,"Доска шахматная демонстрационная с фигурами демонстрационными (1 шт.)","7.1.",20,5515,275.75]
[null,null,null,null,"Физкультурно-спортивная","Шахматы",3,"Доска шахматная с фигурами шахматными (10 шт.)","7.2.",2,1593,796.5]
[null,null,null,null,"Физкультурно-спортивная","Шахматы",4,"Стол шахматный (10 шт.)","7.5.",2,14952,7476]
[null,null,null,null,"Физкультурно-спортивная","Шахматы",5,"Табурет к шахматному столу (20 шт.)","7.6.",1,3364,3364]
[null,null,null,null,"Физкультурно-спортивная","Шахматы",6,"Флипчарт (1 шт.)","8.1.9. (туристско-краеведческая) Функциональное назначениеДля письма маркером, Для крепления информации магнитами\nТип доскиПередвижная (мобильная)\nКоличество рабочих поверхностей2\nМатериал покрытия рабочей поверхностиАнтибликовое полимерное\nПроизводительАэлита\nРазметка рабочей поверхностине предусмотрена\nМатериал профиля (окантовки)Металл",20,16640,832]
[null,"МБУ ДО  \"Веденский районный центр детско-юнощеского технического творчества\"","Веденский р-он,                          с. Ведено,ул. Исаева 7","село ","Физкультурно-спортивная","Шахматы",1,"Часы шахматные (10 шт.)","7.7.",2,4536,2268]
[null,null,null,null,"Физкультурно-спортивная","Шахматы",2,"Доска шахматная демонстрационная с фигурами демонстрационными (1 шт.)","7.1.",20,5515,275.75]
[null,null,null,null,"Физкультурно-спортивная","Шахматы",3,"Доска шахматная с фигурами шахматными (10 шт.)","7.2.",2,1593,796.5]
[null,null,null,null,"Физкультурно-спортивная","Шахматы",4,"Стол шахматный (10 шт.)","7.5.",2,14952,7476]
[null,null,null,null,"Физкультурно-спортивная","Шахматы",5,"Табурет к шахматному столу (20 шт.)","7.6.",1,3364,3364]
[null,null,null,null,"Физкультурно-спортивная","Шахматы",6,"Флипчарт (1 шт.)","8.1.9. (туристско-краеведческая) Функциональное назначениеДля письма маркером, Для крепления информации магнитами\nТип доскиПередвижная (мобильная)\nКоличество рабочих поверхностей2\nМатериал покрытия рабочей поверхностиАнтибликовое полимерное\nПроизводительАэлита\nРазметка рабочей поверхностине предусмотрена\nМатериал профиля (окантовки)Металл",20,16640,832]
[null,"МБОУ  \"Шуанинская средняя школа \"","366913 ,Чеченская Республика , Гудермесский муниципальный район ,с.Шуани , ул.А.А.Кадырова ,24","Село","Физкультурно-спортивная","Шахматы",1,"Часы шахматные (10 шт.)","7.7.",2,4536,2268]
[null,null,null,null,"Физкультурно-спортивная","Шахматы",2,"Доска шахматная демонстрационная с фигурами демонстрационными (1 шт.)","7.1.",20,5515,275.75]
[null,null,null,null,"Физкультурно-спортивная","Шахматы",3,"Доска шахматная с фигурами шахматными (10 шт.)","7.2.",2,1593,796.5]
[null,null,null,null,"Физкультурно-спортивная","Шахматы",4,"Стол шахматный (10 шт.)","7.5.",2,14952,7476]
[null,null,null,null,"Физкультурно-спортивная","Шахматы",5,"Табурет к шахматному столу (20 шт.)","7.6.",1,3364,3364]
[null,null,null,null,"Физкультурно-спортивная","Шахматы",6,"Флипчарт (1 шт.)","8.1.9. (туристско-краеведческая) Функциональное назначениеДля письма маркером, Для крепления информации магнитами\nТип доскиПередвижная (мобильная)\nКоличество рабочих поверхностей2\nМатериал покрытия рабочей поверхностиАнтибликовое полимерное\nПроизводительАэлита\nРазметка рабочей поверхностине предусмотрена\nМатериал профиля (окантовки)Металл",20,16640,832]
[null,"МБУ ДО \"Дом детского творчества  Грозненского муниципального района\"","ЧР, Грозненский район, с.Толстой-Юрт, ул. Староюртовская, б/н.","село","Физкультурно-спортивная","Шахматы",1,"Часы шахматные (10 шт.)","7.7.",2,4536,2268]
[null,null,null,null,"Физкультурно-спортивная","Шахматы",2,"Доска шахматная демонстрационная с фигурами демонстрационными (1 шт.)","7.1.",20,5515,275.75]
[null,null,null,null,"Физкультурно-спортивная","Шахматы",3,"Доска шахматная с фигурами шахматными (10 шт.)","7.2.",2,1593,796.5]
[null,null,null,null,"Физкультурно-спортивная","Шахматы",4,"Стол шахматный (10 шт.)","7.5.",2,14952,7476]
[null,null,null,null,"Физкультурно-спортивная","Шахматы",5,"Табурет к шахматному столу (20 шт.)","7.6.",1,3364,3364]
[null,null,null,null,"Физкультурно-спортивная","Шахматы",6,"Флипчарт (1 шт.)","8.1.9. (туристско-краеведческая) Функциональное назначениеДля письма маркером, Для крепления информации магнитами\nТип доскиПередвижная (мобильная)\nКоличество рабочих поверхностей2\nМатериал покрытия рабочей поверхностиАнтибликовое полимерное\nПроизводительАэлита\nРазметка рабочей поверхностине предусмотрена\nМатериал профиля (окантовки)Металл",20,16640,832]
[null,"МБУ ДО \" Курчалоевский детско-юношеский цетр\"","г.Курчалой, ул.Берса-Шейха 3","город","Физкультурно-спортивная","Шахматы",1,"Часы шахматные (10 шт.)","7.7.",2,4536,2268]
[null,null,null,null,"Физкультурно-спортивная","Шахматы",2,"Доска шахматная демонстрационная с фигурами демонстрационными (1 шт.)","7.1.",20,5515,275.75]
[null,null,null,null,"Физкультурно-спортивная","Шахматы",3,"Доска шахматная с фигурами шахматными (10 шт.)","7.2.",2,1593,796.5]
[null,null,null,null,"Физкультурно-спортивная","Шахматы",4,"Стол шахматный (10 шт.)","7.5.",2,14952,7476]
[null,null,null,null,"Физкультурно-спортивная","Шахматы",5,"Табурет к шахматному столу (20 шт.)","7.6.",1,3364,3364]
[null,null,null,null,"Физкультурно-спортивная","Шахматы",6,"Флипчарт (1 шт.)","8.1.9. (туристско-краеведческая) Функциональное назначениеДля письма маркером, Для крепления информации магнитами\nТип доскиПередвижная (мобильная)\nКоличество рабочих поверхностей2\nМатериал покрытия рабочей поверхностиАнтибликовое полимерное\nПроизводительАэлита\nРазметка рабочей поверхностине предусмотрена\nМатериал профиля (окантовки)Металл",20,16640,832]
[null,"МБОУ \"Гимназия № 1 им. А. Кадырова\" г. Грозного","г. Грозный, ул. Кабардинская, 2","Город","Физкультурно-спортивная","Шахматы",1,"Часы шахматные (10 шт.)","7.7.",2,4536,2268]
[null,null,null,null,"Физкультурно-спортивная","Шахматы",2,"Доска шахматная демонстрационная с фигурами демонстрационными (1 шт.)","7.1.",20,5515,275.75]
[null,null,null,null,"Физкультурно-спортивная","Шахматы",3,"Доска шахматная с фигурами шахматными (10 шт.)","7.2.",2,1593,796.5]
[null,null,null,null,"Физкультурно-спортивная","Шахматы",4,"Стол шахматный (10 шт.)","7.5.",2,14952,7476]
[null,null,null,null,"Физкультурно-спортивная","Шахматы",5,"Табурет к шахматному столу (20 шт.)","7.6.",1,3364,3364]
[null,null,null,null,"Физкультурно-спортивная","Шахматы",6,"Флипчарт (1 шт.)","8.1.9. (туристско-краеведческая) Функциональное назначениеДля письма маркером, Для крепления информации магнитами\nТип доскиПередвижная (мобильная)\nКоличество рабочих поверхностей2\nМатериал покрытия рабочей поверхностиАнтибликовое полимерное\nПроизводительАэлита\nРазметка рабочей поверхностине предусмотрена\nМатериал профиля (окантовки)Металл",20,16640,832]
[null,"МБОУ \"Лицей № 1 им. Н.А. Назарбаева\"    г.Грозный ","г. Грозный, ул. В.А.Кан-Калика, 60","Город","Физкультурно-спортивная","Шахматы",1,"Часы шахматные (10 шт.)","7.7.",2,4536,2268]
[null,null,null,null,"Физкультурно-спортивная","Шахматы",2,"Доска шахматная демонстрационная с фигурами демонстрационными (1 шт.)","7.1.",20,5515,275.75]
[null,null,null,null,"Физкультурно-спортивная","Шахматы",3,"Доска шахматная с фигурами шахматными (10 шт.)","7.2.",2,1593,796.5]
[null,null,null,null,"Физкультурно-спортивная","Шахматы",4,"Стол шахматный (10 шт.)","7.5.",2,14952,7476]
[null,null,null,null,"Физкультурно-спортивная","Шахматы",5,"Табурет к шахматному столу (20 шт.)","7.6.",1,3364,3364]
[null,null,null,null,"Физкультурно-спортивная","Шахматы",6,"Флипчарт (1 шт.)","8.1.9. (туристско-краеведческая) Функциональное назначениеДля письма маркером, Для крепления информации магнитами\nТип доскиПередвижная (мобильная)\nКоличество рабочих поверхностей2\nМатериал покрытия рабочей поверхностиАнтибликовое полимерное\nПроизводительАэлита\nРазметка рабочей поверхностине предусмотрена\nМатериал профиля (окантовки)Металл",20,16640,832]
[null,"ГБУ ДО «Республиканский детско-юношеский  центр физического воспитания, \nспорта и туризма»","364007, Чеченская Республика, г. Грозный, ул. Даудова, 94а.","город","Физкультурно-спортивная","мини-футбол",1,"Мяч мини-футбольный тренировочный (20 шт.)","4.1.",20,2657,132.85]
[null,null,null,null,"Физкультурно-спортивная","мини-футбол",2,"Мяч мини-футбольный соревновательный (10 шт.)","4.2.",2,3040,1520]
[null,null,null,null,"Физкультурно-спортивная","мини-футбол",3,"Сетка футзальная, гандбольные (3 шт.)","4.3.",20,6564,328.2]
[null,null,null,null,"Физкультурно-спортивная","мини-футбол",4,"Ворота футзальные (1 комплект)","4.4.",20,150000,7500]
[null,null,null,null,"Физкультурно-спортивная","мини-футбол",5,"Манишки тренировочные (10 шт.)","4.10.",20,791,39.549999999999997]
[null,null,null,null,"Физкультурно-спортивная","мини-футбол",6,"Фишки тренировочные (10 шт.)","4.11.",20,148,7.4]
[null,null,null,null,"Физкультурно-спортивная","мини-футбол",7,"Набивной мяч (10шт.)","4.12.",20,3924,196.2]
[null,null,null,null,"Физкультурно-спортивная","мини-футбол",8,"Флипчарт (1 шт.)","8.1.9 (туристско-краеведческая)",20,16640,832]
[null,"МБУ ДО  \"Дом детско-юношеского туризма и экскурсии Грозненского муниципального района\"","366030, ЧР, Грозненский район, с. Центора-Юрт, ул. Аксайская 30","село","Физкультурно-спортивная","мини-футбол",1,"Мяч мини-футбольный тренировочный (20 шт.)","4.1.",20,2657,132.85]
[null,null,null,null,"Физкультурно-спортивная","мини-футбол",2,"Мяч мини-футбольный соревновательный (10 шт.)","4.2.",2,3040,1520]
[null,null,null,null,"Физкультурно-спортивная","мини-футбол",3,"Сетка футзальная, гандбольные (3 шт.)","4.3.",20,6564,328.2]
[null,null,null,null,"Физкультурно-спортивная","мини-футбол",4,"Ворота футзальные (1 комплект)","4.4.",20,150000,7500]
[null,null,null,null,"Физкультурно-спортивная","мини-футбол",5,"Манишки тренировочные (10 шт.)","4.10.",20,791,39.549999999999997]
[null,null,null,null,"Физкультурно-спортивная","мини-футбол",6,"Фишки тренировочные (10 шт.)","4.11.",20,148,7.4]
[null,null,null,null,"Физкультурно-спортивная","мини-футбол",7,"Набивной мяч (10шт.)","4.12.",20,3924,196.2]
[null,null,null,null,"Физкультурно-спортивная","мини-футбол",8,"Флипчарт (1 шт.)","8.1.9 (туристско-краеведческая)",20,16640,832]
[null,"МБУ ДО  \"Курчалоевский детско-юношеский центр\"","г.Курчалой, ул.Берса-Шейха 3","город Курчалой","Физкультурно-спортивная","мини-футбол",1,"Мяч мини-футбольный тренировочный (20 шт.)","4.1.",20,2657,132.85]
[null,null,null,null,"Физкультурно-спортивная","мини-футбол",2,"Мяч мини-футбольный соревновательный (10 шт.)","4.2.",2,3040,1520]
[null,null,null,null,"Физкультурно-спортивная","мини-футбол",3,"Сетка футзальная, гандбольные (3 шт.)","4.3.",20,6564,328.2]
[null,null,null,null,"Физкультурно-спортивная","мини-футбол",4,"Ворота футзальные (1 комплект)","4.4.",20,150000,7500]
[null,null,null,null,"Физкультурно-спортивная","мини-футбол",5,"Манишки тренировочные (10 шт.)","4.10.",20,791,{"$f":"IF(J398 >0, K398/J398, \"\")","v":39.549999999999997}]
[null,null,null,null,"Физкультурно-спортивная","мини-футбол",6,"Фишки тренировочные (10 шт.)","4.11.",20,148,7.4]
[null,null,null,null,"Физкультурно-спортивная","мини-футбол",7,"Набивной мяч (10шт.)","4.12.",20,3924,196.2]
[null,null,null,null,"Физкультурно-спортивная","мини-футбол",8,"Флипчарт (1 шт.)","8.1.9 (туристско-краеведческая)",20,16640,832]
[null,"МБУ ДО  \"Веденский районный центр детско-юнощеского технического творчества\"","Веденский р-он,                          с. Ведено,ул. Исаева 7","село ","Техническая ","Робототехника",1,"Робототехника (начальный уровень, для детей 7 - 9 лет) (1 комплект)","1.1.",15,1162989,77532.600000000006]
[null,null,null,null,"Техническая ","Робототехника",2,"Робототехника (продвинутый уровень) - проектирование и конструирование мобильных роботов (1 комплект)","1.4.",15,2255040,150336]
[null,null,null,null,"Техническая ","Робототехника",3,"Робототехника (средний уровень, для детей 9 - 11 лет) (1 комплект)","1.3.",15,959040,63936]
[null,"МБОУ  «Средняя общеобразовательная школа п. Долинский Грозненского муниципального района»","366019\nЧеченская Республика, Грозненский муниципальный район, п. Долинский , б/у, б/н\n","село","Техническая ","Робототехника",1,"Робототехника (начальный уровень, для детей 7 - 9 лет) (1 комплект)","1.1.",15,1162989,77532.600000000006]
[null,null,null,null,"Техническая ","Робототехника",2,"Робототехника (продвинутый уровень) - проектирование и конструирование мобильных роботов (1 комплект)","1.4.",15,2255040,150336]
[null,null,null,null,"Техническая ","Робототехника",3,"Робототехника (средний уровень, для детей 9 - 11 лет) (1 комплект)","1.3.",15,959040,63936]
[null,"МБУ ДО  «Дом юных техников Гудермесского муниципального района»","Гудермес, ул. Кирова, 171","Город","Техническая ","Робототехника",1,"Робототехника (начальный уровень, для детей 7 - 9 лет) (1 комплект)","1.1.",15,1162989,77532.600000000006]
[null,null,null,null,"Техническая ","Робототехника",2,"Робототехника (продвинутый уровень) - проектирование и конструирование мобильных роботов (1 комплект)","1.4.",15,2255040,150336]
[null,null,null,null,"Техническая ","Робототехника",3,"Робототехника (средний уровень, для детей 9 - 11 лет) (1 комплект)","1.3.",15,959040,63936]
[null,"МБУ ДО «Наурский Центр детско-юношеского технического творчества»","366128, ЧР, Наурский район, ст. Наурская, ул.Джона Рида, дом 47а","село","Техническая ","Геоинформатика и виртуальная/ дополненная реальность",1,"Квадрокоптер для видеосъемки, профессиональный (1 шт.)","8.5.Аккумулятор 5870 мА·ч, Время полета (минуты) 30, Дальность действия аппаратуры (м) 4000, Разрешение видеозаписи 1920x1080, Количество винтов 4, поддерживаемое мобильное приложение iOS / Android, Максимальная скорость полета (м/с) 20",1,150000,150000]
[null,null,null,null,"Техническая ","Геоинформатика и виртуальная/ дополненная реальность",2,"Камера 360 полупрофессиональная (1шт.)","Угол обзора линзы 360 градусов, Совместимость iOS 8+, Android 4.3+, Разрешение видео 1504 x 1504 пикс, Электропитание Аккумулятор, Интерфейсы USB-интерфейс, Wi-Fi, Bluetooth, Вес 138 гр, Габариты гаджета 61x61x61 мм, Зарядка до 2 часов, Водонепроницаемость IP6X, Вес (кг) 0.7.",1,134160,134160]
[null,null,null,null,"Техническая ","Геоинформатика и виртуальная/ дополненная реальность",3,"Ноутбук (12 шт.)","Форм-фактор: ноутбук; \nРазмер диагонали: не менее 15.6 дюймов;\nРазрешение экрана: Full HD, Quad HD или Ultra HD;\nОбщий объем установленной оперативной памяти: не менее 8 Гбайт; \nМаксимальный общий поддерживаемый объем оперативной памяти: не менее 16 Гбайт",1,120000,120000]
[null,"МБУ ДО \"Станция детского (юношеского)технического творчества г.Грозного\"","г. Грозный, ул. Кутузова, 11","Город","Техническая ","Геоинформатика и виртуальная/ дополненная реальность",1,"Квадрокоптер для видеосъемки, профессиональный (1 шт.)","8.5.Аккумулятор 5870 мА·ч, Время полета (минуты) 30, Дальность действия аппаратуры (м) 4000, Разрешение видеозаписи 1920x1080, Количество винтов 4, поддерживаемое мобильное приложение iOS / Android, Максимальная скорость полета (м/с) 20",1,150000,150000]
[null,null,null,null,"Техническая ","Геоинформатика и виртуальная/ дополненная реальность",2,"Камера 360 полупрофессиональная (1шт.)","Угол обзора линзы 360 градусов, Совместимость iOS 8+, Android 4.3+, Разрешение видео 1504 x 1504 пикс, Электропитание Аккумулятор, Интерфейсы USB-интерфейс, Wi-Fi, Bluetooth, Вес 138 гр, Габариты гаджета 61x61x61 мм, Зарядка до 2 часов, Водонепроницаемость IP6X, Вес (кг) 0.7.",1,134160,134160]
[null,null,null,null,"Техническая ","Геоинформатика и виртуальная/ дополненная реальность",3,"Ноутбук (12 шт.)","Форм-фактор: ноутбук; \nРазмер диагонали: не менее 15.6 дюймов;\nРазрешение экрана: Full HD, Quad HD или Ultra HD;\nОбщий объем установленной оперативной памяти: не менее 8 Гбайт; \nМаксимальный общий поддерживаемый объем оперативной памяти: не менее 16 Гбайт",1,120000,120000]
[null,"МБУ ДО \"Дом юных техников Грозненского муниципального района\"","ЧР, Грозненский район, село Садовое, ул. М.Д. Бахмадова, 35","село","Техническая ","Геоинформатика и виртуальная/ дополненная реальность",1,"Квадрокоптер для видеосъемки, профессиональный (1 шт.)","8.5.Аккумулятор 5870 мА·ч, Время полета (минуты) 30, Дальность действия аппаратуры (м) 4000, Разрешение видеозаписи 1920x1080, Количество винтов 4, поддерживаемое мобильное приложение iOS / Android, Максимальная скорость полета (м/с) 20",1,150000,150000]
[null,null,null,null,"Техническая ","Геоинформатика и виртуальная/ дополненная реальность",2,"Камера 360 полупрофессиональная (1шт.)","Угол обзора линзы 360 градусов, Совместимость iOS 8+, Android 4.3+, Разрешение видео 1504 x 1504 пикс, Электропитание Аккумулятор, Интерфейсы USB-интерфейс, Wi-Fi, Bluetooth, Вес 138 гр, Габариты гаджета 61x61x61 мм, Зарядка до 2 часов, Водонепроницаемость IP6X, Вес (кг) 0.7.",1,134160,134160]
[null,null,null,null,"Техническая ","Геоинформатика и виртуальная/ дополненная реальность",3,"Ноутбук (12 шт.)","Форм-фактор: ноутбук; \nРазмер диагонали: не менее 15.6 дюймов;\nРазрешение экрана: Full HD, Quad HD или Ultra HD;\nОбщий объем установленной оперативной памяти: не менее 8 Гбайт; \nМаксимальный общий поддерживаемый объем оперативной памяти: не менее 16 Гбайт",1,120000,120000]
[null,"МБУ ДО \"Ножай-Юртовский районный центр детско-юношеского технического творчества\"","366241. Ножай-Юртовский район, с.Ножай-Юрт, ул.А.А.Кадырова,108","село","Техническая ","Геоинформатика и виртуальная/ дополненная реальность",1,"Квадрокоптер для видеосъемки, профессиональный (1 шт.)","8.5.Аккумулятор 5870 мА·ч, Время полета (минуты) 30, Дальность действия аппаратуры (м) 4000, Разрешение видеозаписи 1920x1080, Количество винтов 4, поддерживаемое мобильное приложение iOS / Android, Максимальная скорость полета (м/с) 20",1,150000,150000]
[null,null,null,null,"Техническая ","Геоинформатика и виртуальная/ дополненная реальность",2,"Камера 360 полупрофессиональная (1шт.)","Угол обзора линзы 360 градусов, Совместимость iOS 8+, Android 4.3+, Разрешение видео 1504 x 1504 пикс, Электропитание Аккумулятор, Интерфейсы USB-интерфейс, Wi-Fi, Bluetooth, Вес 138 гр, Габариты гаджета 61x61x61 мм, Зарядка до 2 часов, Водонепроницаемость IP6X, Вес (кг) 0.7.",1,134160,134160]
[null,null,null,null,"Техническая ","Геоинформатика и виртуальная/ дополненная реальность",3,"Ноутбук (12 шт.)","Форм-фактор: ноутбук; \nРазмер диагонали: не менее 15.6 дюймов;\nРазрешение экрана: Full HD, Quad HD или Ultra HD;\nОбщий объем установленной оперативной памяти: не менее 8 Гбайт; \nМаксимальный общий поддерживаемый объем оперативной памяти: не менее 16 Гбайт",1,120000,120000]
[null,"МБУ ДО  \"Веденский районный центр детско-юношеского технического творчества\"","Веденский р-он,                          с. Ведено,ул. Исаева 7","село ","Техническая ","Геоинформатика и виртуальная/ дополненная реальность",1,"Квадрокоптер для видеосъемки, профессиональный (1 шт.)","8.5.Аккумулятор 5870 мА·ч, Время полета (минуты) 30, Дальность действия аппаратуры (м) 4000, Разрешение видеозаписи 1920x1080, Количество винтов 4, поддерживаемое мобильное приложение iOS / Android, Максимальная скорость полета (м/с) 20",1,150000,150000]
[null,null,null,null,"Техническая ","Геоинформатика и виртуальная/ дополненная реальность",2,"Камера 360 полупрофессиональная (1шт.)","Угол обзора линзы 360 градусов, Совместимость iOS 8+, Android 4.3+, Разрешение видео 1504 x 1504 пикс, Электропитание Аккумулятор, Интерфейсы USB-интерфейс, Wi-Fi, Bluetooth, Вес 138 гр, Габариты гаджета 61x61x61 мм, Зарядка до 2 часов, Водонепроницаемость IP6X, Вес (кг) 0.7.",1,134160,134160]
[null,null,null,null,"Техническая ","Геоинформатика и виртуальная/ дополненная реальность",3,"Ноутбук (12 шт.)","Форм-фактор: ноутбук; \nРазмер диагонали: не менее 15.6 дюймов;\nРазрешение экрана: Full HD, Quad HD или Ultra HD;\nОбщий объем установленной оперативной памяти: не менее 8 Гбайт; \nМаксимальный общий поддерживаемый объем оперативной памяти: не менее 16 Гбайт",1,120000,120000]
[null,null,null,null,null,null,null,null,null,null,null,""]
[null,null,null,null,null,null,null,null,null,null,null,""]
[null,null,null,null,null,null,null,null,null,null,null,""]
[null,null,null,null,null,null,null,null,null,null,null,""]
[null,null,null,null,null,null,null,null,null,null,null,""]
[null,null,null,null,null,null,null,null,null,null,null,""]
[null,null,null,null,null,null,null,null,null,null,null,""]
[null,null,null,null,null,null,null,null,null,null,null,""]
[null,null,null,null,null,null,null,null,null,null,null,""]
[null,null,null,null,null,null,null,null,null,null,null,""]
[null,null,null,null,null,null,null,null,null,null,null,""]
[null,null,null,null,null,null,null,null,null,null,null,""]
[null,null,null,null,null,null,null,null,null,null,null,""]
[null,null,null,null,null,null,null,null,null,null,null,""]
[null,null,null,null,null,null,null,null,null,null,null,""]
[null,null,null,null,null,null,null,null,null,null,null,""]
[null,null,null,null,null,null,null,null,null,null,null,""]
[null,null,null,null,null,null,null,null,null,null,null,""]
[null,null,null,null,null,null,null,null,null,null,null,""]
[null,null,null,null,null,null,null,null,null,null,null,""]
[null,null,null,null,null,null,null,null,null,null,null,""]
[null,null,null,null,null,null,null,null,null,null,null,""]
[null,null,null,null,null,null,null,null,null,null,null,""]
[null,null,null,null,null,null,null,null,null,null,null,""]
[null,null,null,null,null,null,null,null,null,null,null,""]
[null,null,null,null,null,null,null,null,null,null,null,""]
[null,null,null,null,null,null,null,null,null,null,null,""]
[null,null,null,null,null,null,null,null,null,null,null,""]
[null,null,null,null,null,null,null,null,null,null,null,""]
[null,null,null,null,null,null,null,null,null,null,null,""]
[null,null,null,null,null,null,null,null,null,null,null,""]
[null,null,null,null,null,null,null,null,null,null,null,""]
[null,null,null,null,null,null,null,null,null,null,null,""]
[null,null,null,null,null,null,null,null,null,null,null,""]
[null,null,null,null,null,null,null,null,null,null,null,""]
[null,null,null,null,null,null,null,null,null,null,null,""]
[null,null,null,null,null,null,null,null,null,null,null,{"$f":"IF(J462 >0, K462/J462, \"\")","v":""}]
[null,null,null,null,null,null,null,null,null,null,null,""]
[null,null,null,null,null,null,null,null,null,null,null,""]
[null,null,null,null,null,null,null,null,null,null,null,""]
[null,null,null,null,null,null,null,null,null,null,null,""]
[null,null,null,null,null,null,null,null,null,null,null,""]
[null,null,null,null,null,null,null,null,null,null,null,""]
[null,null,null,null,null,null,null,null,null,null,null,""]
[null,null,null,null,null,null,null,null,null,null,null,""]
[null,null,null,null,null,null,null,null,null,null,null,""]
[null,null,null,null,null,null,null,null,null,null,null,""]
[null,null,null,null,null,null,null,null,null,null,null,""]
[null,null,null,null,null,null,null,null,null,null,null,""]
[null,null,null,null,null,null,null,null,null,null,null,""]
[null,null,null,null,null,null,null,null,null,null,null,""]
[null,null,null,null,null,null,null,null,null,null,null,""]
[null,null,null,null,null,null,null,null,null,null,null,""]
[null,null,null,null,null,null,null,null,null,null,null,""]
[null,null,null,null,null,null,null,null,null,null,null,""]
[null,null,null,null,null,null,null,null,null,null,null,""]
[null,null,null,null,null,null,null,null,null,null,null,""]
[null,null,null,null,null,null,null,null,null,null,null,""]
[null,null,null,null,null,null,null,null,null,null,null,""]
[null,null,null,null,null,null,null,null,null,null,null,""]
[null,null,null,null,null,null,null,null,null,null,null,""]
[null,null,null,null,null,null,null,null,null,null,null,""]
[null,null,null,null,null,null,null,null,null,null,null,""]
[null,null,null,null,null,null,null,null,null,null,null,""]
[null,null,null,null,null,null,null,null,null,null,null,""]
[null,null,null,null,null,null,null,null,null,null,null,""]
[null,null,null,null,null,null,null,null,null,null,null,""]
[null,null,null,null,null,null,null,null,null,null,null,""]
[null,null,null,null,null,null,null,null,null,null,null,""]
[null,null,null,null,null,null,null,null,null,null,null,""]
[null,null,null,null,null,null,null,null,null,null,null,""]
[null,null,null,null,null,null,null,null,null,null,null,""]
[null,null,null,null,null,null,null,null,null,null,null,""]
[null,null,null,null,null,null,null,null,null,null,null,""]
[null,null,null,null,null,null,null,null,null,null,null,""]
[null,null,null,null,null,null,null,null,null,null,null,""]
[null,null,null,null,null,null,null,null,null,null,null,""]
[null,null,null,null,null,null,null,null,null,null,null,""]
[null,null,null,null,null,null,null,null,null,null,null,""]
[null,null,null,null,null,null,null,null,null,null,null,""]
[null,null,null,null,null,null,null,null,null,null,null,""]
[null,null,null,null,null,null,null,null,null,null,null,""]
[null,null,null,null,null,null,null,null,null,null,null,""]
[null,null,null,null,null,null,null,null,null,null,null,""]
[null,null,null,null,null,null,null,null,null,null,null,""]
[null,null,null,null,null,null,null,null,null,null,null,""]
[null,null,null,null,null,null,null,null,null,null,null,""]
[null,null,null,null,null,null,null,null,null,null,null,""]
[null,null,null,null,null,null,null,null,null,null,null,""]
[null,null,null,null,null,null,null,null,null,null,null,""]
[null,null,null,null,null,null,null,null,null,null,null,""]
[null,null,null,null,null,null,null,null,null,null,null,""]
[null,null,null,null,null,null,null,null,null,null,null,""]
[null,null,null,null,null,null,null,null,null,null,null,""]
[null,null,null,null,null,null,null,null,null,null,null,""]
[null,null,null,null,null,null,null,null,null,null,null,""]
[null,null,null,null,null,null,null,null,null,null,null,""]
[null,null,null,null,null,null,null,null,null,null,null,""]
[null,null,null,null,null,null,null,null,null,null,null,""]
[null,null,null,null,null,null,null,null,null,null,null,""]
[null,null,null,null,null,null,null,null,null,null,null,{"$f":"IF(J526 >0, K526/J526, \"\")","v":""}]
[null,null,null,null,null,null,null,null,null,null,null,""]
[null,null,null,null,null,null,null,null,null,null,null,""]
[null,null,null,null,null,null,null,null,null,null,null,""]
[null,null,null,null,null,null,null,null,null,null,null,""]
[null,null,null,null,null,null,null,null,null,null,null,""]
[null,null,null,null,null,null,null,null,null,null,null,""]
[null,null,null,null,null,null,null,null,null,null,null,""]
[null,null,null,null,null,null,null,null,null,null,null,""]
[null,null,null,null,null,null,null,null,null,null,null,""]
[null,null,null,null,null,null,null,null,null,null,null,""]
[null,null,null,null,null,null,null,null,null,null,null,""]
[null,null,null,null,null,null,null,null,null,null,null,""]
[null,null,null,null,null,null,null,null,null,null,null,""]
[null,null,null,null,null,null,null,null,null,null,null,""]
[null,null,null,null,null,null,null,null,null,null,null,""]
[null,null,null,null,null,null,null,null,null,null,null,""]
[null,null,null,null,null,null,null,null,null,null,null,""]
[null,null,null,null,null,null,null,null,null,null,null,""]
[null,null,null,null,null,null,null,null,null,null,null,""]
[null,null,null,null,null,null,null,null,null,null,null,""]
[null,null,null,null,null,null,null,null,null,null,null,""]
[null,null,null,null,null,null,null,null,null,null,null,""]
[null,null,null,null,null,null,null,null,null,null,null,""]
[null,null,null,null,null,null,null,null,null,null,null,""]
[null,null,null,null,null,null,null,null,null,null,null,""]
[null,null,null,null,null,null,null,null,null,null,null,""]
[null,null,null,null,null,null,null,null,null,null,null,""]
[null,null,null,null,null,null,null,null,null,null,null,""]
[null,null,null,null,null,null,null,null,null,null,null,""]
[null,null,null,null,null,null,null,null,null,null,null,""]
[null,null,null,null,null,null,null,null,null,null,null,""]
[null,null,null,null,null,null,null,null,null,null,null,""]
[null,null,null,null,null,null,null,null,null,null,null,""]
[null,null,null,null,null,null,null,null,null,null,null,""]
[null,null,null,null,null,null,null,null,null,null,null,""]
[null,null,null,null,null,null,null,null,null,null,null,""]
[null,null,null,null,null,null,null,null,null,null,null,""]
[null,null,null,null,null,null,null,null,null,null,null,""]
[null,null,null,null,null,null,null,null,null,null,null,""]
[null,null,null,null,null,null,null,null,null,null,null,""]
[null,null,null,null,null,null,null,null,null,null,null,""]
[null,null,null,null,null,null,null,null,null,null,null,""]
[null,null,null,null,null,null,null,null,null,null,null,""]
[null,null,null,null,null,null,null,null,null,null,null,""]
[null,null,null,null,null,null,null,null,null,null,null,""]
[null,null,null,null,null,null,null,null,null,null,null,""]
[null,null,null,null,null,null,null,null,null,null,null,""]
[null,null,null,null,null,null,null,null,null,null,null,""]
[null,null,null,null,null,null,null,null,null,null,null,""]
[null,null,null,null,null,null,null,null,null,null,null,""]
[null,null,null,null,null,null,null,null,null,null,null,""]
[null,null,null,null,null,null,null,null,null,null,null,""]
[null,null,null,null,null,null,null,null,null,null,null,""]
[null,null,null,null,null,null,null,null,null,null,null,""]
[null,null,null,null,null,null,null,null,null,null,null,""]
[null,null,null,null,null,null,null,null,null,null,null,""]
[null,null,null,null,null,null,null,null,null,null,null,""]
[null,null,null,null,null,null,null,null,null,null,null,""]
[null,null,null,null,null,null,null,null,null,null,null,""]
[null,null,null,null,null,null,null,null,null,null,null,""]
[null,null,null,null,null,null,null,null,null,null,null,""]
[null,null,null,null,null,null,null,null,null,null,null,""]
[null,null,null,null,null,null,null,null,null,null,null,""]
[null,null,null,null,null,null,null,null,null,null,null,{"$f":"IF(J590 >0, K590/J590, \"\")","v":""}]
[null,null,null,null,null,null,null,null,null,null,null,""]
[null,null,null,null,null,null,null,null,null,null,null,""]
[null,null,null,null,null,null,null,null,null,null,null,""]
[null,null,null,null,null,null,null,null,null,null,null,""]
[null,null,null,null,null,null,null,null,null,null,null,""]
[null,null,null,null,null,null,null,null,null,null,null,""]
[null,null,null,null,null,null,null,null,null,null,null,""]
[null,null,null,null,null,null,null,null,null,null,null,""]
[null,null,null,null,null,null,null,null,null,null,null,""]
[null,null,null,null,null,null,null,null,null,null,null,""]
[null,null,null,null,null,null,null,null,null,null,null,""]
[null,null,null,null,null,null,null,null,null,null,null,""]
[null,null,null,null,null,null,null,null,null,null,null,""]
[null,null,null,null,null,null,null,null,null,null,null,""]
[null,null,null,null,null,null,null,null,null,null,null,""]
[null,null,null,null,null,null,null,null,null,null,null,""]
[null,null,null,null,null,null,null,null,null,null,null,""]
[null,null,null,null,null,null,null,null,null,null,null,""]
[null,null,null,null,null,null,null,null,null,null,null,""]
[null,null,null,null,null,null,null,null,null,null,null,""]
[null,null,null,null,null,null,null,null,null,null,null,""]
[null,null,null,null,null,null,null,null,null,null,null,""]
[null,null,null,null,null,null,null,null,null,null,null,""]
[null,null,null,null,null,null,null,null,null,null,null,""]
[null,null,null,null,null,null,null,null,null,null,null,""]
[null,null,null,null,null,null,null,null,null,null,null,""]
[null,null,null,null,null,null,null,null,null,null,null,""]
[null,null,null,null,null,null,null,null,null,null,null,""]
[null,null,null,null,null,null,null,null,null,null,null,""]
[null,null,null,null,null,null,null,null,null,null,null,""]
[null,null,null,null,null,null,null,null,null,null,null,""]
[null,null,null,null,null,null,null,null,null,null,null,""]
[null,null,null,null,null,null,null,null,null,null,null,""]
[null,null,null,null,null,null,null,null,null,null,null,""]
[null,null,null,null,null,null,null,null,null,null,null,""]
[null,null,null,null,null,null,null,null,null,null,null,""]
[null,null,null,null,null,null,null,null,null,null,null,""]
[null,null,null,null,null,null,null,null,null,null,null,""]
[null,null,null,null,null,null,null,null,null,null,null,""]
[null,null,null,null,null,null,null,null,null,null,null,""]
[null,null,null,null,null,null,null,null,null,null,null,""]
[null,null,null,null,null,null,null,null,null,null,null,""]
[null,null,null,null,null,null,null,null,null,null,null,""]
[null,null,null,null,null,null,null,null,null,null,null,""]
[null,null,null,null,null,null,null,null,null,null,null,""]
[null,null,null,null,null,null,null,null,null,null,null,""]
[null,null,null,null,null,null,null,null,null,null,null,""]
[null,null,null,null,null,null,null,null,null,null,null,""]
[null,null,null,null,null,null,null,null,null,null,null,""]
[null,null,null,null,null,null,null,null,null,null,null,""]
[null,null,null,null,null,null,null,null,null,null,null,""]
[null,null,null,null,null,null,null,null,null,null,null,""]
[null,null,null,null,null,null,null,null,null,null,null,""]
[null,null,null,null,null,null,null,null,null,null,null,""]
[null,null,null,null,null,null,null,null,null,null,null,""]
[null,null,null,null,null,null,null,null,null,null,null,""]
[null,null,null,null,null,null,null,null,null,null,null,""]
[null,null,null,null,null,null,null,null,null,null,null,""]
[null,null,null,null,null,null,null,null,null,null,null,""]
[null,null,null,null,null,null,null,null,null,null,null,""]
[null,null,null,null,null,null,null,null,null,null,null,""]
[null,null,null,null,null,null,null,null,null,null,null,""]
[null,null,null,null,null,null,null,null,null,null,null,""]
[null,null,null,null,null,null,null,null,null,null,null,{"$f":"IF(J654 >0, K654/J654, \"\")","v":""}]
[null,null,null,null,null,null,null,null,null,null,null,""]
[null,null,null,null,null,null,null,null,null,null,null,""]
[null,null,null,null,null,null,null,null,null,null,null,""]
[null,null,null,null,null,null,null,null,null,null,null,""]
[null,null,null,null,null,null,null,null,null,null,null,""]
[null,null,null,null,null,null,null,null,null,null,null,""]
[null,null,null,null,null,null,null,null,null,null,null,""]
[null,null,null,null,null,null,null,null,null,null,null,""]
[null,null,null,null,null,null,null,null,null,null,null,""]
[null,null,null,null,null,null,null,null,null,null,null,""]
[null,null,null,null,null,null,null,null,null,null,null,""]
[null,null,null,null,null,null,null,null,null,null,null,""]
[null,null,null,null,null,null,null,null,null,null,null,""]
[null,null,null,null,null,null,null,null,null,null,null,""]
[null,null,null,null,null,null,null,null,null,null,null,""]
[null,null,null,null,null,null,null,null,null,null,null,""]
[null,null,null,null,null,null,null,null,null,null,null,""]
[null,null,null,null,null,null,null,null,null,null,null,""]
[null,null,null,null,null,null,null,null,null,null,null,""]
[null,null,null,null,null,null,null,null,null,null,null,""]
[null,null,null,null,null,null,null,null,null,null,null,""]
[null,null,null,null,null,null,null,null,null,null,null,""]
[null,null,null,null,null,null,null,null,null,null,null,""]
[null,null,null,null,null,null,null,null,null,null,null,""]
[null,null,null,null,null,null,null,null,null,null,null,""]
[null,null,null,null,null,null,null,null,null,null,null,""]
[null,null,null,null,null,null,null,null,null,null,null,""]
[null,null,null,null,null,null,null,null,null,null,null,""]
[null,null,null,null,null,null,null,null,null,null,null,""]
[null,null,null,null,null,null,null,null,null,null,null,""]
[null,null,null,null,null,null,null,null,null,null,null,""]
[null,null,null,null,null,null,null,null,null,null,null,""]
[null,null,null,null,null,null,null,null,null,null,null,""]
[null,null,null,null,null,null,null,null,null,null,null,""]
[null,null,null,null,null,null,null,null,null,null,null,""]
[null,null,null,null,null,null,null,null,null,null,null,""]
[null,null,null,null,null,null,null,null,null,null,null,""]
[null,null,null,null,null,null,null,null,null,null,null,""]
[null,null,null,null,null,null,null,null,null,null,null,""]
[null,null,null,null,null,null,null,null,null,null,null,""]
[null,null,null,null,null,null,null,null,null,null,null,""]
[null,null,null,null,null,null,null,null,null,null,null,""]
[null,null,null,null,null,null,null,null,null,null,null,""]
[null,null,null,null,null,null,null,null,null,null,null,""]
[null,null,null,null,null,null,null,null,null,null,null,""]
[null,null,null,null,null,null,null,null,null,null,null,""]
[null,null,null,null,null,null,null,null,null,null,null,""]
[null,null,null,null,null,null,null,null,null,null,null,""]
[null,null,null,null,null,null,null,null,null,null,null,""]
[null,null,null,null,null,null,null,null,null,null,null,""]
[null,null,null,null,null,null,null,null,null,null,null,""]
[null,null,null,null,null,null,null,null,null,null,null,""]
[null,null,null,null,null,null,null,null,null,null,null,""]
[null,null,null,null,null,null,null,null,null,null,null,""]
[null,null,null,null,null,null,null,null,null,null,null,""]
[null,null,null,null,null,null,null,null,null,null,null,""]
[null,null,null,null,null,null,null,null,null,null,null,""]
[null,null,null,null,null,null,null,null,null,null,null,""]
[null,null,null,null,null,null,null,null,null,null,null,""]
[null,null,null,null,null,null,null,null,null,null,null,""]
[null,null,null,null,null,null,null,null,null,null,null,""]
[null,null,null,null,null,null,null,null,null,null,null,""]
[null,null,null,null,null,null,null,null,null,null,null,""]
[null,null,null,null,null,null,null,null,null,null,null,{"$f":"IF(J718 >0, K718/J718, \"\")","v":""}]
[null,null,null,null,null,null,null,null,null,null,null,""]
[null,null,null,null,null,null,null,null,null,null,null,""]
[null,null,null,null,null,null,null,null,null,null,null,""]
[null,null,null,null,null,null,null,null,null,null,null,""]
[null,null,null,null,null,null,null,null,null,null,null,""]
[null,null,null,null,null,null,null,null,null,null,null,""]
[null,null,null,null,null,null,null,null,null,null,null,""]
[null,null,null,null,null,null,null,null,null,null,null,""]
[null,null,null,null,null,null,null,null,null,null,null,""]
[null,null,null,null,null,null,null,null,null,null,null,""]
[null,null,null,null,null,null,null,null,null,null,null,""]
[null,null,null,null,null,null,null,null,null,null,null,""]
[null,null,null,null,null,null,null,null,null,null,null,""]
[null,null,null,null,null,null,null,null,null,null,null,""]
[null,null,null,null,null,null,null,null,null,null,null,""]
[null,null,null,null,null,null,null,null,null,null,null,""]
[null,null,null,null,null,null,null,null,null,null,null,""]
[null,null,null,null,null,null,null,null,null,null,null,""]
[null,null,null,null,null,null,null,null,null,null,null,""]
[null,null,null,null,null,null,null,null,null,null,null,""]
[null,null,null,null,null,null,null,null,null,null,null,""]
[null,null,null,null,null,null,null,null,null,null,null,""]
[null,null,null,null,null,null,null,null,null,null,null,""]
[null,null,null,null,null,null,null,null,null,null,null,""]
[null,null,null,null,null,null,null,null,null,null,null,""]
[null,null,null,null,null,null,null,null,null,null,null,""]
[null,null,null,null,null,null,null,null,null,null,null,""]
[null,null,null,null,null,null,null,null,null,null,null,""]
[null,null,null,null,null,null,null,null,null,null,null,""]
[null,null,null,null,null,null,null,null,null,null,null,""]
[null,null,null,null,null,null,null,null,null,null,null,""]
[null,null,null,null,null,null,null,null,null,null,null,""]
[null,null,null,null,null,null,null,null,null,null,null,""]
[null,null,null,null,null,null,null,null,null,null,null,""]
[null,null,null,null,null,null,null,null,null,null,null,""]
[null,null,null,null,null,null,null,null,null,null,null,""]
[null,null,null,null,null,null,null,null,null,null,null,""]
[null,null,null,null,null,null,null,null,null,null,null,""]
[null,null,null,null,null,null,null,null,null,null,null,""]
[null,null,null,null,null,null,null,null,null,null,null,""]
[null,null,null,null,null,null,null,null,null,null,null,""]
[null,null,null,null,null,null,null,null,null,null,null,""]
[null,null,null,null,null,null,null,null,null,null,null,""]
[null,null,null,null,null,null,null,null,null,null,null,""]
[null,null,null,null,null,null,null,null,null,null,null,""]
[null,null,null,null,null,null,null,null,null,null,null,""]
[null,null,null,null,null,null,null,null,null,null,null,""]
[null,null,null,null,null,null,null,null,null,null,null,""]
[null,null,null,null,null,null,null,null,null,null,null,""]
[null,null,null,null,null,null,null,null,null,null,null,""]
[null,null,null,null,null,null,null,null,null,null,null,""]
[null,null,null,null,null,null,null,null,null,null,null,""]
[null,null,null,null,null,null,null,null,null,null,null,""]
[null,null,null,null,null,null,null,null,null,null,null,""]
[null,null,null,null,null,null,null,null,null,null,null,""]
[null,null,null,null,null,null,null,null,null,null,null,""]
[null,null,null,null,null,null,null,null,null,null,null,""]
[null,null,null,null,null,null,null,null,null,null,null,""]
[null,null,null,null,null,null,null,null,null,null,null,""]
[null,null,null,null,null,null,null,null,null,null,null,""]
[null,null,null,null,null,null,null,null,null,null,null,""]
[null,null,null,null,null,null,null,null,null,null,null,""]
[null,null,null,null,null,null,null,null,null,null,null,""]
[null,null,null,null,null,null,null,null,null,null,null,{"$f":"IF(J782 >0, K782/J782, \"\")","v":""}]
[null,null,null,null,null,null,null,null,null,null,null,""]
[null,null,null,null,null,null,null,null,null,null,null,""]
[null,null,null,null,null,null,null,null,null,null,null,""]
[null,null,null,null,null,null,null,null,null,null,null,""]
[null,null,null,null,null,null,null,null,null,null,null,""]
[null,null,null,null,null,null,null,null,null,null,null,""]
[null,null,null,null,null,null,null,null,null,null,null,""]
[null,null,null,null,null,null,null,null,null,null,null,""]
[null,null,null,null,null,null,null,null,null,null,null,""]
[null,null,null,null,null,null,null,null,null,null,null,""]
[null,null,null,null,null,null,null,null,null,null,null,""]
[null,null,null,null,null,null,null,null,null,null,null,""]
[null,null,null,null,null,null,null,null,null,null,null,""]
[null,null,null,null,null,null,null,null,null,null,null,""]
[null,null,null,null,null,null,null,null,null,null,null,""]
[null,null,null,null,null,null,null,null,null,null,null,""]
[null,null,null,null,null,null,null,null,null,null,null,""]
[null,null,null,null,null,null,null,null,null,null,null,""]
[null,null,null,null,null,null,null,null,null,null,null,""]
[null,null,null,null,null,null,null,null,null,null,null,""]
[null,null,null,null,null,null,null,null,null,null,null,""]
[null,null,null,null,null,null,null,null,null,null,null,""]
[null,null,null,null,null,null,null,null,null,null,null,""]
[null,null,null,null,null,null,null,null,null,null,null,""]
[null,null,null,null,null,null,null,null,null,null,null,""]
[null,null,null,null,null,null,null,null,null,null,null,""]
[null,null,null,null,null,null,null,null,null,null,null,""]
[null,null,null,null,null,null,null,null,null,null,null,""]
[null,null,null,null,null,null,null,null,null,null,null,""]
[null,null,null,null,null,null,null,null,null,null,null,""]
[null,null,null,null,null,null,null,null,null,null,null,""]
[null,null,null,null,null,null,null,null,null,null,null,""]
[null,null,null,null,null,null,null,null,null,null,null,""]
[null,null,null,null,null,null,null,null,null,null,null,""]
[null,null,null,null,null,null,null,null,null,null,null,""]
[null,null,null,null,null,null,null,null,null,null,null,""]
[null,null,null,null,null,null,null,null,null,null,null,""]
[null,null,null,null,null,null,null,null,null,null,null,""]
[null,null,null,null,null,null,null,null,null,null,null,""]
[null,null,null,null,null,null,null,null,null,null,null,""]
[null,null,null,null,null,null,null,null,null,null,null,""]
[null,null,null,null,null,null,null,null,null,null,null,""]
[null,null,null,null,null,null,null,null,null,null,null,""]
[null,null,null,null,null,null,null,null,null,null,null,""]
[null,null,null,null,null,null,null,null,null,null,null,""]
[null,null,null,null,null,null,null,null,null,null,null,""]
[null,null,null,null,null,null,null,null,null,null,null,""]
[null,null,null,null,null,null,null,null,null,null,null,""]
[null,null,null,null,null,null,null,null,null,null,null,""]
[null,null,null,null,null,null,null,null,null,null,null,""]
[null,null,null,null,null,null,null,null,null,null,null,""]
[null,null,null,null,null,null,null,null,null,null,null,""]
[null,null,null,null,null,null,null,null,null,null,null,""]
[null,null,null,null,null,null,null,null,null,null,null,""]
[null,null,null,null,null,null,null,null,null,null,null,""]
[null,null,null,null,null,null,null,null,null,null,null,""]
[null,null,null,null,null,null,null,null,null,null,null,""]
[null,null,null,null,null,null,null,null,null,null,null,""]
[null,null,null,null,null,null,null,null,null,null,null,""]
[null,null,null,null,null,null,null,null,null,null,null,""]
[null,null,null,null,null,null,null,null,null,null,null,""]
[null,null,null,null,null,null,null,null,null,null,null,""]
[null,null,null,null,null,null,null,null,null,null,null,""]
[null,null,null,null,null,null,null,null,null,null,null,{"$f":"IF(J846 >0, K846/J846, \"\")","v":""}]
[null,null,null,null,null,null,null,null,null,null,null,""]
[null,null,null,null,null,null,null,null,null,null,null,""]
[null,null,null,null,null,null,null,null,null,null,null,""]
[null,null,null,null,null,null,null,null,null,null,null,""]
[null,null,null,null,null,null,null,null,null,null,null,""]
[null,null,null,null,null,null,null,null,null,null,null,""]
[null,null,null,null,null,null,null,null,null,null,null,""]
[null,null,null,null,null,null,null,null,null,null,null,""]
[null,null,null,null,null,null,null,null,null,null,null,""]
[null,null,null,null,null,null,null,null,null,null,null,""]
[null,null,null,null,null,null,null,null,null,null,null,""]
[null,null,null,null,null,null,null,null,null,null,null,""]
[null,null,null,null,null,null,null,null,null,null,null,""]
[null,null,null,null,null,null,null,null,null,null,null,""]
[null,null,null,null,null,null,null,null,null,null,null,""]
[null,null,null,null,null,null,null,null,null,null,null,""]
[null,null,null,null,null,null,null,null,null,null,null,""]
[null,null,null,null,null,null,null,null,null,null,null,""]
[null,null,null,null,null,null,null,null,null,null,null,""]
[null,null,null,null,null,null,null,null,null,null,null,""]
[null,null,null,null,null,null,null,null,null,null,null,""]
[null,null,null,null,null,null,null,null,null,null,null,""]
[null,null,null,null,null,null,null,null,null,null,null,""]
[null,null,null,null,null,null,null,null,null,null,null,""]
[null,null,null,null,null,null,null,null,null,null,null,""]
[null,null,null,null,null,null,null,null,null,null,null,""]
[null,null,null,null,null,null,null,null,null,null,null,""]
[null,null,null,null,null,null,null,null,null,null,null,""]
[null,null,null,null,null,null,null,null,null,null,null,""]
[null,null,null,null,null,null,null,null,null,null,null,""]
[null,null,null,null,null,null,null,null,null,null,null,""]
[null,null,null,null,null,null,null,null,null,null,null,""]
[null,null,null,null,null,null,null,null,null,null,null,""]
[null,null,null,null,null,null,null,null,null,null,null,""]
[null,null,null,null,null,null,null,null,null,null,null,""]
[null,null,null,null,null,null,null,null,null,null,null,""]
[null,null,null,null,null,null,null,null,null,null,null,""]
[null,null,null,null,null,null,null,null,null,null,null,""]
[null,null,null,null,null,null,null,null,null,null,null,""]
[null,null,null,null,null,null,null,null,null,null,null,""]
[null,null,null,null,null,null,null,null,null,null,null,""]
[null,null,null,null,null,null,null,null,null,null,null,""]
[null,null,null,null,null,null,null,null,null,null,null,""]
[null,null,null,null,null,null,null,null,null,null,null,""]
[null,null,null,null,null,null,null,null,null,null,null,""]
[null,null,null,null,null,null,null,null,null,null,null,""]
[null,null,null,null,null,null,null,null,null,null,null,""]
[null,null,null,null,null,null,null,null,null,null,null,""]
[null,null,null,null,null,null,null,null,null,null,null,""]
[null,null,null,null,null,null,null,null,null,null,null,""]
[null,null,null,null,null,null,null,null,null,null,null,""]
[null,null,null,null,null,null,null,null,null,null,null,""]
[null,null,null,null,null,null,null,null,null,null,null,""]
[null,null,null,null,null,null,null,null,null,null,null,""]
[null,null,null,null,null,null,null,null,null,null,null,""]
[null,null,null,null,null,null,null,null,null,null,null,""]
[null,null,null,null,null,null,null,null,null,null,null,""]
[null,null,null,null,null,null,null,null,null,null,null,""]
[null,null,null,null,null,null,null,null,null,null,null,""]
[null,null,null,null,null,null,null,null,null,null,null,""]
[null,null,null,null,null,null,null,null,null,null,null,""]
[null,null,null,null,null,null,null,null,null,null,null,""]
[null,null,null,null,null,null,null,null,null,null,null,""]
[null,null,null,null,null,null,null,null,null,null,null,{"$f":"IF(J910 >0, K910/J910, \"\")","v":""}]
[null,null,null,null,null,null,null,null,null,null,null,""]
[null,null,null,null,null,null,null,null,null,null,null,""]
[null,null,null,null,null,null,null,null,null,null,null,""]
[null,null,null,null,null,null,null,null,null,null,null,""]
[null,null,null,null,null,null,null,null,null,null,null,""]
[null,null,null,null,null,null,null,null,null,null,null,""]
[null,null,null,null,null,null,null,null,null,null,null,""]
[null,null,null,null,null,null,null,null,null,null,null,""]
[null,null,null,null,null,null,null,null,null,null,null,""]
[null,null,null,null,null,null,null,null,null,null,null,""]
[null,null,null,null,null,null,null,null,null,null,null,""]
[null,null,null,null,null,null,null,null,null,null,null,""]
[null,null,null,null,null,null,null,null,null,null,null,""]
[null,null,null,null,null,null,null,null,null,null,null,""]
[null,null,null,null,null,null,null,null,null,null,null,""]
[null,null,null,null,null,null,null,null,null,null,null,""]
[null,null,null,null,null,null,null,null,null,null,null,""]
[null,null,null,null,null,null,null,null,null,null,null,""]
[null,null,null,null,null,null,null,null,null,null,null,""]
[null,null,null,null,null,null,null,null,null,null,null,""]
[null,null,null,null,null,null,null,null,null,null,null,""]
[null,null,null,null,null,null,null,null,null,null,null,""]
[null,null,null,null,null,null,null,null,null,null,null,""]
[null,null,null,null,null,null,null,null,null,null,null,""]
[null,null,null,null,null,null,null,null,null,null,null,""]
[null,null,null,null,null,null,null,null,null,null,null,""]
[null,null,null,null,null,null,null,null,null,null,null,""]
[null,null,null,null,null,null,null,null,null,null,null,""]
[null,null,null,null,null,null,null,null,null,null,null,""]
[null,null,null,null,null,null,null,null,null,null,null,""]
[null,null,null,null,null,null,null,null,null,null,null,""]
[null,null,null,null,null,null,null,null,null,null,null,""]
[null,null,null,null,null,null,null,null,null,null,null,""]
[null,null,null,null,null,null,null,null,null,null,null,""]
[null,null,null,null,null,null,null,null,null,null,null,""]
[null,null,null,null,null,null,null,null,null,null,null,""]
[null,null,null,null,null,null,null,null,null,null,null,""]
[null,null,null,null,null,null,null,null,null,null,null,""]
[null,null,null,null,null,null,null,null,null,null,null,""]
[null,null,null,null,null,null,null,null,null,null,null,""]
[null,null,null,null,null,null,null,null,null,null,null,""]
[null,null,null,null,null,null,null,null,null,null,null,""]
[null,null,null,null,null,null,null,null,null,null,null,""]
[null,null,null,null,null,null,null,null,null,null,null,""]
[null,null,null,null,null,null,null,null,null,null,null,""]
[null,null,null,null,null,null,null,null,null,null,null,""]
[null,null,null,null,null,null,null,null,null,null,null,""]
[null,null,null,null,null,null,null,null,null,null,null,""]
[null,null,null,null,null,null,null,null,null,null,null,""]
[null,null,null,null,null,null,null,null,null,null,null,""]
[null,null,null,null,null,null,null,null,null,null,null,""]
[null,null,null,null,null,null,null,null,null,null,null,""]
[null,null,null,null,null,null,null,null,null,null,null,""]
[null,null,null,null,null,null,null,null,null,null,null,""]
[null,null,null,null,null,null,null,null,null,null,null,""]
[null,null,null,null,null,null,null,null,null,null,null,""]
[null,null,null,null,null,null,null,null,null,null,null,""]
[null,null,null,null,null,null,null,null,null,null,null,""]
[null,null,null,null,null,null,null,null,null,null,null,""]
[null,null,null,null,null,null,null,null,null,null,null,""]
[null,null,null,null,null,null,null,null,null,null,null,""]
[null,null,null,null,null,null,null,null,null,null,null,""]
[null,null,null,null,null,null,null,null,null,null,null,""]
[null,null,null,null,null,null,null,null,null,null,null,{"$f":"IF(J974 >0, K974/J974, \"\")","v":""}]
[null,null,null,null,null,null,null,null,null,null,null,""]
[null,null,null,null,null,null,null,null,null,null,null,""]
[null,null,null,null,null,null,null,null,null,null,null,""]
[null,null,null,null,null,null,null,null,null,null,null,""]
[null,null,null,null,null,null,null,null,null,null,null,""]
[null,null,null,null,null,null,null,null,null,null,null,""]
[null,null,null,null,null,null,null,null,null,null,null,""]
[null,null,null,null,null,null,null,null,null,null,null,""]
[null,null,null,null,null,null,null,null,null,null,null,""]
[null,null,null,null,null,null,null,null,null,null,null,""]
[null,null,null,null,null,null,null,null,null,null,null,""]
[null,null,null,null,null,null,null,null,null,null,null,""]
[null,null,null,null,null,null,null,null,null,null,null,""]
[null,null,null,null,null,null,null,null,null,null,null,""]
[null,null,null,null,null,null,null,null,null,null,null,""]
[null,null,null,null,null,null,null,null,null,null,null,""]
[null,null,null,null,null,null,null,null,null,null,null,""]
[null,null,null,null,null,null,null,null,null,null,null,""]
[null,null,null,null,null,null,null,null,null,null,null,""]
[null,null,null,null,null,null,null,null,null,null,null,""]
[null,null,null,null,null,null,null,null,null,null,null,""]
[null,null,null,null,null,null,null,null,null,null,null,""]
[null,null,null,null,null,null,null,null,null,null,null,""]
[null,null,null,null,null,null,null,null,null,null,null,""]
[null,null,null,null,null,null,null,null,null,null,null,""]
[null,null,null,null,null,null,null,null,null,null,null,""]
[null,null,null,null,null,null,null,null,null,null,null,""]
[null,null,null,null,null,null,null,null,null,null,null,""]
[null,null,null,null,null,null,null,null,null,null,null,""]
[null,null,null,null,null,null,null,null,null,null,null,""]
[null,null,null,null,null,null,null,null,null,null,null,""]
[null,null,null,null,null,null,null,null,null,null,null,""]
[null,null,null,null,null,null,null,null,null,null,null,""]
[null,null,null,null,null,null,null,null,null,null,null,""]
[null,null,null,null,null,null,null,null,null,null,null,""]

{"sheet":"Регион","index":3,"n_rows":3,"n_cols":4,"rows_kept":3,"cut":false,"hidden":true,"merged":[]}
[]
[null,"   Федеральный округ:\n","Северо-Кавказский Федеральный Округ","    ActiveWorkbook.Worksheets(\"Ðåãèîí\").Unprotect Password:=zBuf\r\n"]
[null,"Субъект:"]

{"sheet":"Выгрузка","index":4,"n_rows":16,"n_cols":3,"rows_kept":16,"cut":false,"hidden":true,"merged":[[6,1,6,2]]}
[]
[]
[]
[]
[]
[]
[]
[null,"Направленность","Наименование файла\n(необязательный параметр)"]
[null,2,5]
[null,"Физкультурно-спортивная"]
[null,"Социально-гуманитарная"]
[null,"Художественная"]
[null,"Естественнонаучная"]
[null,"Техническая"]
[null,"Туристско-краеведческая"]
[null,"Все"]

{"sheet":"Справочник","index":5,"n_rows":85,"n_cols":15,"rows_kept":85,"cut":false,"hidden":true,"merged":[]}
[101,"Республика Адыгея",1,1,"ЮФО","Южный Федеральный Округ",null,null,"ver.","3.0",null,null,null,"",""]
[4,"Республика Алтай",7,2,"ПФО","Приволжский Федеральный Округ",null,null,null,null,null,null,null,"",""]
[102,"Республика Башкортостан",2,3,"ДФО","Дальневосточный Федеральный Округ",null,null,null,null,null,null,null,"",""]
[103,"Республика Бурятия",3,4,"СЗФО","Северо-Западный Федеральный Округ",null,null,null,null,null,null,null,"",""]
[5,"Республика Дагестан",8,5,"ЦФО","Центральный Федеральный Округ",null,null,null,null,null,null,null,"",""]
[6,"Республика Ингушетия",8,6,"УФО","Уральский Федеральный Округ",null,null,null,null,null,null,null,"",""]
[7,"Кабардино-Балкарская Республика",8,7,"СФО","Сибирский Федеральный Округ",null,null,null,null,null,null,null,"",""]
[8,"Республика Калмыкия",1,8,"СКФО","Северо-Кавказский Федеральный Округ",null,null,null,null,null,null,null,"",""]
[109,"Карачаево-Черкесская Республика",8,null,null,null,null,null,null,null,"Источник ошибки:","Тип ошибки:","Раздел:","",""]
[10,"Республика Карелия",4,null,null,null,null,null,null,null,null,null,null,"",""]
[11,"Республика Коми",4,null,null,null,null,null,null,null,null,null,null,"",""]
[82,"Республика Крым",1,null,null,null,null,null,null,null,null,null,null,"",""]
[12,"Республика Марий Эл",2,null,null,null,null,null,null,null,null,null,null,"",""]
[113,"Республика Мордовия",2,null,null,null,null,null,null,null,null,null,null,"",""]
[14,"Республика Саха (Якутия)",3,null,null,null,null,null,null,null,null,null,null,"",""]
[15,"Республика Северная Осетия - Алания",8,null,null,"24 (00:01:02)",null,null,null,null,null,null,null,"",""]
[116,"Республика Татарстан",2,null,null,null,null,null,null,null,null,null,null,"",""]
[17,"Республика Тыва",7,null,null,"Пользовательский выбор:",null,null,null,null,null,null,null,"",""]
[118,"Удмуртская Республика",2,null,null,"Федеральный округ:",8,null,null,null,null,null,null,"",""]
[19,"Республика Хакасия",7,null,null,"Субъект:",21,null,null,null,null,null,null,"",""]
[95,"Чеченская республика",8,null,"3389","Режим:",0,null,null,null,null,null,null,"",""]
[121,"Чувашская Республика - Чаваш Республики",2,null,null,"err:",0,null,null,null,null,null,null,"",""]
[22,"Алтайский край",7,null,null,null,0,null,null,null,null,null,null,"",""]
[80,"Забайкальский край",3,null,null,null,0,null,null,null,null,null,null,"",""]
[41,"Камчатский край",3,null,null,null,0,null,null,null,null,null,null,"",""]
[123,"Краснодарский край",1,null,null,null,0,null,null,null,null,null,null,"",""]
[124,"Красноярский край",7,null,null,null,0,null,null,null,null,null,null,"",""]
[159,"Пермская область",2,null,null,null,0,null,null,null,null,null,null,"",""]
[125,"Приморский край",3,null,null,null,null,null,null,null,null,null,null,"",""]
[26,"Ставропольский край",8,null,null,null,0,null,null,null,null,null,null,"",""]
[27,"Хабаровский край",3,null,null,null,null,null,null,null,null,null,null,"",""]
[28,"Амурская область",3,null,null,null,0,null,null,null,null,null,null,"",""]
[29,"Архангельская область",4,null,null,null,null,null,null,null,null,null,null,"",""]
[30,"Астраханская область",1,null,null,null,0,null,null,null,null,null,null,"",""]
[31,"Белгородская область",5,null,null,null,null,null,null,null,null,null,null,"",""]
[32,"Брянская область",5,null,null,null,0,null,null,null,null,null,null,"",""]
[33,"Владимирская область",5,null,null,null,0,null,null,null,null,null,null,"",""]
[134,"Волгоградская область",1,null,null,null,null,null,null,null,null,null,null,"",""]
[35,"Вологодская область",4,null,null,null,0,null,null,null,null,null,null,"",""]
[136,"Воронежская область",5,null,null,null,0,null,null,null,null,null,null,"",""]
[37,"Ивановская область",5,null,null,null,0,null,null,null,null,null,null,"",""]
[138,"Иркутская область",7,null,null,null,0,null,null,null,null,null,null,"",""]
[91,"Калининградская область",4,null,null,null,0,null,null,null,null,null,null,"",""]
[40,"Калужская область",5,null,null,null,0,null,null,null,null,null,null,"",""]
[142,"Кемеровская область",7,null,null,null,null,null,null,null,null,null,null,"",""]
[43,"Кировская область",2,null,null,null,0,null,null,null,null,null,null,"",""]
[44,"Костромская область",5,null,null,null,null,null,null,null,null,null,null,"",""]
[45,"Курганская область",6,null,null,null,null,null,null,null,null,null,null,"",""]
[46,"Курская область",5,null,null,null,null,null,null,null,null,null,null,"",""]
[47,"Ленинградская область",4,null,null,null,null,null,null,null,null,null,null,"",""]
[48,"Липецкая область",5,null,null,null,null,null,null,null,null,null,null,"",""]
[49,"Магаданская область",3,null,null,null,null,null,null,null,null,null,null,"",""]
[750,"Московская область",5]
[51,"Мурманская область",4]
[152,"Нижегородская область",2]
[53,"Новгородская область",4]
[154,"Новосибирская область",7]
[55,"Омская область",7]
[56,"Оренбургская область",2]
[57,"Орловская область",5]
[58,"Пензенская область",2]
[60,"Псковская область",4]
[161,"Ростовская область",1]
[62,"Рязанская область",5]
[163,"Самарская область",2]
[164,"Саратовская область",2]
[65,"Сахалинская область",3]
[196,"Свердловская область",6]
[67,"Смоленская область",5]
[68,"Тамбовская область",5]
[69,"Тверская область",5]
[70,"Томская область",7]
[71,"Тульская область",5]
[72,"Тюменская область",6]
[173,"Ульяновская область",2]
[174,"Челябинская область",6]
[76,"Ярославская область",5]
[777,"г.Москва",5]
[178,"г.Санкт-Петербург",4]
[92,"г.Севастополь",1]
[79,"Еврейская автономная область",3]
[83,"Ненецкий автономный округ",4]
[186,"Ханты-Мансийский автономный округ",6]
[87,"Чукотский автономный округ",3]
[89,"Ямало-Ненецкий автономный округ",6]

{"sheet":"Примечания","index":6,"n_rows":2,"n_cols":2,"rows_kept":2,"cut":false,"hidden":false,"merged":[]}
[]
[null,"Для корректной работы необходимо разрешить выполнение макросов."]